BIOGUIDE_ID,OFFICE,QUARTER,CATEGORY,DATE,PAYEE,START DATE,END DATE,PURPOSE,AMOUNT,YEAR,TRANSCODE,TRANSCODELONG,RECORDID,RECIP (orig.)
,OFFICE OF THE SPEAKER,2013Q2,PERSONNEL BENEFITS,04-15,HON. JOHN A. BOEHNER,04/01/13,04/30/13,OFFICIAL EXPENSES FOR LEADERS,"2,083.33",2013,AP,Accounts payable,00660300,HON. JOHN A. BOEHNER
,OFFICE OF THE SPEAKER,2013Q2,PERSONNEL BENEFITS,05-22,HON. JOHN A. BOEHNER,05/01/13,05/31/13,OFFICIAL EXPENSES FOR LEADERS,"2,083.33",2013,AP,Accounts payable,00669984,HON. JOHN A. BOEHNER
,OFFICE OF THE SPEAKER,2013Q2,PERSONNEL BENEFITS,06-19,HON. JOHN A. BOEHNER,06/01/13,06/30/13,OFFICIAL EXPENSES FOR LEADERS,"2,083.33",2013,AP,Accounts payable,00674938,HON. JOHN A. BOEHNER
,OFFICE OF THE SPEAKER,2013Q2,PERSONNEL COMPENSATION,"","ANDREWS,THOMAS S",04/01/13,06/30/13,SENIOR STAFF ASSISTANT,"9,000.00",2013,"","","","ANDREWS,THOMAS S"
,OFFICE OF THE SPEAKER,2013Q2,PERSONNEL COMPENSATION,"","ANDREWS,THOMAS S",03/01/13,05/31/13,SENIOR STAFF ASSISTANT (OVERTIME),"2,505.26",2013,"","","","ANDREWS,THOMAS S"
,OFFICE OF THE SPEAKER,2013Q2,PERSONNEL COMPENSATION,"","AVONDOGLIO,BRYANT J",04/01/13,06/30/13,ADVANCE & DIGITAL PRODUC MGR,"20,000.01",2013,"","","","AVONDOGLIO,BRYANT J"
,OFFICE OF THE SPEAKER,2013Q2,PERSONNEL COMPENSATION,"","BECKER,ALEXANDER M",04/01/13,06/30/13,STAFF ASSISTANT,"8,000.01",2013,"","","","BECKER,ALEXANDER M"
,OFFICE OF THE SPEAKER,2013Q2,PERSONNEL COMPENSATION,"","BECKER,ALEXANDER M",03/01/13,05/31/13,STAFF ASSISTANT (OVERTIME),963.45,2013,"","","","BECKER,ALEXANDER M"
,OFFICE OF THE SPEAKER,2013Q2,PERSONNEL COMPENSATION,"","BENJAMIN, WILLIAM C",04/01/13,06/30/13,DIR OF INFORMATION TECHNOLOGY,"23,250.00",2013,"","","","BENJAMIN, WILLIAM C"
,OFFICE OF THE SPEAKER,2013Q2,PERSONNEL COMPENSATION,"","BLAKE,KRISTENE",04/01/13,06/30/13,DIRECTOR OF SCHDLNG/EXEC ASST,"22,916.67",2013,"","","","BLAKE,KRISTENE"
,OFFICE OF THE SPEAKER,2013Q2,PERSONNEL COMPENSATION,"","BOLAND,KEVIN P",04/01/13,06/30/13,SPECIAL ASSISTANT,"9,999.99",2013,"","","","BOLAND,KEVIN P"
,OFFICE OF THE SPEAKER,2013Q2,PERSONNEL COMPENSATION,"","BORDEN III, R C",04/01/13,06/30/13,SHARED EMPLOYEE,"42,000.00",2013,"","","","BORDEN III, R C"
,OFFICE OF THE SPEAKER,2013Q2,PERSONNEL COMPENSATION,"","BOYD,KATHRYN E",04/01/13,06/30/13,ASST COMMUNICATIONS DIRECTOR,"20,000.01",2013,"","","","BOYD,KATHRYN E"
,OFFICE OF THE SPEAKER,2013Q2,PERSONNEL COMPENSATION,"","BOZA-HOLMAN, SOFIA M",04/01/13,06/30/13,STAFF ASSISTANT,"8,000.01",2013,"","","","BOZA-HOLMAN, SOFIA M"
,OFFICE OF THE SPEAKER,2013Q2,PERSONNEL COMPENSATION,"","BOZA-HOLMAN, SOFIA M",03/01/13,05/31/13,STAFF ASSISTANT (OVERTIME),"1,188.44",2013,"","","","BOZA-HOLMAN, SOFIA M"
,OFFICE OF THE SPEAKER,2013Q2,PERSONNEL COMPENSATION,"","BROWN,MARYAM S",04/01/13,06/30/13,ASST TO SPEAKER FOR POLICY,"42,000.00",2013,"","","","BROWN,MARYAM S"
,OFFICE OF THE SPEAKER,2013Q2,PERSONNEL COMPENSATION,"","BUCK, BRENDAN K",04/01/13,06/30/13,PRESS SECRETARY,"34,500.00",2013,"","","","BUCK, BRENDAN K"
,OFFICE OF THE SPEAKER,2013Q2,PERSONNEL COMPENSATION,"","BUNKER,ANDREW R",04/01/13,06/30/13,FLOOR ASSISTANT,"8,499.99",2013,"","","","BUNKER,ANDREW R"
,OFFICE OF THE SPEAKER,2013Q2,PERSONNEL COMPENSATION,"","CASSIDY, ED",04/01/13,06/30/13,DIRECTOR OF HOUSE OPERATIONS,"42,333.33",2013,"","","","CASSIDY, ED"
,OFFICE OF THE SPEAKER,2013Q2,PERSONNEL COMPENSATION,"","DESTEFANO,JOHN",04/01/13,06/30/13,SENIOR ADVISOR,"41,250.00",2013,"","","","DESTEFANO,JOHN"
,OFFICE OF THE SPEAKER,2013Q2,PERSONNEL COMPENSATION,"","EASBY-SMITH,ANNE S",04/01/13,05/31/13,STAFF ASSISTANT,"5,333.34",2013,"","","","EASBY-SMITH,ANNE S"
,OFFICE OF THE SPEAKER,2013Q2,PERSONNEL COMPENSATION,"","EASBY-SMITH,ANNE S",06/01/13,06/30/13,SPECIAL EVENTS ASSISTANT,"3,083.33",2013,"","","","EASBY-SMITH,ANNE S"
,OFFICE OF THE SPEAKER,2013Q2,PERSONNEL COMPENSATION,"","EASBY-SMITH,ANNE S",03/01/13,05/31/13,STAFF ASSISTANT (OVERTIME),"1,161.91",2013,"","","","EASBY-SMITH,ANNE S"
,OFFICE OF THE SPEAKER,2013Q2,PERSONNEL COMPENSATION,"","ECKARD,NASTASHA",04/01/13,06/30/13,ASSIST TO SPEAKER FOR POLICY,"16,749.99",2013,"","","","ECKARD,NASTASHA"
,OFFICE OF THE SPEAKER,2013Q2,PERSONNEL COMPENSATION,"","EICHHORN, JARED D",04/01/13,06/30/13,FLOOR ASSISTANT,"13,000.00",2013,"","","","EICHHORN, JARED D"
,OFFICE OF THE SPEAKER,2013Q2,PERSONNEL COMPENSATION,"","EMBLER, ELIZABETH G",04/01/13,06/30/13,DIRECTOR OF ADVANCE,"18,725.01",2013,"","","","EMBLER, ELIZABETH G"
,OFFICE OF THE SPEAKER,2013Q2,PERSONNEL COMPENSATION,"","FINNEGAN,PATRICK",04/01/13,06/30/13,SPECIAL ASSISTANT TO THE SPEAK,"10,749.99",2013,"","","","FINNEGAN,PATRICK"
,OFFICE OF THE SPEAKER,2013Q2,PERSONNEL COMPENSATION,"","FRANKS,JESSICA L",05/13/13,06/30/13,STAFF ASSISTANT,"4,000.00",2013,"","","","FRANKS,JESSICA L"
,OFFICE OF THE SPEAKER,2013Q2,PERSONNEL COMPENSATION,"","FRANKS,JESSICA L",05/13/13,05/31/13,STAFF ASSISTANT (OVERTIME),183.89,2013,"","","","FRANKS,JESSICA L"
,OFFICE OF THE SPEAKER,2013Q2,PERSONNEL COMPENSATION,"","GILLESPIE,MAURA M",04/01/13,06/30/13,DEPUTY SCHEDULER,"9,999.99",2013,"","","","GILLESPIE,MAURA M"
,OFFICE OF THE SPEAKER,2013Q2,PERSONNEL COMPENSATION,"","GOLE,ALEXANDRA K",05/13/13,06/30/13,STAFF ASSISTANT,"3,733.33",2013,"","","","GOLE,ALEXANDRA K"
,OFFICE OF THE SPEAKER,2013Q2,PERSONNEL COMPENSATION,"","GREEN, JO-MARIE S",04/01/13,06/30/13,GEN COUNSEL & CHIEF OF LEG OPS,"43,125.00",2013,"","","","GREEN, JO-MARIE S"
,OFFICE OF THE SPEAKER,2013Q2,PERSONNEL COMPENSATION,"","GREENE,WILLIAM P",04/01/13,06/30/13,DIRECTOR-OUTREACH,"33,825.00",2013,"","","","GREENE,WILLIAM P"
,OFFICE OF THE SPEAKER,2013Q2,PERSONNEL COMPENSATION,"","HALEY, KATHERINE C",04/01/13,06/30/13,ASST TO SPEAKER FOR POLICY,"24,999.99",2013,"","","","HALEY, KATHERINE C"
,OFFICE OF THE SPEAKER,2013Q2,PERSONNEL COMPENSATION,"","HARROUN, TIMOTHY J",04/01/13,06/30/13,MANAGER REPUBLICAN CLOAKROOM,"33,287.49",2013,"","","","HARROUN, TIMOTHY J"
,OFFICE OF THE SPEAKER,2013Q2,PERSONNEL COMPENSATION,"","HENRIQUEZ,RAUL E",04/01/13,06/30/13,STAFF ASSISTANT,"7,500.00",2013,"","","","HENRIQUEZ,RAUL E"
,OFFICE OF THE SPEAKER,2013Q2,PERSONNEL COMPENSATION,"","HENRIQUEZ,RAUL E",03/13/13,05/31/13,STAFF ASSISTANT (OVERTIME),"1,043.86",2013,"","","","HENRIQUEZ,RAUL E"
,OFFICE OF THE SPEAKER,2013Q2,PERSONNEL COMPENSATION,"","HERRLE, CYNTHIA A",04/01/13,06/30/13,ASST TO THE SPEAKER FOR POLICY,"37,500.00",2013,"","","","HERRLE, CYNTHIA A"
,OFFICE OF THE SPEAKER,2013Q2,PERSONNEL COMPENSATION,"","IVANCIC,CHARLOTTE S",04/01/13,06/30/13,ASSIST TO SPEAKER FOR POLICY,"36,249.99",2013,"","","","IVANCIC,CHARLOTTE S"
,OFFICE OF THE SPEAKER,2013Q2,PERSONNEL COMPENSATION,"","KAMIS,KYLA M",04/01/13,04/30/13,DIRECTOR OF SPECIAL EVENTS,"4,583.33",2013,"","","","KAMIS,KYLA M"
,OFFICE OF THE SPEAKER,2013Q2,PERSONNEL COMPENSATION,"","KINZEL,WILL C",04/01/13,06/30/13,ASST TO THE SPEAKER FOR POLICY,"28,599.99",2013,"","","","KINZEL,WILL C"
,OFFICE OF THE SPEAKER,2013Q2,PERSONNEL COMPENSATION,"","KOLEGO, TREVOR W",04/01/13,06/30/13,DEPUTY DIR MEMBERS SERVICES,"32,499.99",2013,"","","","KOLEGO, TREVOR W"
,OFFICE OF THE SPEAKER,2013Q2,PERSONNEL COMPENSATION,"","LAMPERT,JUSTIN",04/01/13,06/30/13,RESEARCH ASSISTANT,"11,250.00",2013,"","","","LAMPERT,JUSTIN"
,OFFICE OF THE SPEAKER,2013Q2,PERSONNEL COMPENSATION,"","LEOPOLD,PATRICK R",04/01/13,06/30/13,SHARED EMPLOYEE,"20,000.01",2013,"","","","LEOPOLD,PATRICK R"
,OFFICE OF THE SPEAKER,2013Q2,PERSONNEL COMPENSATION,"","LOHMEYER,SONJA M",04/01/13,06/30/13,DIRECTOR OF PUBLIC LIAISON,"32,499.99",2013,"","","","LOHMEYER,SONJA M"
,OFFICE OF THE SPEAKER,2013Q2,PERSONNEL COMPENSATION,"","LOPER,BRETT S",04/01/13,06/30/13,DEPUTY CHIEF OF STAFF,"43,125.00",2013,"","","","LOPER,BRETT S"
,OFFICE OF THE SPEAKER,2013Q2,PERSONNEL COMPENSATION,"","LOZUPONE, AMY S",04/01/13,06/30/13,DIRECTOR OF ADMIN OPERATIONS,"41,500.00",2013,"","","","LOZUPONE, AMY S"
,OFFICE OF THE SPEAKER,2013Q2,PERSONNEL COMPENSATION,"","LUKEMAN,KATHERINE A",04/01/13,06/30/13,ASSIST TO THE SPEAKER F/POLICY,"22,125.00",2013,"","","","LUKEMAN,KATHERINE A"
,OFFICE OF THE SPEAKER,2013Q2,PERSONNEL COMPENSATION,"","MACDONALD, B",04/01/13,06/30/13,SHARED EMPLOYEE,"20,000.01",2013,"","","","MACDONALD, B"
,OFFICE OF THE SPEAKER,2013Q2,PERSONNEL COMPENSATION,"","MILLER,WILLIAM",04/01/13,06/30/13,STAFF ASSISTANT,"8,000.01",2013,"","","","MILLER,WILLIAM"
,OFFICE OF THE SPEAKER,2013Q2,PERSONNEL COMPENSATION,"","MILLER,WILLIAM",03/01/13,05/31/13,STAFF ASSISTANT (OVERTIME),"1,649.98",2013,"","","","MILLER,WILLIAM"
,OFFICE OF THE SPEAKER,2013Q2,PERSONNEL COMPENSATION,"","MINKLER,ANN W",04/01/13,06/30/13,FLOOR ASSISTANT,"9,083.33",2013,"","","","MINKLER,ANN W"
,OFFICE OF THE SPEAKER,2013Q2,PERSONNEL COMPENSATION,"","PROPP,ELIZABETH R",04/01/13,06/30/13,DEPUTY PRESS SECRETARY,"14,250.00",2013,"","","","PROPP,ELIZABETH R"
,OFFICE OF THE SPEAKER,2013Q2,PERSONNEL COMPENSATION,"","RATCLIFFE,RAMSEY E",04/01/13,06/30/13,SPECIAL EVENTS ASSISTANT,"8,916.67",2013,"","","","RATCLIFFE,RAMSEY E"
,OFFICE OF THE SPEAKER,2013Q2,PERSONNEL COMPENSATION,"","REED, HEATHER E",04/01/13,06/30/13,ASSISTANT PRESS SECRETARY,"11,250.00",2013,"","","","REED, HEATHER E"
,OFFICE OF THE SPEAKER,2013Q2,PERSONNEL COMPENSATION,"","REED, MARY K",04/01/13,04/29/13,STAFF ASSISTANT (OTHER COMPENSATION),84.23,2013,"","","","REED, MARY K"
,OFFICE OF THE SPEAKER,2013Q2,PERSONNEL COMPENSATION,"","RENZ, BRANDON",04/01/13,06/30/13,SHARED EMPLOYEE,"20,000.01",2013,"","","","RENZ, BRANDON"
,OFFICE OF THE SPEAKER,2013Q2,PERSONNEL COMPENSATION,"","RICCI,MICHAEL",04/01/13,06/30/13,DIRECTOR OF SPEECHWRITING,"34,500.00",2013,"","","","RICCI,MICHAEL"
,OFFICE OF THE SPEAKER,2013Q2,PERSONNEL COMPENSATION,"","SAGER,MICHAEL J",04/01/13,06/30/13,SYSTEMS ADMINISTRATOR,"20,000.01",2013,"","","","SAGER,MICHAEL J"
,OFFICE OF THE SPEAKER,2013Q2,PERSONNEL COMPENSATION,"","SCHNITTGER, DAVID M",04/01/13,06/30/13,DEPUTY CHIEF OF STAFF,"43,125.00",2013,"","","","SCHNITTGER, DAVID M"
,OFFICE OF THE SPEAKER,2013Q2,PERSONNEL COMPENSATION,"","SEYMOUR JR, DONALD P",04/01/13,06/30/13,DIGITAL COMMUNICATIONS DIRECTO,"36,500.01",2013,"","","","SEYMOUR JR, DONALD P"
,OFFICE OF THE SPEAKER,2013Q2,PERSONNEL COMPENSATION,"","SMITH, KEVIN",04/01/13,06/30/13,DIRECTOR OF COMMUNICATIONS,"38,874.99",2013,"","","","SMITH, KEVIN"
,OFFICE OF THE SPEAKER,2013Q2,PERSONNEL COMPENSATION,"","SOMMERS, MICHAEL J",04/01/13,06/30/13,CHIEF OF STAFF,"43,125.00",2013,"","","","SOMMERS, MICHAEL J"
,OFFICE OF THE SPEAKER,2013Q2,PERSONNEL COMPENSATION,"","STEEL, MICHAEL",04/01/13,06/30/13,PRESS SECRETARY,"37,500.00",2013,"","","","STEEL, MICHAEL"
,OFFICE OF THE SPEAKER,2013Q2,PERSONNEL COMPENSATION,"","STEWART, DAVID B",04/01/13,06/30/13,ASST TO SPEAKER FOR POLICY,"41,250.00",2013,"","","","STEWART, DAVID B"
,OFFICE OF THE SPEAKER,2013Q2,PERSONNEL COMPENSATION,"","STEWART, JENNIFER M",04/01/13,06/30/13,ASST TO SPEAKER FOR POLICY,"27,500.01",2013,"","","","STEWART, JENNIFER M"
,OFFICE OF THE SPEAKER,2013Q2,PERSONNEL COMPENSATION,"","STRUNK, LYDIA",04/01/13,06/30/13,DEPUTY FLOOR DIRECTOR,"24,999.99",2013,"","","","STRUNK, LYDIA"
,OFFICE OF THE SPEAKER,2013Q2,PERSONNEL COMPENSATION,"","SWANSON,RANDY A",04/01/13,06/30/13,SHARED EMPLOYEE,"20,000.01",2013,"","","","SWANSON,RANDY A"
,OFFICE OF THE SPEAKER,2013Q2,PERSONNEL COMPENSATION,"","THORSEN, ANNE B",04/01/13,06/30/13,FLOOR DIRECTOR,"41,250.00",2013,"","","","THORSEN, ANNE B"
,OFFICE OF THE SPEAKER,2013Q2,PERSONNEL COMPENSATION,"","WELLINGTON III,EDMUND",05/13/13,06/30/13,STAFF ASSISTANT,"3,733.33",2013,"","","","WELLINGTON III,EDMUND"
,OFFICE OF THE SPEAKER,2013Q2,PERSONNEL COMPENSATION,"","WORTH,BRIAN A",04/01/13,06/30/13,SHARED EMPLOYEE,"24,999.99",2013,"","","","WORTH,BRIAN A"
,OFFICE OF THE SPEAKER,2013Q2,TRAVEL,04-03,"REED, HEATHER",03/01/13,03/04/13,COMMERCIAL TRANSPORTATION,405.80,2013,AP,Accounts payable,00657407,"REED, HEATHER"
,OFFICE OF THE SPEAKER,2013Q2,TRAVEL,04-03,"REED, HEATHER",03/04/13,03/04/13,COMMERCIAL TRANSPORTATION,25.00,2013,AP,Accounts payable,00657411,"REED, HEATHER"
,OFFICE OF THE SPEAKER,2013Q2,TRAVEL,04-03,"SMITH, KEVIN",02/22/13,03/08/13,TAXI/PARKING/TOLLS,46.00,2013,AP,Accounts payable,00657426,"SMITH, KEVIN"
,OFFICE OF THE SPEAKER,2013Q2,TRAVEL,04-03,"ANDREWS,THOMAS S",02/11/13,02/11/13,TAXI/PARKING/TOLLS,10.00,2013,AP,Accounts payable,00657435,"ANDREWS,THOMAS S"
,OFFICE OF THE SPEAKER,2013Q2,TRAVEL,04-03,"LOZUPONE, AMY S",02/11/13,03/11/13,TAXI/PARKING/TOLLS,40.00,2013,AP,Accounts payable,00657443,"LOZUPONE, AMY S"
,OFFICE OF THE SPEAKER,2013Q2,TRAVEL,04-03,"SOMMERS,MICHAEL",01/07/13,02/22/13,TAXI/PARKING/TOLLS,84.00,2013,AP,Accounts payable,00657450,"SOMMERS,MICHAEL"
,OFFICE OF THE SPEAKER,2013Q2,TRAVEL,04-04,"REED, HEATHER",03/02/13,03/02/13,PRIVATE AUTO MILEAGE,84.75,2013,AP,Accounts payable,00657415,"REED, HEATHER"
,OFFICE OF THE SPEAKER,2013Q2,TRAVEL,05-13,"GREENE,WILLIAM P",01/02/13,04/17/13,TAXI/PARKING/TOLLS,110.00,2013,AP,Accounts payable,E0013988,"GREENE,WILLIAM P"
,OFFICE OF THE SPEAKER,2013Q2,TRAVEL,05-13,"HALEY, KATHERINE C",01/08/13,04/01/13,TAXI/PARKING/TOLLS,190.39,2013,AP,Accounts payable,E0013991,"HALEY, KATHERINE C"
,OFFICE OF THE SPEAKER,2013Q2,"RENT, COMMUNICATION, UTILITIES",05-14,POSTMASTER WASHINGTON DC,03/18/13,03/18/13,POSTAGE / COURIER / BOX RENTAL,74.80,2013,AP,Accounts payable,E0006676,POSTMASTER WASHINGTON DC
,OFFICE OF THE SPEAKER,2013Q2,PRINTING AND REPRODUCTION,04-25,"",04/01/13,04/30/13,PHOTOGRAPHIC (TRANSFER),399.22,2013,GL,General ledger,PIX0028644,""
,OFFICE OF THE SPEAKER,2013Q2,PRINTING AND REPRODUCTION,05-24,"",05/01/13,05/31/13,PHOTOGRAPHIC (TRANSFER),49.50,2013,GL,General ledger,PIX0029520,""
,OFFICE OF THE SPEAKER,2013Q2,PRINTING AND REPRODUCTION,06-25,"",06/01/13,06/30/13,PHOTOGRAPHIC (TRANSFER),375.40,2013,GL,General ledger,PIX0030393,""
,OFFICE OF THE SPEAKER,2013Q2,OTHER SERVICES,04-19,LEARNING TREE INTERNATIONAL,04/11/13,09/06/13,TRAINING,"11,375.00",2013,AP,Accounts payable,E0004274,LEARNING TREE INTERNATIONAL
,OFFICE OF THE SPEAKER,2013Q2,SUPPLIES AND MATERIALS,04-03,COCA-COLA ENTERPRISES,03/12/13,03/12/13,FOOD & BEVERAGE,164.16,2013,AP,Accounts payable,00657399,COCA-COLA ENTERPRISES
,OFFICE OF THE SPEAKER,2013Q2,SUPPLIES AND MATERIALS,04-03,LEADERSHIP DIRECTORIES INC,06/01/13,03/01/14,PUBLICATIONS/REFERENCE MAT'L,566.00,2013,AP,Accounts payable,00657457,LEADERSHIP DIRECTORIES INC
,OFFICE OF THE SPEAKER,2013Q2,SUPPLIES AND MATERIALS,04-03,LEADERSHIP DIRECTORIES INC,06/01/13,03/01/14,PUBLICATIONS/REFERENCE MAT'L,566.00,2013,AP,Accounts payable,00657462,LEADERSHIP DIRECTORIES INC
,OFFICE OF THE SPEAKER,2013Q2,SUPPLIES AND MATERIALS,04-03,LEADERSHIP DIRECTORIES INC,06/01/13,03/01/14,PUBLICATIONS/REFERENCE MAT'L,566.00,2013,AP,Accounts payable,00657468,LEADERSHIP DIRECTORIES INC
,OFFICE OF THE SPEAKER,2013Q2,SUPPLIES AND MATERIALS,04-03,LEADERSHIP DIRECTORIES INC,06/01/13,03/01/14,PUBLICATIONS/REFERENCE MAT'L,566.00,2013,AP,Accounts payable,00657473,LEADERSHIP DIRECTORIES INC
,OFFICE OF THE SPEAKER,2013Q2,SUPPLIES AND MATERIALS,04-03,LEXIS-NEXIS,05/01/13,03/30/14,PUBLICATIONS/REFERENCE MAT'L,"9,120.00",2013,AP,Accounts payable,00657477,LEXIS-NEXIS
,OFFICE OF THE SPEAKER,2013Q2,SUPPLIES AND MATERIALS,04-03,COCA-COLA REFRESHMENTS,03/19/13,03/19/13,FOOD & BEVERAGE,108.00,2013,AP,Accounts payable,00657481,COCA-COLA REFRESHMENTS
,OFFICE OF THE SPEAKER,2013Q2,SUPPLIES AND MATERIALS,04-18,CITI PCARD-CAPITOL HOST (RIDGEWEL,03/01/13,03/28/13,FOOD & BEVERAGE,105.00,2013,AP,Accounts payable,00664378,CITI PCARD-CAPITOL HOST (RIDGEWEL
,OFFICE OF THE SPEAKER,2013Q2,SUPPLIES AND MATERIALS,04-18,CITI PCARD-CORNER BAKERY,03/01/13,03/28/13,FOOD & BEVERAGE,"1,069.65",2013,AP,Accounts payable,00664378,CITI PCARD-CORNER BAKERY
,OFFICE OF THE SPEAKER,2013Q2,SUPPLIES AND MATERIALS,04-18,CITI PCARD-ELI S RESTAURANT,03/01/13,03/28/13,FOOD & BEVERAGE,357.72,2013,AP,Accounts payable,00664378,CITI PCARD-ELI S RESTAURANT
,OFFICE OF THE SPEAKER,2013Q2,SUPPLIES AND MATERIALS,04-18,CITI PCARD-FIREHOOK - CAPITOL HIL,03/01/13,03/28/13,FOOD & BEVERAGE,39.15,2013,AP,Accounts payable,00664378,CITI PCARD-FIREHOOK - CAPITOL HIL
,OFFICE OF THE SPEAKER,2013Q2,SUPPLIES AND MATERIALS,04-18,CITI PCARD-PF CHANGS,03/01/13,03/28/13,FOOD & BEVERAGE,320.68,2013,AP,Accounts payable,00664378,CITI PCARD-PF CHANGS
,OFFICE OF THE SPEAKER,2013Q2,SUPPLIES AND MATERIALS,04-18,CITI PCARD-PORT OF PIRAEUS III,03/01/13,03/28/13,FOOD & BEVERAGE,653.40,2013,AP,Accounts payable,00664378,CITI PCARD-PORT OF PIRAEUS III
,OFFICE OF THE SPEAKER,2013Q2,SUPPLIES AND MATERIALS,04-18,CITI PCARD-WHOLEFDS PST,03/01/13,03/28/13,FOOD & BEVERAGE,258.05,2013,AP,Accounts payable,00664378,CITI PCARD-WHOLEFDS PST
,OFFICE OF THE SPEAKER,2013Q2,SUPPLIES AND MATERIALS,04-19,COCA-COLA REFRESHMENTS,04/02/13,04/02/13,FOOD & BEVERAGE,108.00,2013,AP,Accounts payable,E0004270,COCA-COLA REFRESHMENTS
,OFFICE OF THE SPEAKER,2013Q2,SUPPLIES AND MATERIALS,04-19,HAGUE QUALITY WATER OF MD INC,04/01/13,04/30/13,WATER,252.00,2013,AP,Accounts payable,E0004271,HAGUE QUALITY WATER OF MD INC
,OFFICE OF THE SPEAKER,2013Q2,SUPPLIES AND MATERIALS,04-19,LEADERSHIP DIRECTORIES INC,06/01/13,03/01/14,PUBLICATIONS/REFERENCE MAT'L,566.00,2013,AP,Accounts payable,E0004273,LEADERSHIP DIRECTORIES INC
,OFFICE OF THE SPEAKER,2013Q2,SUPPLIES AND MATERIALS,04-29,JOE RAGAN'S COFFEE LTD,03/14/13,03/14/13,FOOD & BEVERAGE,480.39,2013,AP,Accounts payable,E0007672,JOE RAGAN'S COFFEE LTD
,OFFICE OF THE SPEAKER,2013Q2,SUPPLIES AND MATERIALS,04-29,JOE RAGAN'S COFFEE LTD,03/05/13,03/05/13,FOOD & BEVERAGE,620.95,2013,AP,Accounts payable,E0007675,JOE RAGAN'S COFFEE LTD
,OFFICE OF THE SPEAKER,2013Q2,SUPPLIES AND MATERIALS,04-30,CITIBANK P CARD,01/03/13,01/28/13,FOOD & BEVERAGE,"8,170.55",2013,AP,Accounts payable,00636390,CITIBANK P CARD
,OFFICE OF THE SPEAKER,2013Q2,SUPPLIES AND MATERIALS,04-30,JOE RAGAN'S COFFEE LTD,03/29/13,03/29/13,FOOD & BEVERAGE,299.95,2013,AP,Accounts payable,E0007674,JOE RAGAN'S COFFEE LTD
,OFFICE OF THE SPEAKER,2013Q2,SUPPLIES AND MATERIALS,05-01,CITIBANK P CARD,01/29/13,02/28/13,FOOD & BEVERAGE,"6,202.83",2013,AP,Accounts payable,00665122,CITIBANK P CARD
,OFFICE OF THE SPEAKER,2013Q2,SUPPLIES AND MATERIALS,05-10,HAGUE QUALITY WATER OF MD INC,05/04/13,06/03/13,WATER,252.00,2013,AP,Accounts payable,E0014176,HAGUE QUALITY WATER OF MD INC
,OFFICE OF THE SPEAKER,2013Q2,SUPPLIES AND MATERIALS,05-13,JOE RAGAN'S COFFEE LTD,04/09/13,04/09/13,FOOD & BEVERAGE,422.63,2013,AP,Accounts payable,E0013989,JOE RAGAN'S COFFEE LTD
,OFFICE OF THE SPEAKER,2013Q2,SUPPLIES AND MATERIALS,05-13,JOE RAGAN'S COFFEE LTD,04/16/13,04/16/13,WATER,151.75,2013,AP,Accounts payable,E0013990,JOE RAGAN'S COFFEE LTD
,OFFICE OF THE SPEAKER,2013Q2,SUPPLIES AND MATERIALS,05-13,COCA-COLA REFRESHMENTS,04/23/13,04/23/13,FOOD & BEVERAGE,168.48,2013,AP,Accounts payable,E0013992,COCA-COLA REFRESHMENTS
,OFFICE OF THE SPEAKER,2013Q2,SUPPLIES AND MATERIALS,05-13,"LOHMEYER, SONJA M",04/16/13,04/16/13,FOOD & BEVERAGE,50.00,2013,AP,Accounts payable,E0013993,"LOHMEYER, SONJA M"
,OFFICE OF THE SPEAKER,2013Q2,SUPPLIES AND MATERIALS,05-13,"BLAKE, KRISTENE",04/19/13,04/19/13,FOOD & BEVERAGE,29.82,2013,AP,Accounts payable,E0013995,"BLAKE, KRISTENE"
,OFFICE OF THE SPEAKER,2013Q2,SUPPLIES AND MATERIALS,05-13,JOE RAGAN'S COFFEE LTD,04/02/13,04/02/13,FOOD & BEVERAGE,342.18,2013,AP,Accounts payable,E0013996,JOE RAGAN'S COFFEE LTD
,OFFICE OF THE SPEAKER,2013Q2,SUPPLIES AND MATERIALS,05-13,JOE RAGAN'S COFFEE LTD,04/24/13,04/24/13,FOOD & BEVERAGE,563.81,2013,AP,Accounts payable,E0014177,JOE RAGAN'S COFFEE LTD
,OFFICE OF THE SPEAKER,2013Q2,SUPPLIES AND MATERIALS,05-13,JOE RAGAN'S COFFEE LTD,04/17/13,04/17/13,FOOD & BEVERAGE,680.15,2013,AP,Accounts payable,E0014180,JOE RAGAN'S COFFEE LTD
,OFFICE OF THE SPEAKER,2013Q2,SUPPLIES AND MATERIALS,05-16,JOE RAGAN'S COFFEE LTD,03/21/13,03/21/13,FOOD & BEVERAGE,561.91,2013,AP,Accounts payable,00667393,JOE RAGAN'S COFFEE LTD
,OFFICE OF THE SPEAKER,2013Q2,SUPPLIES AND MATERIALS,05-21,CITI PCARD-ARTISTIC FRAMING,03/29/13,04/28/13,HABITATION EXPENSE,364.00,2013,AP,Accounts payable,00669866,CITI PCARD-ARTISTIC FRAMING
,OFFICE OF THE SPEAKER,2013Q2,SUPPLIES AND MATERIALS,05-21,CITI PCARD-CAPITOL HOST,03/29/13,04/28/13,FOOD & BEVERAGE,105.00,2013,AP,Accounts payable,00669866,CITI PCARD-CAPITOL HOST
,OFFICE OF THE SPEAKER,2013Q2,SUPPLIES AND MATERIALS,05-21,CITI PCARD-FIREHOOK,03/29/13,04/28/13,FOOD & BEVERAGE,593.10,2013,AP,Accounts payable,00669866,CITI PCARD-FIREHOOK
,OFFICE OF THE SPEAKER,2013Q2,SUPPLIES AND MATERIALS,05-21,CITI PCARD-PF CHANGS,03/29/13,04/28/13,FOOD & BEVERAGE,502.49,2013,AP,Accounts payable,00669866,CITI PCARD-PF CHANGS
,OFFICE OF THE SPEAKER,2013Q2,SUPPLIES AND MATERIALS,05-21,CITI PCARD-PORT OF PIRAEUS II,03/29/13,04/28/13,FOOD & BEVERAGE,"1,443.10",2013,AP,Accounts payable,00669866,CITI PCARD-PORT OF PIRAEUS II
,OFFICE OF THE SPEAKER,2013Q2,SUPPLIES AND MATERIALS,05-21,CITI PCARD-TAYLOR GOURMET 1116H L,03/29/13,04/28/13,FOOD & BEVERAGE,255.75,2013,AP,Accounts payable,00669866,CITI PCARD-TAYLOR GOURMET 1116H L
,OFFICE OF THE SPEAKER,2013Q2,SUPPLIES AND MATERIALS,05-21,CITI PCARD-WHOLEFDS PST,03/29/13,04/28/13,FOOD & BEVERAGE,131.94,2013,AP,Accounts payable,00669866,CITI PCARD-WHOLEFDS PST
,OFFICE OF THE SPEAKER,2013Q2,SUPPLIES AND MATERIALS,06-06,COCA-COLA REFRESHMENTS,05/21/13,05/21/13,FOOD & BEVERAGE,242.64,2013,AP,Accounts payable,E0024961,COCA-COLA REFRESHMENTS
,OFFICE OF THE SPEAKER,2013Q2,SUPPLIES AND MATERIALS,06-06,JOE RAGAN'S COFFEE LTD,05/24/13,05/24/13,FOOD & BEVERAGE,623.74,2013,AP,Accounts payable,E0024962,JOE RAGAN'S COFFEE LTD
,OFFICE OF THE SPEAKER,2013Q2,SUPPLIES AND MATERIALS,06-06,COCA-COLA REFRESHMENTS,05/29/13,05/29/13,FOOD & BEVERAGE,167.04,2013,AP,Accounts payable,E0024964,COCA-COLA REFRESHMENTS
,OFFICE OF THE SPEAKER,2013Q2,SUPPLIES AND MATERIALS,06-06,JOE RAGAN'S COFFEE LTD,05/10/13,05/10/13,FOOD & BEVERAGE,596.25,2013,AP,Accounts payable,E0024965,JOE RAGAN'S COFFEE LTD
,OFFICE OF THE SPEAKER,2013Q2,SUPPLIES AND MATERIALS,06-06,COCA-COLA REFRESHMENTS,06/04/13,06/04/13,FOOD & BEVERAGE,185.76,2013,AP,Accounts payable,E0024966,COCA-COLA REFRESHMENTS
,OFFICE OF THE SPEAKER,2013Q2,SUPPLIES AND MATERIALS,06-06,HAGUE QUALITY WATER OF MD INC,06/01/13,06/30/13,WATER,315.00,2013,AP,Accounts payable,E0024967,HAGUE QUALITY WATER OF MD INC
,OFFICE OF THE SPEAKER,2013Q2,SUPPLIES AND MATERIALS,06-06,JOE RAGAN'S COFFEE LTD,05/03/13,05/03/13,FOOD & BEVERAGE,946.92,2013,AP,Accounts payable,E0024968,JOE RAGAN'S COFFEE LTD
,OFFICE OF THE SPEAKER,2013Q2,SUPPLIES AND MATERIALS,06-06,JOE RAGAN'S COFFEE LTD,05/24/13,05/24/13,FOOD & BEVERAGE,623.74,2013,AP,Accounts payable,E0024969,JOE RAGAN'S COFFEE LTD
,OFFICE OF THE SPEAKER,2013Q2,SUPPLIES AND MATERIALS,06-06,HAGUE QUALITY WATER OF MD INC,05/15/13,05/30/13,WATER,106.50,2013,AP,Accounts payable,E0024970,HAGUE QUALITY WATER OF MD INC
,OFFICE OF THE SPEAKER,2013Q2,SUPPLIES AND MATERIALS,06-06,JOE RAGAN'S COFFEE LTD,05/17/13,05/17/13,FOOD & BEVERAGE,335.24,2013,AP,Accounts payable,E0024971,JOE RAGAN'S COFFEE LTD
,OFFICE OF THE SPEAKER,2013Q2,SUPPLIES AND MATERIALS,06-18,"BLAKE, KRISTENE",06/05/13,06/05/13,FOOD & BEVERAGE,9.57,2013,AP,Accounts payable,E0029294,"BLAKE, KRISTENE"
,OFFICE OF THE SPEAKER,2013Q2,SUPPLIES AND MATERIALS,06-20,CITI PCARD-CAPITOL HOST,04/29/13,05/28/13,FOOD & BEVERAGE,105.00,2013,AP,Accounts payable,00675033,CITI PCARD-CAPITOL HOST
,OFFICE OF THE SPEAKER,2013Q2,SUPPLIES AND MATERIALS,06-20,CITI PCARD-CORNER BAKERY,04/29/13,05/28/13,FOOD & BEVERAGE,735.00,2013,AP,Accounts payable,00675033,CITI PCARD-CORNER BAKERY
,OFFICE OF THE SPEAKER,2013Q2,SUPPLIES AND MATERIALS,06-20,CITI PCARD-FIREHOOK - CAPITOL HIL,04/29/13,05/28/13,FOOD & BEVERAGE,65.00,2013,AP,Accounts payable,00675033,CITI PCARD-FIREHOOK - CAPITOL HIL
,OFFICE OF THE SPEAKER,2013Q2,SUPPLIES AND MATERIALS,06-20,CITI PCARD-PORT OF PIRAEUS III,04/29/13,05/28/13,FOOD & BEVERAGE,207.79,2013,AP,Accounts payable,00675033,CITI PCARD-PORT OF PIRAEUS III
,OFFICE OF THE SPEAKER,2013Q2,SUPPLIES AND MATERIALS,06-20,CITI PCARD-WHOLEFDS,04/29/13,05/28/13,FOOD & BEVERAGE,217.96,2013,AP,Accounts payable,00675033,CITI PCARD-WHOLEFDS
,OFFICE OF THE SPEAKER,2013Q2,SUPPLIES AND MATERIALS,06-26,AMARYLLIS INC,06/13/13,06/13/13,HABITATION EXPENSE,565.00,2013,AP,Accounts payable,E0032468,AMARYLLIS INC
,OFFICE OF THE SPEAKER,2013Q2,SUPPLIES AND MATERIALS,06-26,COCA-COLA REFRESHMENTS,06/18/13,06/18/13,FOOD & BEVERAGE,167.04,2013,AP,Accounts payable,E0032472,COCA-COLA REFRESHMENTS
,OFFICE OF THE SPEAKER,2013Q2,SUPPLIES AND MATERIALS,06-26,AMARYLLIS INC,06/19/13,06/19/13,HABITATION EXPENSE,315.00,2013,AP,Accounts payable,E0032475,AMARYLLIS INC
,OFFICE OF THE SPEAKER,2013Q2,SUPPLIES AND MATERIALS,04-29,JOE RAGAN'S COFFEE LTD,03/21/13,03/21/13,FOOD & BEVERAGE,561.91,2012,AP,Accounts payable,E0007673,JOE RAGAN'S COFFEE LTD
,OFFICE OF THE SPEAKER,2013Q2,SUPPLIES AND MATERIALS,05-16,JOE RAGAN'S COFFEE LTD,03/21/13,03/21/13,FOOD & BEVERAGE,-561.91,2012,AP,Accounts payable,00667393,JOE RAGAN'S COFFEE LTD
,OFFICE OF THE MAJORITY LEADER,2013Q2,PERSONNEL COMPENSATION,"","BARRERA,AMY D",04/01/13,06/30/13,DIRECTOR OF ADMINISTRATION,"15,375.00",2013,"","","","BARRERA,AMY D"
,OFFICE OF THE MAJORITY LEADER,2013Q2,PERSONNEL COMPENSATION,"","BORDEN III, R C",04/01/13,06/30/13,SHARED EMPLOYEE,300.00,2013,"","","","BORDEN III, R C"
,OFFICE OF THE MAJORITY LEADER,2013Q2,PERSONNEL COMPENSATION,"","BRADLEY, NEIL L",04/01/13,06/30/13,DEPUTY CHEIF OF STAFF,"43,125.00",2013,"","","","BRADLEY, NEIL L"
,OFFICE OF THE MAJORITY LEADER,2013Q2,PERSONNEL COMPENSATION,"","CHRISTENSEN, AUTUMN",04/01/13,06/30/13,SHARED EMPLOYEE,"3,000.00",2013,"","","","CHRISTENSEN, AUTUMN"
,OFFICE OF THE MAJORITY LEADER,2013Q2,PERSONNEL COMPENSATION,"","COOPER,RORY S",04/01/13,06/30/13,DIRECTOR OF COMMUNICATIONS,"36,249.99",2013,"","","","COOPER,RORY S"
,OFFICE OF THE MAJORITY LEADER,2013Q2,PERSONNEL COMPENSATION,"","CUMMINGS,TIMOTHY P",04/01/13,06/30/13,STAFF ASSISTANT,"6,500.01",2013,"","","","CUMMINGS,TIMOTHY P"
,OFFICE OF THE MAJORITY LEADER,2013Q2,PERSONNEL COMPENSATION,"","CUTLER,AARON",04/01/13,06/30/13,SR. ADV FOR POLICY & OUTREACH,"31,750.01",2013,"","","","CUTLER,AARON"
,OFFICE OF THE MAJORITY LEADER,2013Q2,PERSONNEL COMPENSATION,"","EDWARDS,SPENCER M",06/03/13,06/30/13,STAFF ASSISTANT,"1,866.67",2013,"","","","EDWARDS,SPENCER M"
,OFFICE OF THE MAJORITY LEADER,2013Q2,PERSONNEL COMPENSATION,"","FARRAR,KATHARINE D",04/01/13,05/31/13,STAFF ASSISTANT,"3,177.78",2013,"","","","FARRAR,KATHARINE D"
,OFFICE OF THE MAJORITY LEADER,2013Q2,PERSONNEL COMPENSATION,"","GUSTAFSON,NICOLE M",04/01/13,06/30/13,POLICY ADVISOR/COUNSEL,"13,749.99",2013,"","","","GUSTAFSON,NICOLE M"
,OFFICE OF THE MAJORITY LEADER,2013Q2,PERSONNEL COMPENSATION,"","HEYE,DOUGLAS R",04/01/13,06/30/13,DEPUTY CHIEF OF STAFF-COMMUNIC,"42,000.00",2013,"","","","HEYE,DOUGLAS R"
,OFFICE OF THE MAJORITY LEADER,2013Q2,PERSONNEL COMPENSATION,"","JAEGER, CHERYL L",04/01/13,06/30/13,SENIOR POLICY ADVISOR,"22,149.99",2013,"","","","JAEGER, CHERYL L"
,OFFICE OF THE MAJORITY LEADER,2013Q2,PERSONNEL COMPENSATION,"","JOSEPH,COURTNEY E",04/01/13,06/30/13,CONGRESSIONAL STAFF,"4,749.99",2013,"","","","JOSEPH,COURTNEY E"
,OFFICE OF THE MAJORITY LEADER,2013Q2,PERSONNEL COMPENSATION,"","KAREM,ROBERT S",04/01/13,06/30/13,SENIOR POLICY ADVISOR,"31,083.34",2013,"","","","KAREM,ROBERT S"
,OFFICE OF THE MAJORITY LEADER,2013Q2,PERSONNEL COMPENSATION,"","KEECH,EMILY H",04/01/13,06/30/13,DEPUTY DIRECTOR OF MEMBER SVCS,"7,749.99",2013,"","","","KEECH,EMILY H"
,OFFICE OF THE MAJORITY LEADER,2013Q2,PERSONNEL COMPENSATION,"","KISH,SARAH M",04/01/13,06/30/13,FLOOR ASSISTANT,"13,333.33",2013,"","","","KISH,SARAH M"
,OFFICE OF THE MAJORITY LEADER,2013Q2,PERSONNEL COMPENSATION,"","MAHAN,ROGER A",04/01/13,06/30/13,POLICY ADVISOR,"15,416.67",2013,"","","","MAHAN,ROGER A"
,OFFICE OF THE MAJORITY LEADER,2013Q2,PERSONNEL COMPENSATION,"","MARCELLI,NICHOLAS G",06/17/13,06/30/13,DEPUTY DIR DIGITAL MEDIA,"1,866.67",2013,"","","","MARCELLI,NICHOLAS G"
,OFFICE OF THE MAJORITY LEADER,2013Q2,PERSONNEL COMPENSATION,"","NELSON, VALERIE S",04/01/13,06/30/13,DIR OF MEMBER SERVICES,"28,749.99",2013,"","","","NELSON, VALERIE S"
,OFFICE OF THE MAJORITY LEADER,2013Q2,PERSONNEL COMPENSATION,"","PATAKI,TIMOTHY A",05/20/13,06/30/13,FLOOR ASSISTANT,"5,125.00",2013,"","","","PATAKI,TIMOTHY A"
,OFFICE OF THE MAJORITY LEADER,2013Q2,PERSONNEL COMPENSATION,"","PATRU, KATHRYN M",06/10/13,06/30/13,DIR OF MEMBER SERVICES,"8,750.00",2013,"","","","PATRU, KATHRYN M"
,OFFICE OF THE MAJORITY LEADER,2013Q2,PERSONNEL COMPENSATION,"","STAPLETON,JOHN O",04/01/13,06/30/13,SPEECH WRITER,"13,749.99",2013,"","","","STAPLETON,JOHN O"
,OFFICE OF THE MAJORITY LEADER,2013Q2,PERSONNEL COMPENSATION,"","STEWART,WYATT A",04/02/13,06/30/13,POLICY ADVISOR,"14,833.33",2013,"","","","STEWART,WYATT A"
,OFFICE OF THE MAJORITY LEADER,2013Q2,PERSONNEL COMPENSATION,"","STOMBRES, STEVEN C",04/01/13,06/30/13,CHIEF OF STAFF,"43,125.00",2013,"","","","STOMBRES, STEVEN C"
,OFFICE OF THE MAJORITY LEADER,2013Q2,PERSONNEL COMPENSATION,"","VIESON, CHRISTOPHER W",04/01/13,06/30/13,DIRECTOR OF FLOOR OPERATIONS,"35,000.01",2013,"","","","VIESON, CHRISTOPHER W"
,OFFICE OF THE MAJORITY LEADER,2013Q2,PERSONNEL COMPENSATION,"","VILLARI,GENEVIEVE C",06/10/13,06/30/13,DEPUTY PRESS SECRETARY,"3,791.67",2013,"","","","VILLARI,GENEVIEVE C"
,OFFICE OF THE MAJORITY LEADER,2013Q2,PERSONNEL COMPENSATION,"","WALSH,WILLIAM C",04/01/13,05/31/13,DEPUTY DIR OF DIGITAL SERVICES,"6,666.66",2013,"","","","WALSH,WILLIAM C"
,OFFICE OF THE MAJORITY LEADER,2013Q2,PERSONNEL COMPENSATION,"","WALSH,WILLIAM C",06/01/13,06/30/13,DIRECTOR DIGITAL MEDIA,"4,500.00",2013,"","","","WALSH,WILLIAM C"
,OFFICE OF THE MAJORITY LEADER,2013Q2,PERSONNEL COMPENSATION,"","WILLIAMS, KELLY K",04/01/13,06/30/13,DIR OF PROTOCOL & OPERATIONS,"9,500.01",2013,"","","","WILLIAMS, KELLY K"
,OFFICE OF THE MAJORITY LEADER,2013Q2,PERSONNEL COMPENSATION,"","ZACKON,MATTHEW R",04/01/13,06/30/13,SPECIAL ASSISTANT,"6,249.99",2013,"","","","ZACKON,MATTHEW R"
,OFFICE OF THE MAJORITY LEADER,2013Q2,TRAVEL,04-25,"ZACKON, MATTHEW",03/12/13,03/14/13,TAXI/PARKING/TOLLS,22.00,2013,AP,Accounts payable,E0005772,"ZACKON, MATTHEW"
,OFFICE OF THE MAJORITY LEADER,2013Q2,TRAVEL,04-26,"ZACKON, MATTHEW",04/10/13,04/17/13,TAXI/PARKING/TOLLS,32.00,2013,AP,Accounts payable,E0007568,"ZACKON, MATTHEW"
,OFFICE OF THE MAJORITY LEADER,2013Q2,TRAVEL,04-29,"KEECH, EMILY H",03/19/13,04/18/13,PRIVATE AUTO MILEAGE,38.39,2013,AP,Accounts payable,E0007564,"KEECH, EMILY H"
,OFFICE OF THE MAJORITY LEADER,2013Q2,TRAVEL,05-07,"ZACKON, MATTHEW",04/25/13,04/25/13,TAXI/PARKING/TOLLS,12.00,2013,AP,Accounts payable,E0012488,"ZACKON, MATTHEW"
,OFFICE OF THE MAJORITY LEADER,2013Q2,TRAVEL,05-31,CAPITOLHOST,04/25/13,04/25/13,MEALS,564.50,2013,AP,Accounts payable,00670383,CAPITOLHOST
,OFFICE OF THE MAJORITY LEADER,2013Q2,TRAVEL,06-05,"ZACKON, MATTHEW",05/21/13,05/21/13,TAXI/PARKING/TOLLS,15.00,2013,AP,Accounts payable,E0023573,"ZACKON, MATTHEW"
,OFFICE OF THE MAJORITY LEADER,2013Q2,TRAVEL,06-14,"ZACKON, MATTHEW",05/14/13,05/14/13,TAXI/PARKING/TOLLS,12.00,2013,AP,Accounts payable,E0028927,"ZACKON, MATTHEW"
,OFFICE OF THE MAJORITY LEADER,2013Q2,TRAVEL,06-17,"KEECH, EMILY H",04/15/13,04/24/13,TAXI/PARKING/TOLLS,41.00,2013,AP,Accounts payable,E0028926,"KEECH, EMILY H"
,OFFICE OF THE MAJORITY LEADER,2013Q2,TRAVEL,06-26,"ZACKON, MATTHEW",06/03/13,06/03/13,TAXI/PARKING/TOLLS,14.00,2013,AP,Accounts payable,E0032704,"ZACKON, MATTHEW"
,OFFICE OF THE MAJORITY LEADER,2013Q2,"RENT, COMMUNICATION, UTILITIES",06-27,"",05/01/13,05/31/13,RECORDING - (TRANSFER),35.00,2013,GL,General ledger,HRS0030465,""
,OFFICE OF THE MAJORITY LEADER,2013Q2,PRINTING AND REPRODUCTION,04-18,CITI PCARD-VIRALHEAT,03/01/13,03/28/13,ADVERTISEMENTS,29.99,2013,AP,Accounts payable,00664378,CITI PCARD-VIRALHEAT
,OFFICE OF THE MAJORITY LEADER,2013Q2,PRINTING AND REPRODUCTION,04-25,"",04/01/13,04/30/13,PHOTOGRAPHIC (TRANSFER),16.60,2013,GL,General ledger,PIX0028644,""
,OFFICE OF THE MAJORITY LEADER,2013Q2,PRINTING AND REPRODUCTION,05-24,"",05/01/13,05/31/13,PHOTOGRAPHIC (TRANSFER),58.00,2013,GL,General ledger,PIX0029520,""
,OFFICE OF THE MAJORITY LEADER,2013Q2,PRINTING AND REPRODUCTION,06-25,"",06/01/13,06/30/13,PHOTOGRAPHIC (TRANSFER),34.40,2013,GL,General ledger,PIX0030393,""
,OFFICE OF THE MAJORITY LEADER,2013Q2,PRINTING AND REPRODUCTION,06-30,CITIBANK P CARD,03/01/13,03/28/13,ADVERTISEMENTS,-29.99,2013,AP,Accounts payable,00675950,CITIBANK P CARD
,OFFICE OF THE MAJORITY LEADER,2013Q2,OTHER SERVICES,04-18,CITI PCARD-RACKSPACE CLOUD,03/01/13,03/28/13,NON-TECHNOLOGY SERVICE CONTR,179.00,2013,AP,Accounts payable,00664378,CITI PCARD-RACKSPACE CLOUD
,OFFICE OF THE MAJORITY LEADER,2013Q2,OTHER SERVICES,06-30,CITIBANK P CARD,03/01/13,03/28/13,"WEB DEV HST,EMAIL & RLTD SERV",29.99,2013,AP,Accounts payable,00675950,CITIBANK P CARD
,OFFICE OF THE MAJORITY LEADER,2013Q2,SUPPLIES AND MATERIALS,04-11,JOE RAGAN'S COFFEE LTD,03/18/13,03/18/13,FOOD & BEVERAGE,110.00,2013,AP,Accounts payable,E0002167,JOE RAGAN'S COFFEE LTD
,OFFICE OF THE MAJORITY LEADER,2013Q2,SUPPLIES AND MATERIALS,04-11,JOE RAGAN'S COFFEE LTD,03/21/13,03/21/13,FOOD & BEVERAGE,290.00,2013,AP,Accounts payable,E0002169,JOE RAGAN'S COFFEE LTD
,OFFICE OF THE MAJORITY LEADER,2013Q2,SUPPLIES AND MATERIALS,04-18,CITI PCARD-DEER PARK WATER,03/01/13,03/28/13,WATER,126.06,2013,AP,Accounts payable,00664378,CITI PCARD-DEER PARK WATER
,OFFICE OF THE MAJORITY LEADER,2013Q2,SUPPLIES AND MATERIALS,04-18,CITI PCARD-DUNKIN DONUTS COM QPS,03/01/13,03/28/13,FOOD & BEVERAGE,141.00,2013,AP,Accounts payable,00664378,CITI PCARD-DUNKIN DONUTS COM QPS
,OFFICE OF THE MAJORITY LEADER,2013Q2,SUPPLIES AND MATERIALS,04-18,CITI PCARD-NEW YORK TIMES DIGITAL,03/01/13,03/28/13,PUBLICATIONS/REFERENCE MAT'L,37.10,2013,AP,Accounts payable,00664378,CITI PCARD-NEW YORK TIMES DIGITAL
,OFFICE OF THE MAJORITY LEADER,2013Q2,SUPPLIES AND MATERIALS,04-18,CITI PCARD-SAFEWAY STORE,03/01/13,03/28/13,FOOD & BEVERAGE,525.50,2013,AP,Accounts payable,00664378,CITI PCARD-SAFEWAY STORE
,OFFICE OF THE MAJORITY LEADER,2013Q2,SUPPLIES AND MATERIALS,04-18,CITI PCARD-WME RTD PAPER SUBSCRIP,03/01/13,03/28/13,PUBLICATIONS/REFERENCE MAT'L,18.00,2013,AP,Accounts payable,00664378,CITI PCARD-WME RTD PAPER SUBSCRIP
,OFFICE OF THE MAJORITY LEADER,2013Q2,SUPPLIES AND MATERIALS,04-25,DEER PARK WATER,02/27/13,03/26/13,FOOD & BEVERAGE,386.31,2013,AP,Accounts payable,E0005765,DEER PARK WATER
,OFFICE OF THE MAJORITY LEADER,2013Q2,SUPPLIES AND MATERIALS,04-29,LEXIS-NEXIS,03/01/13,03/31/13,PUBLICATIONS/REFERENCE MAT'L,625.00,2013,AP,Accounts payable,E0007553,LEXIS-NEXIS
,OFFICE OF THE MAJORITY LEADER,2013Q2,SUPPLIES AND MATERIALS,05-20,COCA-COLA REFRESHMENTS,03/19/13,03/19/13,FOOD & BEVERAGE,145.80,2013,AP,Accounts payable,E0005768,COCA-COLA REFRESHMENTS
,OFFICE OF THE MAJORITY LEADER,2013Q2,SUPPLIES AND MATERIALS,05-20,COCA-COLA REFRESHMENTS,04/09/13,04/09/13,FOOD & BEVERAGE,252.72,2013,AP,Accounts payable,E0005768,COCA-COLA REFRESHMENTS
,OFFICE OF THE MAJORITY LEADER,2013Q2,SUPPLIES AND MATERIALS,05-21,CITI PCARD-CAPITOL HOST,03/29/13,04/28/13,FOOD & BEVERAGE,115.20,2013,AP,Accounts payable,00669866,CITI PCARD-CAPITOL HOST
,OFFICE OF THE MAJORITY LEADER,2013Q2,SUPPLIES AND MATERIALS,05-21,CITI PCARD-D J WALL ST JOURNAL,03/29/13,04/28/13,PUBLICATIONS/REFERENCE MAT'L,113.75,2013,AP,Accounts payable,00669866,CITI PCARD-D J WALL ST JOURNAL
,OFFICE OF THE MAJORITY LEADER,2013Q2,SUPPLIES AND MATERIALS,05-21,CITI PCARD-DUNKIN DONUTS COM QPS,03/29/13,04/28/13,FOOD & BEVERAGE,140.93,2013,AP,Accounts payable,00669866,CITI PCARD-DUNKIN DONUTS COM QPS
,OFFICE OF THE MAJORITY LEADER,2013Q2,SUPPLIES AND MATERIALS,05-21,CITI PCARD-NEW YORK TIMES DIGITAL,03/29/13,04/28/13,PUBLICATIONS/REFERENCE MAT'L,37.10,2013,AP,Accounts payable,00669866,CITI PCARD-NEW YORK TIMES DIGITAL
,OFFICE OF THE MAJORITY LEADER,2013Q2,SUPPLIES AND MATERIALS,05-21,CITI PCARD-SAFEWAY STORE,03/29/13,04/28/13,FOOD & BEVERAGE,625.61,2013,AP,Accounts payable,00669866,CITI PCARD-SAFEWAY STORE
,OFFICE OF THE MAJORITY LEADER,2013Q2,SUPPLIES AND MATERIALS,05-28,"",04/17/13,04/17/13,OFFICE SUPPLIES (OUTSIDE),445.48,2013,GL,General ledger,GFT0029594,""
,OFFICE OF THE MAJORITY LEADER,2013Q2,SUPPLIES AND MATERIALS,06-05,LEXIS-NEXIS,04/01/13,04/30/13,PUBLICATIONS/REFERENCE MAT'L,625.00,2013,AP,Accounts payable,E0023564,LEXIS-NEXIS
,OFFICE OF THE MAJORITY LEADER,2013Q2,SUPPLIES AND MATERIALS,06-14,JOE RAGAN'S COFFEE LTD,05/07/13,06/07/13,FOOD & BEVERAGE,200.00,2013,AP,Accounts payable,E0023561,JOE RAGAN'S COFFEE LTD
,OFFICE OF THE MAJORITY LEADER,2013Q2,SUPPLIES AND MATERIALS,06-18,NESTLE WATERS NORTH AMERICA INC,04/27/13,05/26/13,FOOD & BEVERAGE,"1,211.64",2013,AP,Accounts payable,E0029685,NESTLE WATERS NORTH AMERICA INC
,OFFICE OF THE MAJORITY LEADER,2013Q2,SUPPLIES AND MATERIALS,06-20,CITI PCARD-CORNER BAKERY,04/29/13,05/28/13,FOOD & BEVERAGE,276.00,2013,AP,Accounts payable,00675033,CITI PCARD-CORNER BAKERY
,OFFICE OF THE MAJORITY LEADER,2013Q2,SUPPLIES AND MATERIALS,06-20,CITI PCARD-NEW YORK TIMES DIGITAL,04/29/13,05/28/13,PUBLICATIONS/REFERENCE MAT'L,74.20,2013,AP,Accounts payable,00675033,CITI PCARD-NEW YORK TIMES DIGITAL
,OFFICE OF THE MAJORITY LEADER,2013Q2,SUPPLIES AND MATERIALS,06-20,CITI PCARD-SAFEWAY STORE,04/29/13,05/28/13,FOOD & BEVERAGE,297.14,2013,AP,Accounts payable,00675033,CITI PCARD-SAFEWAY STORE
,OFFICE OF THE MAJORITY LEADER,2013Q2,SUPPLIES AND MATERIALS,06-20,CITI PCARD-WME RTD PAPER SUBSCRIP,04/29/13,05/28/13,PUBLICATIONS/REFERENCE MAT'L,18.00,2013,AP,Accounts payable,00675033,CITI PCARD-WME RTD PAPER SUBSCRIP
,OFFICE OF THE MINORITY LEADER,2013Q2,SUPPLIES AND MATERIALS,06-28,OCCASIONS CATERERS,05/16/13,05/16/13,FOOD & BEVERAGE,670.00,2013,AP,Accounts payable,E0033527,OCCASIONS CATERERS
,OFFICE OF THE MINORITY LEADER,2013Q2,PERSONNEL COMPENSATION,"","ABOUCHAR, KEITH S",04/01/13,06/30/13,SENIOR POLICY ADVISOR,"32,700.00",2013,"","","","ABOUCHAR, KEITH S"
,OFFICE OF THE MINORITY LEADER,2013Q2,PERSONNEL COMPENSATION,"","AGUILAR,JORGE A",05/01/13,06/30/13,PRESS ASSISTANT,"4,666.66",2013,"","","","AGUILAR,JORGE A"
,OFFICE OF THE MINORITY LEADER,2013Q2,PERSONNEL COMPENSATION,"","AGUILAR,JORGE A",05/01/13,05/30/13,PRESS ASSISTANT (OVERTIME),"1,297.34",2013,"","","","AGUILAR,JORGE A"
,OFFICE OF THE MINORITY LEADER,2013Q2,PERSONNEL COMPENSATION,"","BARRY,MARY K",04/01/13,06/30/13,DEPUTY DIRECTOR OF ADVANCE,"18,750.00",2013,"","","","BARRY,MARY K"
,OFFICE OF THE MINORITY LEADER,2013Q2,PERSONNEL COMPENSATION,"","BLOOM, MICHAEL T",04/01/13,06/30/13,DEPUTY POLICY DIRECTOR,"23,113.58",2013,"","","","BLOOM, MICHAEL T"
,OFFICE OF THE MINORITY LEADER,2013Q2,PERSONNEL COMPENSATION,"","CAPRON, MARGARET W",04/01/13,06/30/13,SENIOR ADV POLICY & COMM,"31,924.26",2013,"","","","CAPRON, MARGARET W"
,OFFICE OF THE MINORITY LEADER,2013Q2,PERSONNEL COMPENSATION,"","CASHMAN,MARY D",04/01/13,06/30/13,ASST TO THE CHIEF OF STAFF,"18,000.00",2013,"","","","CASHMAN,MARY D"
,OFFICE OF THE MINORITY LEADER,2013Q2,PERSONNEL COMPENSATION,"","CASHMAN,MARY D",06/01/13,06/30/13,ASST TO THE CHIEF OF STAFF (OTHER COMPENSATION),"6,000.00",2013,"","","","CASHMAN,MARY D"
,OFFICE OF THE MINORITY LEADER,2013Q2,PERSONNEL COMPENSATION,"","CHARVILLE,BRIDGET F",04/01/13,06/30/13,DIRECTOR OF PROTOCOL,"19,971.91",2013,"","","","CHARVILLE,BRIDGET F"
,OFFICE OF THE MINORITY LEADER,2013Q2,PERSONNEL COMPENSATION,"","CHARVILLE,BRIDGET F",06/01/13,06/30/13,DIRECTOR OF PROTOCOL (OTHER COMPENSATION),"9,494.84",2013,"","","","CHARVILLE,BRIDGET F"
,OFFICE OF THE MINORITY LEADER,2013Q2,PERSONNEL COMPENSATION,"","CHERRY,STEPHANIE",04/01/13,06/30/13,PRESS ADVISOR,"17,962.26",2013,"","","","CHERRY,STEPHANIE"
,OFFICE OF THE MINORITY LEADER,2013Q2,PERSONNEL COMPENSATION,"","COVEY-BRANDT, ALEXIS",04/01/13,05/31/13,FLOOR DIRECTOR,"6,221.00",2013,"","","","COVEY-BRANDT, ALEXIS"
,OFFICE OF THE MINORITY LEADER,2013Q2,PERSONNEL COMPENSATION,"","COVEY-BRANDT, ALEXIS",06/01/13,06/30/13,CHIEF OF STAFF,"14,275.00",2013,"","","","COVEY-BRANDT, ALEXIS"
,OFFICE OF THE MINORITY LEADER,2013Q2,PERSONNEL COMPENSATION,"","DAY,TAMIKA K",04/01/13,06/30/13,SR STAFF ASST SYS ADMIN,"12,500.01",2013,"","","","DAY,TAMIKA K"
,OFFICE OF THE MINORITY LEADER,2013Q2,PERSONNEL COMPENSATION,"","DEGRAFF, KENNETH B",04/01/13,06/30/13,SENIOR POLICY ADVISOR,"28,749.99",2013,"","","","DEGRAFF, KENNETH B"
,OFFICE OF THE MINORITY LEADER,2013Q2,PERSONNEL COMPENSATION,"","DEVLIN, PATRICK J",04/01/13,06/30/13,COMMUNICATIONS DIRECTOR,"31,250.01",2013,"","","","DEVLIN, PATRICK J"
,OFFICE OF THE MINORITY LEADER,2013Q2,PERSONNEL COMPENSATION,"","DEWHIRST, DIANE",04/01/13,06/30/13,SENIOR ADVISOR,"29,499.99",2013,"","","","DEWHIRST, DIANE"
,OFFICE OF THE MINORITY LEADER,2013Q2,PERSONNEL COMPENSATION,"","DOMINGUEZ,ASHLEY F",04/01/13,06/30/13,STAFF ASSISTANT/PERSONAL CORR,"6,999.99",2013,"","","","DOMINGUEZ,ASHLEY F"
,OFFICE OF THE MINORITY LEADER,2013Q2,PERSONNEL COMPENSATION,"","DOMINGUEZ,ASHLEY F",04/01/13,05/30/13,STAFF ASSISTANT/PERSONAL CORR (OVERTIME),"3,139.87",2013,"","","","DOMINGUEZ,ASHLEY F"
,OFFICE OF THE MINORITY LEADER,2013Q2,PERSONNEL COMPENSATION,"","ELLISON,MATTHEW B",04/01/13,06/30/13,RESEARCH ASSISTANT,"7,500.00",2013,"","","","ELLISON,MATTHEW B"
,OFFICE OF THE MINORITY LEADER,2013Q2,PERSONNEL COMPENSATION,"","ELSHAMI,NADEEM",04/01/13,06/30/13,CHIEF OF STAFF,"43,125.00",2013,"","","","ELSHAMI,NADEEM"
,OFFICE OF THE MINORITY LEADER,2013Q2,PERSONNEL COMPENSATION,"","ETIENNE,ASHLEY D",04/01/13,06/30/13,DEPUTY COMM DIRECTOR,"32,499.99",2013,"","","","ETIENNE,ASHLEY D"
,OFFICE OF THE MINORITY LEADER,2013Q2,PERSONNEL COMPENSATION,"","FISCHER JR, ROBERT V",04/01/13,06/30/13,ASST FLOOR CHIEF,"33,289.50",2013,"","","","FISCHER JR, ROBERT V"
,OFFICE OF THE MINORITY LEADER,2013Q2,PERSONNEL COMPENSATION,"","GEORGE,EVANGELINE M",04/01/13,06/30/13,PRESS SECRETARY,"13,875.00",2013,"","","","GEORGE,EVANGELINE M"
,OFFICE OF THE MINORITY LEADER,2013Q2,PERSONNEL COMPENSATION,"","GREENER, APRIL L",04/01/13,06/30/13,RESEARCH DIRECTOR,"21,249.99",2013,"","","","GREENER, APRIL L"
,OFFICE OF THE MINORITY LEADER,2013Q2,PERSONNEL COMPENSATION,"","HAMMILL, ANDREW T",04/01/13,06/30/13,COMM DIR/SENIOR ADVISOR,"43,125.00",2013,"","","","HAMMILL, ANDREW T"
,OFFICE OF THE MINORITY LEADER,2013Q2,PERSONNEL COMPENSATION,"","HARTZ, JERRY",04/01/13,06/30/13,DIRECTOR OF FLOOR OPERATIONS,"43,125.00",2013,"","","","HARTZ, JERRY"
,OFFICE OF THE MINORITY LEADER,2013Q2,PERSONNEL COMPENSATION,"","HAYNES JR, WILFRED J",04/01/13,06/30/13,IT DIRECTOR,"24,530.49",2013,"","","","HAYNES JR, WILFRED J"
,OFFICE OF THE MINORITY LEADER,2013Q2,PERSONNEL COMPENSATION,"","IVESTER, WREN",04/01/13,06/30/13,ASST FLOOR CHIEF,"29,974.50",2013,"","","","IVESTER, WREN"
,OFFICE OF THE MINORITY LEADER,2013Q2,PERSONNEL COMPENSATION,"","JUDGE, KRISTINE A",04/01/13,06/30/13,SENIOR ADVISOR/POLICY COMM,"31,924.26",2013,"","","","JUDGE, KRISTINE A"
,OFFICE OF THE MINORITY LEADER,2013Q2,PERSONNEL COMPENSATION,"","KEITA,KAMILAH Z",04/01/13,06/30/13,DEPUTY INFOMATION TECH. DIRECT,"22,283.01",2013,"","","","KEITA,KAMILAH Z"
,OFFICE OF THE MINORITY LEADER,2013Q2,PERSONNEL COMPENSATION,"","KING,RYAN M",04/01/13,06/30/13,PRESS ADVISOR,"8,250.00",2013,"","","","KING,RYAN M"
,OFFICE OF THE MINORITY LEADER,2013Q2,PERSONNEL COMPENSATION,"","KING,RYAN M",03/01/13,05/30/13,PRESS ADVISOR (OVERTIME),"2,647.50",2013,"","","","KING,RYAN M"
,OFFICE OF THE MINORITY LEADER,2013Q2,PERSONNEL COMPENSATION,"","KRETMAN,MATTHEW A",04/01/13,06/30/13,DIRECTOR OF OUTREACH,"9,999.99",2013,"","","","KRETMAN,MATTHEW A"
,OFFICE OF THE MINORITY LEADER,2013Q2,PERSONNEL COMPENSATION,"","KUNDANIS, GEORGE",04/01/13,06/30/13,DEPUTY CHIEF OF STAFF,"43,125.00",2013,"","","","KUNDANIS, GEORGE"
,OFFICE OF THE MINORITY LEADER,2013Q2,PERSONNEL COMPENSATION,"","LIZARRAGA, JAIME E",04/01/13,06/30/13,SR ADV & DIR OF MEMBER SVC,"39,905.49",2013,"","","","LIZARRAGA, JAIME E"
,OFFICE OF THE MINORITY LEADER,2013Q2,PERSONNEL COMPENSATION,"","LONG,MICHAEL G",04/01/13,06/30/13,DEPUTY DIRECTOR OF MEMBER SVCS,"18,750.00",2013,"","","","LONG,MICHAEL G"
,OFFICE OF THE MINORITY LEADER,2013Q2,PERSONNEL COMPENSATION,"","MACDOUGALL,NICOLE E",04/01/13,04/30/13,STAFF ASSISTANT,"2,333.33",2013,"","","","MACDOUGALL,NICOLE E"
,OFFICE OF THE MINORITY LEADER,2013Q2,PERSONNEL COMPENSATION,"","MACDOUGALL,NICOLE E",04/01/13,04/30/13,STAFF ASSISTANT (OVERTIME),545.19,2013,"","","","MACDOUGALL,NICOLE E"
,OFFICE OF THE MINORITY LEADER,2013Q2,PERSONNEL COMPENSATION,"","MAHR,THOMAS",04/01/13,06/30/13,POLICY DIRECTOR,"29,700.00",2013,"","","","MAHR,THOMAS"
,OFFICE OF THE MINORITY LEADER,2013Q2,PERSONNEL COMPENSATION,"","MANGRUM, PEARL J",04/01/13,06/30/13,FINANCIAL ADMINISTRATOR,"15,291.66",2013,"","","","MANGRUM, PEARL J"
,OFFICE OF THE MINORITY LEADER,2013Q2,PERSONNEL COMPENSATION,"","MEDLIN,MELINDA L",04/01/13,06/30/13,DIRECTOR OF SCHEDULING,"35,847.00",2013,"","","","MEDLIN,MELINDA L"
,OFFICE OF THE MINORITY LEADER,2013Q2,PERSONNEL COMPENSATION,"","MELTZER,RICHARD",04/01/13,06/30/13,POLICY DIRECTOR,"43,125.00",2013,"","","","MELTZER,RICHARD"
,OFFICE OF THE MINORITY LEADER,2013Q2,PERSONNEL COMPENSATION,"","MERZ, JULIE E",04/01/13,05/10/13,DIR OF MEMBER SERVICES,"11,111.11",2013,"","","","MERZ, JULIE E"
,OFFICE OF THE MINORITY LEADER,2013Q2,PERSONNEL COMPENSATION,"","MILLER,AMY M",04/01/13,06/30/13,SENIOR ADVISOR,"24,999.99",2013,"","","","MILLER,AMY M"
,OFFICE OF THE MINORITY LEADER,2013Q2,PERSONNEL COMPENSATION,"","MINOR,JAMIE N",06/03/13,06/30/13,DISTRICT SCHEDULER/EXEC ASSIST,933.33,2013,"","","","MINOR,JAMIE N"
,OFFICE OF THE MINORITY LEADER,2013Q2,PERSONNEL COMPENSATION,"","MURRAY, ELIZABETH M",04/01/13,06/30/13,SENIOR POLICY ADVISOR,"32,199.99",2013,"","","","MURRAY, ELIZABETH M"
,OFFICE OF THE MINORITY LEADER,2013Q2,PERSONNEL COMPENSATION,"","O'NEILL, CATLIN W",04/01/13,06/01/13,CHIEF OF STAFF,"12,805.56",2013,"","","","O'NEILL, CATLIN W"
,OFFICE OF THE MINORITY LEADER,2013Q2,PERSONNEL COMPENSATION,"","O'NEILL, CATLIN W",06/01/13,06/01/13,CHIEF OF STAFF (OTHER COMPENSATION),"8,861.11",2013,"","","","O'NEILL, CATLIN W"
,OFFICE OF THE MINORITY LEADER,2013Q2,PERSONNEL COMPENSATION,"","PARDUE, LAURA E",04/01/13,06/30/13,DEPUTY DIR. - FLOOR OPERATIONS,"31,250.01",2013,"","","","PARDUE, LAURA E"
,OFFICE OF THE MINORITY LEADER,2013Q2,PERSONNEL COMPENSATION,"","PARKER, WYNDEE R",04/01/13,06/30/13,SENIOR POLICY ADVISOR,"43,125.00",2013,"","","","PARKER, WYNDEE R"
,OFFICE OF THE MINORITY LEADER,2013Q2,PERSONNEL COMPENSATION,"","PATTI,VERNA A",04/01/13,05/31/13,DISTRICT SCHEDULER,"2,000.00",2013,"","","","PATTI,VERNA A"
,OFFICE OF THE MINORITY LEADER,2013Q2,PERSONNEL COMPENSATION,"","PATTI,VERNA A",06/01/13,06/19/13,CASEWORKER,"-1,000.00",2013,"","","","PATTI,VERNA A"
,OFFICE OF THE MINORITY LEADER,2013Q2,PERSONNEL COMPENSATION,"","PATTI,VERNA A",05/01/13,05/31/13,DISTRICT SCHEDULER (OTHER COMPENSATION),"1,000.00",2013,"","","","PATTI,VERNA A"
,OFFICE OF THE MINORITY LEADER,2013Q2,PERSONNEL COMPENSATION,"","POWELL,JONATHAN M",04/01/13,06/30/13,DIRECTOR OF SPEECHWRITING,"20,000.01",2013,"","","","POWELL,JONATHAN M"
,OFFICE OF THE MINORITY LEADER,2013Q2,PERSONNEL COMPENSATION,"","PRICE, REVA B",04/01/13,06/30/13,OUTREACH DIRECTOR & ADVISOR,"31,924.26",2013,"","","","PRICE, REVA B"
,OFFICE OF THE MINORITY LEADER,2013Q2,PERSONNEL COMPENSATION,"","PRIMUS, WENDELL E",04/01/13,06/30/13,SENIOR POLICY ADVISOR,"43,125.00",2013,"","","","PRIMUS, WENDELL E"
,OFFICE OF THE MINORITY LEADER,2013Q2,PERSONNEL COMPENSATION,"","QUEEN,CORNELIUS W",04/01/13,06/30/13,STAFF ASSISTANT,"6,999.99",2013,"","","","QUEEN,CORNELIUS W"
,OFFICE OF THE MINORITY LEADER,2013Q2,PERSONNEL COMPENSATION,"","REPKO,MARY F",04/01/13,06/30/13,SENIOR POLICY ADVISOR,"32,949.99",2013,"","","","REPKO,MARY F"
,OFFICE OF THE MINORITY LEADER,2013Q2,PERSONNEL COMPENSATION,"","ROLLAND,STACEY L",04/01/13,06/30/13,POLICY ADVISOR - TAX,"26,000.00",2013,"","","","ROLLAND,STACEY L"
,OFFICE OF THE MINORITY LEADER,2013Q2,PERSONNEL COMPENSATION,"","ROLLAND,STACEY L",05/01/13,05/01/13,POLICY ADVISOR - TAX (OTHER COMPENSATION),"9,999.99",2013,"","","","ROLLAND,STACEY L"
,OFFICE OF THE MINORITY LEADER,2013Q2,PERSONNEL COMPENSATION,"","ROMICK, BRIAN",04/01/13,06/30/13,MEMBER SERVICES DIRECTOR,"35,949.99",2013,"","","","ROMICK, BRIAN"
,OFFICE OF THE MINORITY LEADER,2013Q2,PERSONNEL COMPENSATION,"","SINGLETARY, BARVETTA",04/01/13,06/30/13,POLICY DIRECTOR,"33,249.99",2013,"","","","SINGLETARY, BARVETTA"
,OFFICE OF THE MINORITY LEADER,2013Q2,PERSONNEL COMPENSATION,"","SMITH,KELSEY L",04/01/13,06/30/13,DEPUTY DIRECTOR OF SCHEDULING,"11,375.01",2013,"","","","SMITH,KELSEY L"
,OFFICE OF THE MINORITY LEADER,2013Q2,PERSONNEL COMPENSATION,"","SMITH,KELSEY L",03/01/13,05/30/13,DEPUTY DIRECTOR OF SCHEDULING (OVERTIME),"6,193.29",2013,"","","","SMITH,KELSEY L"
,OFFICE OF THE MINORITY LEADER,2013Q2,PERSONNEL COMPENSATION,"","SOMANADER,TANYA",03/19/13,06/30/13,DIR OF NEW MEDIA/SPEECHWRITER,"22,666.68",2013,"","","","SOMANADER,TANYA"
,OFFICE OF THE MINORITY LEADER,2013Q2,PERSONNEL COMPENSATION,"","STIVERS, JONATHAN",04/01/13,06/30/13,SENIOR ADVISOR,"35,000.01",2013,"","","","STIVERS, JONATHAN"
,OFFICE OF THE MINORITY LEADER,2013Q2,PERSONNEL COMPENSATION,"","SULLIVAN, BARRY K",04/01/13,06/30/13,CHIEF FLOOR SERVICE (MIN),"43,125.00",2013,"","","","SULLIVAN, BARRY K"
,OFFICE OF THE MINORITY LEADER,2013Q2,PERSONNEL COMPENSATION,"","SURGEON,BINA G",04/01/13,06/30/13,SPECIAL ASST TO THE LEADER,"17,499.99",2013,"","","","SURGEON,BINA G"
,OFFICE OF THE MINORITY LEADER,2013Q2,PERSONNEL COMPENSATION,"","TECKLENBURG, MICHAEL H",04/01/13,06/30/13,COUNSEL,"32,499.99",2013,"","","","TECKLENBURG, MICHAEL H"
,OFFICE OF THE MINORITY LEADER,2013Q2,PERSONNEL COMPENSATION,"","WATKINS, YELBERTON R",04/01/13,06/30/13,CHIEF OF STAFF,"41,250.00",2013,"","","","WATKINS, YELBERTON R"
,OFFICE OF THE MINORITY LEADER,2013Q2,PERSONNEL COMPENSATION,"","WEST,JULIUS L",04/01/13,06/30/13,DISTRICT ASSISTANT,"12,500.01",2013,"","","","WEST,JULIUS L"
,OFFICE OF THE MINORITY LEADER,2013Q2,PERSONNEL COMPENSATION,"","WOLTERS, KATE",04/01/13,06/30/13,PERSONAL ASSISTANT,"34,646.49",2013,"","","","WOLTERS, KATE"
,OFFICE OF THE MINORITY LEADER,2013Q2,TRAVEL,04-15,"WOLTERS, KATE",04/07/13,04/10/13,TRAVEL SUBSISTENCE,994.18,2013,AP,Accounts payable,E0003232,"WOLTERS, KATE"
,OFFICE OF THE MINORITY LEADER,2013Q2,TRAVEL,04-15,"BARRY, MARY-KATE",03/04/13,03/05/13,TAXI/PARKING/TOLLS,23.00,2013,AP,Accounts payable,E0003234,"BARRY, MARY-KATE"
,OFFICE OF THE MINORITY LEADER,2013Q2,TRAVEL,04-15,CITIBANK GOV CARD SERVICE,03/21/13,03/26/13,TRAVEL SUBSISTENCE,"2,489.21",2013,AP,Accounts payable,E0003235,CITIBANK GOV CARD SERVICE
,OFFICE OF THE MINORITY LEADER,2013Q2,TRAVEL,04-15,"BARRY, MARY-KATE",01/20/13,02/06/13,TAXI/PARKING/TOLLS,88.99,2013,AP,Accounts payable,E0003236,"BARRY, MARY-KATE"
,OFFICE OF THE MINORITY LEADER,2013Q2,TRAVEL,04-15,CITIBANK GOV CARD SERVICE,03/07/13,03/27/13,COMMERCIAL TRANSPORTATION,"1,742.90",2013,AP,Accounts payable,E0003240,CITIBANK GOV CARD SERVICE
,OFFICE OF THE MINORITY LEADER,2013Q2,TRAVEL,04-15,"SURGEON,BINA G",01/03/13,01/24/13,TAXI/PARKING/TOLLS,63.00,2013,AP,Accounts payable,E0003242,"SURGEON,BINA G"
,OFFICE OF THE MINORITY LEADER,2013Q2,TRAVEL,04-15,"WOLTERS, KATE",02/19/13,02/25/13,TRAVEL SUBSISTENCE,"2,326.82",2013,AP,Accounts payable,E0003243,"WOLTERS, KATE"
,OFFICE OF THE MINORITY LEADER,2013Q2,TRAVEL,04-16,"PATTI, VERNA A",03/08/13,04/04/13,MEALS,38.93,2013,AP,Accounts payable,E0003811,"PATTI, VERNA A"
,OFFICE OF THE MINORITY LEADER,2013Q2,TRAVEL,04-16,"PATTI, VERNA A",01/25/13,01/31/13,MEALS,93.12,2013,AP,Accounts payable,E0003812,"PATTI, VERNA A"
,OFFICE OF THE MINORITY LEADER,2013Q2,TRAVEL,04-16,"PATTI, VERNA A",01/25/13,01/31/13,TAXI/PARKING/TOLLS,53.00,2013,AP,Accounts payable,E0003812,"PATTI, VERNA A"
,OFFICE OF THE MINORITY LEADER,2013Q2,TRAVEL,04-18,CITIBANK GOV CARD SERVICE,03/15/13,03/27/13,TRAVEL SUBSISTENCE,"2,771.54",2013,AP,Accounts payable,E0004813,CITIBANK GOV CARD SERVICE
,OFFICE OF THE MINORITY LEADER,2013Q2,TRAVEL,04-25,"BARRY, MARY-KATE",03/06/13,04/13/13,TRAVEL SUBSISTENCE,150.20,2013,AP,Accounts payable,E0005788,"BARRY, MARY-KATE"
,OFFICE OF THE MINORITY LEADER,2013Q2,TRAVEL,05-03,"WOLTERS, KATE",03/07/13,03/10/13,TRAVEL SUBSISTENCE,"1,282.64",2013,AP,Accounts payable,E0010632,"WOLTERS, KATE"
,OFFICE OF THE MINORITY LEADER,2013Q2,TRAVEL,05-07,CITIBANK GOV CARD SERVICE,04/13/13,04/15/13,TRAVEL SUBSISTENCE,758.43,2013,AP,Accounts payable,E0012551,CITIBANK GOV CARD SERVICE
,OFFICE OF THE MINORITY LEADER,2013Q2,TRAVEL,05-10,"SURGEON,BINA G",02/06/13,04/27/13,TAXI/PARKING/TOLLS,120.00,2013,AP,Accounts payable,E0013389,"SURGEON,BINA G"
,OFFICE OF THE MINORITY LEADER,2013Q2,TRAVEL,05-10,"SURGEON,BINA G",03/12/13,04/28/13,TRAVEL SUBSISTENCE,416.12,2013,AP,Accounts payable,E0013389,"SURGEON,BINA G"
,OFFICE OF THE MINORITY LEADER,2013Q2,TRAVEL,05-10,"LONG,MICHAEL G",04/27/13,04/28/13,TRAVEL SUBSISTENCE,99.06,2013,AP,Accounts payable,E0013391,"LONG,MICHAEL G"
,OFFICE OF THE MINORITY LEADER,2013Q2,TRAVEL,05-10,"PATTI, VERNA A",04/12/13,04/12/13,TRAVEL SUBSISTENCE,51.75,2013,AP,Accounts payable,E0013392,"PATTI, VERNA A"
,OFFICE OF THE MINORITY LEADER,2013Q2,TRAVEL,05-10,CITIBANK GOV CARD SERVICE,03/27/13,05/06/13,COMMERCIAL TRANSPORTATION,"5,764.90",2013,AP,Accounts payable,E0013953,CITIBANK GOV CARD SERVICE
,OFFICE OF THE MINORITY LEADER,2013Q2,TRAVEL,05-10,CITIBANK GOV CARD SERVICE,03/21/13,05/02/13,TRAVEL SUBSISTENCE,"3,330.85",2013,AP,Accounts payable,E0013954,CITIBANK GOV CARD SERVICE
,OFFICE OF THE MINORITY LEADER,2013Q2,TRAVEL,05-24,"SMITH, KELSEY L",05/01/13,05/01/13,MEALS,16.32,2013,AP,Accounts payable,E0019713,"SMITH, KELSEY L"
,OFFICE OF THE MINORITY LEADER,2013Q2,TRAVEL,05-24,"SMITH, KELSEY L",03/05/13,05/07/13,TAXI/PARKING/TOLLS,28.00,2013,AP,Accounts payable,E0019713,"SMITH, KELSEY L"
,OFFICE OF THE MINORITY LEADER,2013Q2,TRAVEL,05-28,FALLON BRIDGET C,05/04/13,05/06/13,TRAVEL SUBSISTENCE,664.69,2013,AP,Accounts payable,E0019709,FALLON BRIDGET C
,OFFICE OF THE MINORITY LEADER,2013Q2,TRAVEL,05-29,"WOLTERS, KATE",01/21/13,01/22/13,TAXI/PARKING/TOLLS,35.56,2013,AP,Accounts payable,E0014313,"WOLTERS, KATE"
,OFFICE OF THE MINORITY LEADER,2013Q2,TRAVEL,05-29,"WOLTERS, KATE",04/29/13,05/02/13,TRAVEL SUBSISTENCE,983.13,2013,AP,Accounts payable,E0014313,"WOLTERS, KATE"
,OFFICE OF THE MINORITY LEADER,2013Q2,TRAVEL,05-29,"WOLTERS, KATE",05/05/13,05/06/13,TRAVEL SUBSISTENCE,312.67,2013,AP,Accounts payable,E0014313,"WOLTERS, KATE"
,OFFICE OF THE MINORITY LEADER,2013Q2,TRAVEL,06-03,"HAMMILL, ANDREW T",05/09/13,05/13/13,TRAVEL SUBSISTENCE,"2,137.29",2013,AP,Accounts payable,E0022577,"HAMMILL, ANDREW T"
,OFFICE OF THE MINORITY LEADER,2013Q2,TRAVEL,06-06,CITIBANK GOV CARD SERVICE,04/24/13,06/01/13,TRAVEL SUBSISTENCE,"1,589.78",2013,AP,Accounts payable,E0024972,CITIBANK GOV CARD SERVICE
,OFFICE OF THE MINORITY LEADER,2013Q2,TRAVEL,06-06,CITIBANK GOV CARD SERVICE,04/28/13,05/14/13,TRAVEL SUBSISTENCE,"2,294.19",2013,AP,Accounts payable,E0024975,CITIBANK GOV CARD SERVICE
,OFFICE OF THE MINORITY LEADER,2013Q2,TRAVEL,06-12,"BARRY, MARY-KATE",04/10/13,04/26/13,TAXI/PARKING/TOLLS,73.00,2013,AP,Accounts payable,E0026995,"BARRY, MARY-KATE"
,OFFICE OF THE MINORITY LEADER,2013Q2,TRAVEL,06-12,"BARRY, MARY-KATE",05/22/13,06/03/13,TAXI/PARKING/TOLLS,38.96,2013,AP,Accounts payable,E0026995,"BARRY, MARY-KATE"
,OFFICE OF THE MINORITY LEADER,2013Q2,TRAVEL,06-12,CITIBANK GOV CARD SERVICE,04/27/13,05/29/13,TRAVEL SUBSISTENCE,"2,806.04",2013,AP,Accounts payable,E0027001,CITIBANK GOV CARD SERVICE
,OFFICE OF THE MINORITY LEADER,2013Q2,"RENT, COMMUNICATION, UTILITIES",05-07,FEDEX,02/11/13,02/11/13,POSTAGE / COURIER / BOX RENTAL,10.15,2013,AP,Accounts payable,E0012228,FEDEX
,OFFICE OF THE MINORITY LEADER,2013Q2,"RENT, COMMUNICATION, UTILITIES",05-07,FEDEX,03/21/13,03/21/13,POSTAGE / COURIER / BOX RENTAL,5.88,2013,AP,Accounts payable,E0012229,FEDEX
,OFFICE OF THE MINORITY LEADER,2013Q2,"RENT, COMMUNICATION, UTILITIES",05-07,FEDEX,02/15/13,02/22/13,POSTAGE / COURIER / BOX RENTAL,132.12,2013,AP,Accounts payable,E0012232,FEDEX
,OFFICE OF THE MINORITY LEADER,2013Q2,"RENT, COMMUNICATION, UTILITIES",05-07,FEDEX,02/06/13,02/06/13,POSTAGE / COURIER / BOX RENTAL,84.33,2013,AP,Accounts payable,E0012236,FEDEX
,OFFICE OF THE MINORITY LEADER,2013Q2,"RENT, COMMUNICATION, UTILITIES",05-07,FEDEX,02/15/13,02/15/13,POSTAGE / COURIER / BOX RENTAL,6.88,2013,AP,Accounts payable,E0012237,FEDEX
,OFFICE OF THE MINORITY LEADER,2013Q2,"RENT, COMMUNICATION, UTILITIES",05-07,FEDEX,02/21/13,02/21/13,POSTAGE / COURIER / BOX RENTAL,4.96,2013,AP,Accounts payable,E0012239,FEDEX
,OFFICE OF THE MINORITY LEADER,2013Q2,"RENT, COMMUNICATION, UTILITIES",05-07,FEDEX,04/01/13,04/01/13,POSTAGE / COURIER / BOX RENTAL,7.04,2013,AP,Accounts payable,E0012240,FEDEX
,OFFICE OF THE MINORITY LEADER,2013Q2,"RENT, COMMUNICATION, UTILITIES",05-07,FEDEX,03/29/13,03/29/13,POSTAGE / COURIER / BOX RENTAL,13.66,2013,AP,Accounts payable,E0012243,FEDEX
,OFFICE OF THE MINORITY LEADER,2013Q2,"RENT, COMMUNICATION, UTILITIES",05-08,FEDEX,01/23/13,01/23/13,POSTAGE / COURIER / BOX RENTAL,345.98,2013,AP,Accounts payable,E0012242,FEDEX
,OFFICE OF THE MINORITY LEADER,2013Q2,"RENT, COMMUNICATION, UTILITIES",05-10,FEDEX,04/11/13,04/11/13,POSTAGE / COURIER / BOX RENTAL,6.11,2013,AP,Accounts payable,E0013303,FEDEX
,OFFICE OF THE MINORITY LEADER,2013Q2,"RENT, COMMUNICATION, UTILITIES",05-13,FEDEX,04/13/13,04/13/13,POSTAGE / COURIER / BOX RENTAL,17.23,2013,AP,Accounts payable,E0014325,FEDEX
,OFFICE OF THE MINORITY LEADER,2013Q2,"RENT, COMMUNICATION, UTILITIES",05-21,CITI PCARD-TIV TIVO SERVICE,03/29/13,04/28/13,RECORDING (OUTSIDE),150.32,2013,AP,Accounts payable,00669866,CITI PCARD-TIV TIVO SERVICE
,OFFICE OF THE MINORITY LEADER,2013Q2,"RENT, COMMUNICATION, UTILITIES",05-29,FEDEX,01/23/13,01/25/13,POSTAGE / COURIER / BOX RENTAL,44.49,2013,AP,Accounts payable,E0012238,FEDEX
,OFFICE OF THE MINORITY LEADER,2013Q2,"RENT, COMMUNICATION, UTILITIES",06-03,FEDEX,05/10/13,05/10/13,POSTAGE / COURIER / BOX RENTAL,66.17,2013,AP,Accounts payable,E0022578,FEDEX
,OFFICE OF THE MINORITY LEADER,2013Q2,"RENT, COMMUNICATION, UTILITIES",06-06,"HAMMILL, ANDREW T",03/28/13,03/28/13,POSTAGE / COURIER / BOX RENTAL,43.19,2013,AP,Accounts payable,E0024974,"HAMMILL, ANDREW T"
,OFFICE OF THE MINORITY LEADER,2013Q2,"RENT, COMMUNICATION, UTILITIES",06-11,FEDEX,05/16/13,05/16/13,POSTAGE / COURIER / BOX RENTAL,66.12,2013,AP,Accounts payable,E0026999,FEDEX
,OFFICE OF THE MINORITY LEADER,2013Q2,"RENT, COMMUNICATION, UTILITIES",06-28,FEDEX,05/29/13,05/29/13,POSTAGE / COURIER / BOX RENTAL,17.47,2013,AP,Accounts payable,E0033534,FEDEX
,OFFICE OF THE MINORITY LEADER,2013Q2,"RENT, COMMUNICATION, UTILITIES",06-28,FEDEX,05/24/13,05/24/13,POSTAGE / COURIER / BOX RENTAL,89.36,2013,AP,Accounts payable,E0033536,FEDEX
,OFFICE OF THE MINORITY LEADER,2013Q2,PRINTING AND REPRODUCTION,04-15,"SURGEON,BINA G",01/19/13,01/19/13,PRINTING & REPRODUCTION,27.11,2013,AP,Accounts payable,E0003242,"SURGEON,BINA G"
,OFFICE OF THE MINORITY LEADER,2013Q2,PRINTING AND REPRODUCTION,04-16,"PATTI, VERNA A",01/30/13,02/01/13,PRINTING & REPRODUCTION,76.99,2013,AP,Accounts payable,E0003812,"PATTI, VERNA A"
,OFFICE OF THE MINORITY LEADER,2013Q2,PRINTING AND REPRODUCTION,04-25,"",04/01/13,04/30/13,PHOTOGRAPHIC (TRANSFER),395.40,2013,GL,General ledger,PIX0028644,""
,OFFICE OF THE MINORITY LEADER,2013Q2,PRINTING AND REPRODUCTION,05-07,DAVID L. ANDRUKITUS INC,04/03/13,04/03/13,PRINTING & REPRODUCTION,472.50,2013,AP,Accounts payable,E0012230,DAVID L. ANDRUKITUS INC
,OFFICE OF THE MINORITY LEADER,2013Q2,PRINTING AND REPRODUCTION,05-08,DAVID L. ANDRUKITUS INC,02/14/13,02/14/13,PRINTING & REPRODUCTION,"1,697.50",2013,AP,Accounts payable,E0012231,DAVID L. ANDRUKITUS INC
,OFFICE OF THE MINORITY LEADER,2013Q2,PRINTING AND REPRODUCTION,05-10,DAVID L. ANDRUKITUS INC,05/01/13,05/01/13,PRINTING & REPRODUCTION,879.50,2013,AP,Accounts payable,E0013310,DAVID L. ANDRUKITUS INC
,OFFICE OF THE MINORITY LEADER,2013Q2,PRINTING AND REPRODUCTION,05-24,"",05/01/13,05/31/13,PHOTOGRAPHIC (TRANSFER),446.20,2013,GL,General ledger,PIX0029520,""
,OFFICE OF THE MINORITY LEADER,2013Q2,PRINTING AND REPRODUCTION,06-12,"BARRY, MARY-KATE",04/28/13,04/28/13,PRINTING & REPRODUCTION,41.71,2013,AP,Accounts payable,E0026995,"BARRY, MARY-KATE"
,OFFICE OF THE MINORITY LEADER,2013Q2,PRINTING AND REPRODUCTION,06-12,DOYLE PRINTING & OFFSET CO INC,05/20/13,05/20/13,PRINTING & REPRODUCTION,640.00,2013,AP,Accounts payable,E0026997,DOYLE PRINTING & OFFSET CO INC
,OFFICE OF THE MINORITY LEADER,2013Q2,PRINTING AND REPRODUCTION,06-25,"",06/01/13,06/30/13,PHOTOGRAPHIC (TRANSFER),661.15,2013,GL,General ledger,PIX0030393,""
,OFFICE OF THE MINORITY LEADER,2013Q2,PRINTING AND REPRODUCTION,06-28,"BARRY, MARY-KATE",06/10/13,06/10/13,PRINTING & REPRODUCTION,71.01,2013,AP,Accounts payable,E0033523,"BARRY, MARY-KATE"
,OFFICE OF THE MINORITY LEADER,2013Q2,OTHER SERVICES,04-15,NEAL R. GROSS & CO INC,02/21/13,02/21/13,STENOGRAPHIC REPORTING,"1,500.00",2013,AP,Accounts payable,E0003229,NEAL R. GROSS & CO INC
,OFFICE OF THE MINORITY LEADER,2013Q2,OTHER SERVICES,04-15,NEAL R. GROSS & CO INC,03/08/13,03/08/13,STENOGRAPHIC REPORTING,"1,500.00",2013,AP,Accounts payable,E0003233,NEAL R. GROSS & CO INC
,OFFICE OF THE MINORITY LEADER,2013Q2,OTHER SERVICES,04-23,BERNARD RAIMO,03/01/13,03/31/13,CONSULTANT CONTRACT SERVICE,"7,628.00",2013,AP,Accounts payable,E0006379,BERNARD RAIMO
,OFFICE OF THE MINORITY LEADER,2013Q2,OTHER SERVICES,05-06,NEAL R. GROSS & CO INC,02/01/13,02/01/13,STENOGRAPHIC REPORTING,"1,500.00",2013,AP,Accounts payable,00665242,NEAL R. GROSS & CO INC
,OFFICE OF THE MINORITY LEADER,2013Q2,OTHER SERVICES,05-09,NEAL R. GROSS & CO INC,01/17/13,01/17/13,STENOGRAPHIC REPORTING,"1,500.00",2013,AP,Accounts payable,00665514,NEAL R. GROSS & CO INC
,OFFICE OF THE MINORITY LEADER,2013Q2,OTHER SERVICES,05-09,NEAL R. GROSS & CO INC,02/01/13,02/01/13,STENOGRAPHIC REPORTING,"-1,500.00",2013,AP,Accounts payable,00665514,NEAL R. GROSS & CO INC
,OFFICE OF THE MINORITY LEADER,2013Q2,OTHER SERVICES,05-10,BERNARD RAIMO,04/01/13,04/30/13,CONSULTANT CONTRACT SERVICE,"7,628.00",2013,AP,Accounts payable,E0014291,BERNARD RAIMO
,OFFICE OF THE MINORITY LEADER,2013Q2,OTHER SERVICES,06-03,BERNARD RAIMO,05/01/13,05/31/13,CONSULTANT CONTRACT SERVICE,"7,628.00",2013,AP,Accounts payable,E0022579,BERNARD RAIMO
,OFFICE OF THE MINORITY LEADER,2013Q2,OTHER SERVICES,06-28,BERNARD RAIMO,06/01/13,06/30/13,CONSULTANT CONTRACT SERVICE,"7,628.00",2013,AP,Accounts payable,E0033535,BERNARD RAIMO
,OFFICE OF THE MINORITY LEADER,2013Q2,SUPPLIES AND MATERIALS,04-10,CRYSTAL SPRINGS,02/28/13,02/28/13,WATER,67.51,2013,AP,Accounts payable,E0001295,CRYSTAL SPRINGS
,OFFICE OF THE MINORITY LEADER,2013Q2,SUPPLIES AND MATERIALS,04-10,CRYSTAL SPRINGS,01/19/13,01/19/13,WATER,419.10,2013,AP,Accounts payable,E0001296,CRYSTAL SPRINGS
,OFFICE OF THE MINORITY LEADER,2013Q2,SUPPLIES AND MATERIALS,04-10,CRYSTAL SPRINGS,02/08/13,02/08/13,WATER,676.36,2013,AP,Accounts payable,E0001297,CRYSTAL SPRINGS
,OFFICE OF THE MINORITY LEADER,2013Q2,SUPPLIES AND MATERIALS,04-15,"SURGEON,BINA G",01/03/13,01/24/13,FOOD & BEVERAGE,147.73,2013,AP,Accounts payable,E0003242,"SURGEON,BINA G"
,OFFICE OF THE MINORITY LEADER,2013Q2,SUPPLIES AND MATERIALS,04-18,CITI PCARD-CVS PHARMACY,03/01/13,03/28/13,FOOD & BEVERAGE,40.77,2013,AP,Accounts payable,00664378,CITI PCARD-CVS PHARMACY
,OFFICE OF THE MINORITY LEADER,2013Q2,SUPPLIES AND MATERIALS,04-18,CITI PCARD-D J WALL ST JOURNAL,03/01/13,03/28/13,PUBLICATIONS/REFERENCE MAT'L,275.05,2013,AP,Accounts payable,00664378,CITI PCARD-D J WALL ST JOURNAL
,OFFICE OF THE MINORITY LEADER,2013Q2,SUPPLIES AND MATERIALS,04-18,CITI PCARD-DUNKIN,03/01/13,03/28/13,FOOD & BEVERAGE,39.95,2013,AP,Accounts payable,00664378,CITI PCARD-DUNKIN
,OFFICE OF THE MINORITY LEADER,2013Q2,SUPPLIES AND MATERIALS,04-18,CITI PCARD-SHOPPERS FOOD / PHAR,03/01/13,03/28/13,FOOD & BEVERAGE,62.56,2013,AP,Accounts payable,00664378,CITI PCARD-SHOPPERS FOOD / PHAR
,OFFICE OF THE MINORITY LEADER,2013Q2,SUPPLIES AND MATERIALS,04-18,CITI PCARD-TARGET,03/01/13,03/28/13,FOOD & BEVERAGE,549.11,2013,AP,Accounts payable,00664378,CITI PCARD-TARGET
,OFFICE OF THE MINORITY LEADER,2013Q2,SUPPLIES AND MATERIALS,04-18,CITI PCARD-WHOLEFDS PST,03/01/13,03/28/13,FOOD & BEVERAGE,7.94,2013,AP,Accounts payable,00664378,CITI PCARD-WHOLEFDS PST
,OFFICE OF THE MINORITY LEADER,2013Q2,SUPPLIES AND MATERIALS,04-26,CAPITOLHOST,02/06/13,02/06/13,FOOD & BEVERAGE,33.00,2013,AP,Accounts payable,E0007588,CAPITOLHOST
,OFFICE OF THE MINORITY LEADER,2013Q2,SUPPLIES AND MATERIALS,04-26,CAPITOLHOST,01/29/13,01/29/13,FOOD & BEVERAGE,33.00,2013,AP,Accounts payable,E0007589,CAPITOLHOST
,OFFICE OF THE MINORITY LEADER,2013Q2,SUPPLIES AND MATERIALS,04-26,CAPITOLHOST,03/06/13,03/06/13,FOOD & BEVERAGE,66.00,2013,AP,Accounts payable,E0007590,CAPITOLHOST
,OFFICE OF THE MINORITY LEADER,2013Q2,SUPPLIES AND MATERIALS,04-26,CAPITOLHOST,02/13/13,02/13/13,FOOD & BEVERAGE,33.00,2013,AP,Accounts payable,E0007591,CAPITOLHOST
,OFFICE OF THE MINORITY LEADER,2013Q2,SUPPLIES AND MATERIALS,04-26,CAPITOLHOST,01/18/13,01/18/13,FOOD & BEVERAGE,211.50,2013,AP,Accounts payable,E0007592,CAPITOLHOST
,OFFICE OF THE MINORITY LEADER,2013Q2,SUPPLIES AND MATERIALS,04-26,CAPITOLHOST,03/04/13,03/04/13,FOOD & BEVERAGE,66.00,2013,AP,Accounts payable,E0007593,CAPITOLHOST
,OFFICE OF THE MINORITY LEADER,2013Q2,SUPPLIES AND MATERIALS,04-26,CAPITOLHOST,03/08/13,03/08/13,FOOD & BEVERAGE,75.00,2013,AP,Accounts payable,E0007597,CAPITOLHOST
,OFFICE OF THE MINORITY LEADER,2013Q2,SUPPLIES AND MATERIALS,04-26,CAPITOLHOST,02/12/13,02/12/13,FOOD & BEVERAGE,82.50,2013,AP,Accounts payable,E0007598,CAPITOLHOST
,OFFICE OF THE MINORITY LEADER,2013Q2,SUPPLIES AND MATERIALS,04-26,CAPITOLHOST,02/25/13,02/25/13,FOOD & BEVERAGE,66.00,2013,AP,Accounts payable,E0007601,CAPITOLHOST
,OFFICE OF THE MINORITY LEADER,2013Q2,SUPPLIES AND MATERIALS,04-26,CAPITOLHOST,01/22/13,01/22/13,FOOD & BEVERAGE,66.00,2013,AP,Accounts payable,E0007602,CAPITOLHOST
,OFFICE OF THE MINORITY LEADER,2013Q2,SUPPLIES AND MATERIALS,04-26,CAPITOLHOST,01/04/13,01/04/13,FOOD & BEVERAGE,90.00,2013,AP,Accounts payable,E0007603,CAPITOLHOST
,OFFICE OF THE MINORITY LEADER,2013Q2,SUPPLIES AND MATERIALS,04-26,CAPITOLHOST,04/09/13,04/09/13,FOOD & BEVERAGE,126.00,2013,AP,Accounts payable,E0007605,CAPITOLHOST
,OFFICE OF THE MINORITY LEADER,2013Q2,SUPPLIES AND MATERIALS,04-26,CAPITOLHOST,04/10/13,04/10/13,FOOD & BEVERAGE,82.50,2013,AP,Accounts payable,E0007610,CAPITOLHOST
,OFFICE OF THE MINORITY LEADER,2013Q2,SUPPLIES AND MATERIALS,04-26,CAPITOLHOST,04/10/13,04/10/13,FOOD & BEVERAGE,63.00,2013,AP,Accounts payable,E0007614,CAPITOLHOST
,OFFICE OF THE MINORITY LEADER,2013Q2,SUPPLIES AND MATERIALS,04-26,HELEN OLIVIA,03/12/13,03/12/13,HABITATION EXPENSE,249.00,2013,AP,Accounts payable,E0008656,HELEN OLIVIA
,OFFICE OF THE MINORITY LEADER,2013Q2,SUPPLIES AND MATERIALS,04-26,HELEN OLIVIA,02/04/13,02/04/13,HABITATION EXPENSE,249.00,2013,AP,Accounts payable,E0008658,HELEN OLIVIA
,OFFICE OF THE MINORITY LEADER,2013Q2,SUPPLIES AND MATERIALS,04-26,HELEN OLIVIA,03/18/13,03/18/13,HABITATION EXPENSE,249.00,2013,AP,Accounts payable,E0008660,HELEN OLIVIA
,OFFICE OF THE MINORITY LEADER,2013Q2,SUPPLIES AND MATERIALS,04-26,HELEN OLIVIA,01/22/13,01/22/13,HABITATION EXPENSE,249.00,2013,AP,Accounts payable,E0008661,HELEN OLIVIA
,OFFICE OF THE MINORITY LEADER,2013Q2,SUPPLIES AND MATERIALS,04-26,HELEN OLIVIA,01/14/13,01/14/13,HABITATION EXPENSE,249.00,2013,AP,Accounts payable,E0008663,HELEN OLIVIA
,OFFICE OF THE MINORITY LEADER,2013Q2,SUPPLIES AND MATERIALS,04-26,HELEN OLIVIA,02/25/13,02/25/13,HABITATION EXPENSE,249.00,2013,AP,Accounts payable,E0008669,HELEN OLIVIA
,OFFICE OF THE MINORITY LEADER,2013Q2,SUPPLIES AND MATERIALS,04-26,HELEN OLIVIA,02/12/13,02/12/13,HABITATION EXPENSE,249.00,2013,AP,Accounts payable,E0008670,HELEN OLIVIA
,OFFICE OF THE MINORITY LEADER,2013Q2,SUPPLIES AND MATERIALS,04-29,CAPITOLHOST,01/30/13,01/30/13,FOOD & BEVERAGE,33.00,2013,AP,Accounts payable,E0007594,CAPITOLHOST
,OFFICE OF THE MINORITY LEADER,2013Q2,SUPPLIES AND MATERIALS,04-29,CAPITOLHOST,03/20/13,03/20/13,FOOD & BEVERAGE,66.00,2013,AP,Accounts payable,E0007600,CAPITOLHOST
,OFFICE OF THE MINORITY LEADER,2013Q2,SUPPLIES AND MATERIALS,04-29,CAPITOLHOST,03/12/13,03/12/13,FOOD & BEVERAGE,90.00,2013,AP,Accounts payable,E0007604,CAPITOLHOST
,OFFICE OF THE MINORITY LEADER,2013Q2,SUPPLIES AND MATERIALS,04-29,BURRELLESLUCE INFORMATION SERVICES,01/01/13,01/31/13,PUBLICATIONS/REFERENCE MAT'L,485.08,2013,AP,Accounts payable,E0007606,BURRELLESLUCE INFORMATION SERVICES
,OFFICE OF THE MINORITY LEADER,2013Q2,SUPPLIES AND MATERIALS,04-29,BURRELLESLUCE INFORMATION SERVICES,03/01/13,03/31/13,PUBLICATIONS/REFERENCE MAT'L,490.39,2013,AP,Accounts payable,E0007607,BURRELLESLUCE INFORMATION SERVICES
,OFFICE OF THE MINORITY LEADER,2013Q2,SUPPLIES AND MATERIALS,04-29,OCCASIONS CATERERS,01/04/13,01/04/13,FOOD & BEVERAGE,125.00,2013,AP,Accounts payable,E0007612,OCCASIONS CATERERS
,OFFICE OF THE MINORITY LEADER,2013Q2,SUPPLIES AND MATERIALS,04-29,BURRELLES INFORMATION SERVICES,02/01/13,02/28/13,PUBLICATIONS/REFERENCE MAT'L,384.69,2013,AP,Accounts payable,E0007620,BURRELLES INFORMATION SERVICES
,OFFICE OF THE MINORITY LEADER,2013Q2,SUPPLIES AND MATERIALS,04-29,SOUTHWEST DISTRIBUTION INC,04/01/13,06/30/13,PUBLICATIONS/REFERENCE MAT'L,"3,129.10",2013,AP,Accounts payable,E0007621,SOUTHWEST DISTRIBUTION INC
,OFFICE OF THE MINORITY LEADER,2013Q2,SUPPLIES AND MATERIALS,04-29,OCCASIONS CATERERS,01/03/13,01/03/13,FOOD & BEVERAGE,"12,635.00",2013,AP,Accounts payable,E0007622,OCCASIONS CATERERS
,OFFICE OF THE MINORITY LEADER,2013Q2,SUPPLIES AND MATERIALS,05-01,CAPITOLHOST,04/15/13,04/15/13,FOOD & BEVERAGE,66.00,2013,AP,Accounts payable,E0009322,CAPITOLHOST
,OFFICE OF THE MINORITY LEADER,2013Q2,SUPPLIES AND MATERIALS,05-01,CAPITOLHOST,04/11/13,04/11/13,FOOD & BEVERAGE,30.00,2013,AP,Accounts payable,E0009323,CAPITOLHOST
,OFFICE OF THE MINORITY LEADER,2013Q2,SUPPLIES AND MATERIALS,05-01,HELEN OLIVIA,04/09/13,04/09/13,HABITATION EXPENSE,249.00,2013,AP,Accounts payable,E0009324,HELEN OLIVIA
,OFFICE OF THE MINORITY LEADER,2013Q2,SUPPLIES AND MATERIALS,05-03,LEXIS-NEXIS,01/03/13,01/02/14,PUBLICATIONS/REFERENCE MAT'L,"19,080.00",2013,AP,Accounts payable,E0005627,LEXIS-NEXIS
,OFFICE OF THE MINORITY LEADER,2013Q2,SUPPLIES AND MATERIALS,05-07,TV EYES INC,04/01/13,03/31/14,PUBLICATIONS/REFERENCE MAT'L,"1,200.00",2013,AP,Accounts payable,E0012226,TV EYES INC
,OFFICE OF THE MINORITY LEADER,2013Q2,SUPPLIES AND MATERIALS,05-10,HAGUE QUALITY WATER,04/01/13,04/30/13,WATER,249.00,2013,AP,Accounts payable,E0007595,HAGUE QUALITY WATER
,OFFICE OF THE MINORITY LEADER,2013Q2,SUPPLIES AND MATERIALS,05-10,HAGUE QUALITY WATER OF MD INC,02/01/13,02/28/13,WATER,378.00,2013,AP,Accounts payable,E0007596,HAGUE QUALITY WATER OF MD INC
,OFFICE OF THE MINORITY LEADER,2013Q2,SUPPLIES AND MATERIALS,05-10,HAGUE QUALITY WATER OF MD INC,03/01/13,03/31/13,WATER,378.00,2013,AP,Accounts payable,E0007599,HAGUE QUALITY WATER OF MD INC
,OFFICE OF THE MINORITY LEADER,2013Q2,SUPPLIES AND MATERIALS,05-10,CAPITOLHOST,04/17/13,04/17/13,FOOD & BEVERAGE,33.00,2013,AP,Accounts payable,E0013304,CAPITOLHOST
,OFFICE OF THE MINORITY LEADER,2013Q2,SUPPLIES AND MATERIALS,05-10,CAPITOLHOST,04/23/13,04/23/13,FOOD & BEVERAGE,66.00,2013,AP,Accounts payable,E0013307,CAPITOLHOST
,OFFICE OF THE MINORITY LEADER,2013Q2,SUPPLIES AND MATERIALS,05-10,CRYSTAL SPRINGS,04/01/13,04/30/13,FOOD & BEVERAGE,467.04,2013,AP,Accounts payable,E0013308,CRYSTAL SPRINGS
,OFFICE OF THE MINORITY LEADER,2013Q2,SUPPLIES AND MATERIALS,05-10,BURRELLESLUCE INFORMATION SERVICES,04/01/13,04/30/13,PUBLICATIONS/REFERENCE MAT'L,395.14,2013,AP,Accounts payable,E0013309,BURRELLESLUCE INFORMATION SERVICES
,OFFICE OF THE MINORITY LEADER,2013Q2,SUPPLIES AND MATERIALS,05-14,HELEN OLIVIA,04/23/13,04/23/13,HABITATION EXPENSE,249.00,2013,AP,Accounts payable,E0014315,HELEN OLIVIA
,OFFICE OF THE MINORITY LEADER,2013Q2,SUPPLIES AND MATERIALS,05-14,HELEN OLIVIA,04/15/13,04/15/13,HABITATION EXPENSE,249.00,2013,AP,Accounts payable,E0014320,HELEN OLIVIA
,OFFICE OF THE MINORITY LEADER,2013Q2,SUPPLIES AND MATERIALS,05-14,HELEN OLIVIA,05/06/13,05/06/13,HABITATION EXPENSE,249.00,2013,AP,Accounts payable,E0014321,HELEN OLIVIA
,OFFICE OF THE MINORITY LEADER,2013Q2,SUPPLIES AND MATERIALS,05-21,CITI PCARD-DUNKIN,03/29/13,04/28/13,FOOD & BEVERAGE,47.95,2013,AP,Accounts payable,00669866,CITI PCARD-DUNKIN
,OFFICE OF THE MINORITY LEADER,2013Q2,SUPPLIES AND MATERIALS,05-21,CITI PCARD-FIREHOOK,03/29/13,04/28/13,FOOD & BEVERAGE,64.00,2013,AP,Accounts payable,00669866,CITI PCARD-FIREHOOK
,OFFICE OF THE MINORITY LEADER,2013Q2,SUPPLIES AND MATERIALS,05-21,CITI PCARD-HARRIS TEETER,03/29/13,04/28/13,FOOD & BEVERAGE,210.70,2013,AP,Accounts payable,00669866,CITI PCARD-HARRIS TEETER
,OFFICE OF THE MINORITY LEADER,2013Q2,SUPPLIES AND MATERIALS,05-21,CITI PCARD-TARGET,03/29/13,04/28/13,FOOD & BEVERAGE,166.85,2013,AP,Accounts payable,00669866,CITI PCARD-TARGET
,OFFICE OF THE MINORITY LEADER,2013Q2,SUPPLIES AND MATERIALS,05-24,CISION US INC,04/26/13,04/25/14,PUBLICATIONS/REFERENCE MAT'L,"5,650.00",2013,AP,Accounts payable,E0019714,CISION US INC
,OFFICE OF THE MINORITY LEADER,2013Q2,SUPPLIES AND MATERIALS,05-28,HAGUE QUALITY WATER OF MD INC,04/01/13,04/30/13,WATER,129.00,2013,AP,Accounts payable,E0019109,HAGUE QUALITY WATER OF MD INC
,OFFICE OF THE MINORITY LEADER,2013Q2,SUPPLIES AND MATERIALS,05-29,"WOLTERS, KATE",03/24/13,04/15/13,FOOD & BEVERAGE,70.67,2013,AP,Accounts payable,E0014313,"WOLTERS, KATE"
,OFFICE OF THE MINORITY LEADER,2013Q2,SUPPLIES AND MATERIALS,05-29,"WOLTERS, KATE",01/20/13,01/21/13,PUBLICATIONS/REFERENCE MAT'L,13.65,2013,AP,Accounts payable,E0014313,"WOLTERS, KATE"
,OFFICE OF THE MINORITY LEADER,2013Q2,SUPPLIES AND MATERIALS,06-03,HAGUE QUALITY WATER,05/01/13,05/31/13,WATER,378.00,2013,AP,Accounts payable,E0022571,HAGUE QUALITY WATER
,OFFICE OF THE MINORITY LEADER,2013Q2,SUPPLIES AND MATERIALS,06-03,CAPITOLHOST,05/06/13,05/06/13,FOOD & BEVERAGE,66.00,2013,AP,Accounts payable,E0022572,CAPITOLHOST
,OFFICE OF THE MINORITY LEADER,2013Q2,SUPPLIES AND MATERIALS,06-03,CAPITOLHOST,05/14/13,05/14/13,FOOD & BEVERAGE,66.00,2013,AP,Accounts payable,E0022573,CAPITOLHOST
,OFFICE OF THE MINORITY LEADER,2013Q2,SUPPLIES AND MATERIALS,06-03,CAPITOLHOST,05/08/13,05/08/13,FOOD & BEVERAGE,33.00,2013,AP,Accounts payable,E0022575,CAPITOLHOST
,OFFICE OF THE MINORITY LEADER,2013Q2,SUPPLIES AND MATERIALS,06-06,"HAMMILL, ANDREW T",02/14/13,02/14/13,PUBLICATIONS/REFERENCE MAT'L,15.98,2013,AP,Accounts payable,E0024974,"HAMMILL, ANDREW T"
,OFFICE OF THE MINORITY LEADER,2013Q2,SUPPLIES AND MATERIALS,06-06,"HAMMILL, ANDREW T",05/18/13,05/18/13,PUBLICATIONS/REFERENCE MAT'L,10.00,2013,AP,Accounts payable,E0024974,"HAMMILL, ANDREW T"
,OFFICE OF THE MINORITY LEADER,2013Q2,SUPPLIES AND MATERIALS,06-11,CAPITOLHOST,05/15/13,05/15/13,FOOD & BEVERAGE,33.00,2013,AP,Accounts payable,E0026994,CAPITOLHOST
,OFFICE OF THE MINORITY LEADER,2013Q2,SUPPLIES AND MATERIALS,06-11,CRYSTAL SPRINGS,05/01/13,05/31/13,FOOD & BEVERAGE,854.54,2013,AP,Accounts payable,E0026996,CRYSTAL SPRINGS
,OFFICE OF THE MINORITY LEADER,2013Q2,SUPPLIES AND MATERIALS,06-11,CAPITOLHOST,05/21/13,05/21/13,FOOD & BEVERAGE,841.52,2013,AP,Accounts payable,E0026998,CAPITOLHOST
,OFFICE OF THE MINORITY LEADER,2013Q2,SUPPLIES AND MATERIALS,06-11,CAPITOLHOST,05/20/13,05/20/13,FOOD & BEVERAGE,66.00,2013,AP,Accounts payable,E0027005,CAPITOLHOST
,OFFICE OF THE MINORITY LEADER,2013Q2,SUPPLIES AND MATERIALS,06-12,SOUTHWEST DISTRIBUTION INC,07/01/13,09/30/13,PUBLICATIONS/REFERENCE MAT'L,"3,493.80",2013,AP,Accounts payable,E0026993,SOUTHWEST DISTRIBUTION INC
,OFFICE OF THE MINORITY LEADER,2013Q2,SUPPLIES AND MATERIALS,06-12,CAPITOLHOST,05/16/13,05/16/13,FOOD & BEVERAGE,30.00,2013,AP,Accounts payable,E0027004,CAPITOLHOST
,OFFICE OF THE MINORITY LEADER,2013Q2,SUPPLIES AND MATERIALS,06-20,CITI PCARD-CAPTL VISITOR CTR,04/29/13,05/28/13,OFFICE SUPPLIES (OUTSIDE),100.00,2013,AP,Accounts payable,00675033,CITI PCARD-CAPTL VISITOR CTR
,OFFICE OF THE MINORITY LEADER,2013Q2,SUPPLIES AND MATERIALS,06-20,CITI PCARD-DUNKIN,04/29/13,05/28/13,FOOD & BEVERAGE,59.76,2013,AP,Accounts payable,00675033,CITI PCARD-DUNKIN
,OFFICE OF THE MINORITY LEADER,2013Q2,SUPPLIES AND MATERIALS,06-20,CITI PCARD-TARGET,04/29/13,05/28/13,FOOD & BEVERAGE,681.90,2013,AP,Accounts payable,00675033,CITI PCARD-TARGET
,OFFICE OF THE MINORITY LEADER,2013Q2,SUPPLIES AND MATERIALS,06-20,CITI PCARD-TARGET,04/29/13,05/28/13,OFFICE SUPPLIES (OUTSIDE),18.85,2013,AP,Accounts payable,00675033,CITI PCARD-TARGET
,OFFICE OF THE MINORITY LEADER,2013Q2,SUPPLIES AND MATERIALS,06-20,CITI PCARD-WHOLEFDS,04/29/13,05/28/13,FOOD & BEVERAGE,350.51,2013,AP,Accounts payable,00675033,CITI PCARD-WHOLEFDS
,OFFICE OF THE MINORITY LEADER,2013Q2,SUPPLIES AND MATERIALS,06-28,CAPITOLHOST,06/11/13,06/11/13,FOOD & BEVERAGE,66.00,2013,AP,Accounts payable,E0033520,CAPITOLHOST
,OFFICE OF THE MINORITY LEADER,2013Q2,SUPPLIES AND MATERIALS,06-28,HELEN OLIVIA,05/14/13,05/14/13,HABITATION EXPENSE,249.00,2013,AP,Accounts payable,E0033521,HELEN OLIVIA
,OFFICE OF THE MINORITY LEADER,2013Q2,SUPPLIES AND MATERIALS,06-28,BURRELLESLUCE,06/13/13,06/13/13,PUBLICATIONS/REFERENCE MAT'L,393.47,2013,AP,Accounts payable,E0033522,BURRELLESLUCE
,OFFICE OF THE MINORITY LEADER,2013Q2,SUPPLIES AND MATERIALS,06-28,HELEN OLIVIA,06/03/13,06/03/13,HABITATION EXPENSE,249.00,2013,AP,Accounts payable,E0033524,HELEN OLIVIA
,OFFICE OF THE MINORITY LEADER,2013Q2,SUPPLIES AND MATERIALS,06-28,CAPITOLHOST,06/12/13,06/12/13,FOOD & BEVERAGE,33.00,2013,AP,Accounts payable,E0033525,CAPITOLHOST
,OFFICE OF THE MINORITY LEADER,2013Q2,SUPPLIES AND MATERIALS,06-28,CAPITOLHOST,06/17/13,06/17/13,FOOD & BEVERAGE,66.00,2013,AP,Accounts payable,E0033528,CAPITOLHOST
,OFFICE OF THE MINORITY LEADER,2013Q2,SUPPLIES AND MATERIALS,06-28,HELEN OLIVIA,05/20/13,05/20/13,HABITATION EXPENSE,249.00,2013,AP,Accounts payable,E0033529,HELEN OLIVIA
,OFFICE OF THE MINORITY LEADER,2013Q2,SUPPLIES AND MATERIALS,06-28,HELEN OLIVIA,03/04/13,03/04/13,HABITATION EXPENSE,249.00,2013,AP,Accounts payable,E0033530,HELEN OLIVIA
,OFFICE OF THE MINORITY LEADER,2013Q2,SUPPLIES AND MATERIALS,06-28,HELEN OLIVIA,06/17/13,06/17/13,HABITATION EXPENSE,249.00,2013,AP,Accounts payable,E0033531,HELEN OLIVIA
,OFFICE OF THE MINORITY LEADER,2013Q2,SUPPLIES AND MATERIALS,06-28,CAPITOLHOST,06/03/13,06/03/13,FOOD & BEVERAGE,66.00,2013,AP,Accounts payable,E0033533,CAPITOLHOST
,OFFICE OF THE MINORITY LEADER,2013Q2,SUPPLIES AND MATERIALS,06-28,HAGUE QUALITY WATER OF MD INC,06/01/13,06/30/13,WATER,378.00,2013,AP,Accounts payable,E0033537,HAGUE QUALITY WATER OF MD INC
,OFFICE OF THE MINORITY LEADER,2013Q2,SUPPLIES AND MATERIALS,06-28,HELEN OLIVIA,06/10/13,06/10/13,HABITATION EXPENSE,249.00,2013,AP,Accounts payable,E0033538,HELEN OLIVIA
,OFFICE OF THE MINORITY LEADER,2013Q2,SUPPLIES AND MATERIALS,04-10,"SURGEON,BINA G",11/02/12,12/03/12,FOOD & BEVERAGE,-41.97,2012,AP,Accounts payable,00659982,"SURGEON,BINA G"
,OFFICE OF THE MINORITY LEADER,2013Q2,SUPPLIES AND MATERIALS,04-10,HELEN OLIVIA,01/02/13,01/02/13,HABITATION EXPENSE,-249.00,2012,AP,Accounts payable,00659994,HELEN OLIVIA
,OFFICE OF THE MINORITY LEADER,2013Q2,SUPPLIES AND MATERIALS,04-10,HELEN OLIVIA,12/28/12,12/28/12,HABITATION EXPENSE,-150.00,2012,AP,Accounts payable,00660009,HELEN OLIVIA
,OFFICE OF THE MINORITY LEADER,2013Q2,SUPPLIES AND MATERIALS,04-10,CAPITOL HOST,12/04/12,12/04/12,FOOD & BEVERAGE,-94.50,2012,AP,Accounts payable,00660010,CAPITOL HOST
,OFFICE OF THE MINORITY LEADER,2013Q2,SUPPLIES AND MATERIALS,04-10,CAPITOL HOST,12/04/12,12/04/12,FOOD & BEVERAGE,-33.00,2012,AP,Accounts payable,00660011,CAPITOL HOST
,OFFICE OF THE MINORITY LEADER,2013Q2,SUPPLIES AND MATERIALS,04-10,CAPITOL HOST,12/11/12,12/11/12,FOOD & BEVERAGE,-66.00,2012,AP,Accounts payable,00660013,CAPITOL HOST
,OFFICE OF THE MINORITY LEADER,2013Q2,SUPPLIES AND MATERIALS,04-10,CAPITOL HOST,12/12/12,12/12/12,FOOD & BEVERAGE,-280.40,2012,AP,Accounts payable,00660015,CAPITOL HOST
,OFFICE OF THE MINORITY LEADER,2013Q2,SUPPLIES AND MATERIALS,04-10,CAPITOL HOST,12/19/12,12/19/12,FOOD & BEVERAGE,-33.00,2012,AP,Accounts payable,00660021,CAPITOL HOST
,OFFICE OF THE MINORITY LEADER,2013Q2,SUPPLIES AND MATERIALS,04-10,HAGUE QUALITY WATER OF MD INC,12/01/12,12/31/12,WATER,-378.00,2012,AP,Accounts payable,00660026,HAGUE QUALITY WATER OF MD INC
,OFFICE OF THE MAJORITY WHIP,2013Q2,PERSONNEL COMPENSATION,"","BERRY,TIMOTHY J",04/01/13,06/30/13,CHIEF OF STAFF,"43,125.00",2013,"","","","BERRY,TIMOTHY J"
,OFFICE OF THE MAJORITY WHIP,2013Q2,PERSONNEL COMPENSATION,"","BUCHANAN,NATALIE L",04/01/13,06/30/13,DIR OF MEMBER SERVICES,"23,500.00",2013,"","","","BUCHANAN,NATALIE L"
,OFFICE OF THE MAJORITY WHIP,2013Q2,PERSONNEL COMPENSATION,"","CAREY,BRITTANY M",04/01/13,06/30/13,COALITIONS ASST/ASST. TO COS,"11,500.00",2013,"","","","CAREY,BRITTANY M"
,OFFICE OF THE MAJORITY WHIP,2013Q2,PERSONNEL COMPENSATION,"","DIXON, KELLY A",04/01/13,06/30/13,DEPUTY DIRECTOR OF FLOOR OPERA,"26,000.00",2013,"","","","DIXON, KELLY A"
,OFFICE OF THE MAJORITY WHIP,2013Q2,PERSONNEL COMPENSATION,"","ELLIOTT,ERICA L",04/01/13,06/30/13,DIRECTOR OF COMMUNICATIONS,"33,250.00",2013,"","","","ELLIOTT,ERICA L"
,OFFICE OF THE MAJORITY WHIP,2013Q2,PERSONNEL COMPENSATION,"","HENEHAN, EMILY A",04/01/13,06/30/13,POLICY ADVISOR,"23,500.00",2013,"","","","HENEHAN, EMILY A"
,OFFICE OF THE MAJORITY WHIP,2013Q2,PERSONNEL COMPENSATION,"","HOWARD,BENJAMIN R",04/01/13,06/30/13,FLOOR ASSISTANT,"15,500.00",2013,"","","","HOWARD,BENJAMIN R"
,OFFICE OF THE MAJORITY WHIP,2013Q2,PERSONNEL COMPENSATION,"","LOMBARDI, KYLE",05/01/13,05/31/13,STAFF ASSISTANT,"3,000.00",2013,"","","","LOMBARDI, KYLE"
,OFFICE OF THE MAJORITY WHIP,2013Q2,PERSONNEL COMPENSATION,"","LOMBARDI, KYLE",06/01/13,06/30/13,SHARED EMPLOYEE,"4,000.00",2013,"","","","LOMBARDI, KYLE"
,OFFICE OF THE MAJORITY WHIP,2013Q2,PERSONNEL COMPENSATION,"","LONG,MICHAEL P",04/01/13,06/30/13,PRESS SECRETARY,"18,250.00",2013,"","","","LONG,MICHAEL P"
,OFFICE OF THE MAJORITY WHIP,2013Q2,PERSONNEL COMPENSATION,"","MCCLELLAND, WESLEY R",04/01/13,06/30/13,POLICY ADVISOR,"23,500.00",2013,"","","","MCCLELLAND, WESLEY R"
,OFFICE OF THE MAJORITY WHIP,2013Q2,PERSONNEL COMPENSATION,"","METTLER,ASHLEY",04/01/13,06/30/13,MEMBER SERVICES ASSISTANT,"12,250.00",2013,"","","","METTLER,ASHLEY"
,OFFICE OF THE MAJORITY WHIP,2013Q2,PERSONNEL COMPENSATION,"","MIN, JAMES B",04/01/13,06/30/13,DEPUTY CHIEF OF STAFF,"35,000.00",2013,"","","","MIN, JAMES B"
,OFFICE OF THE MAJORITY WHIP,2013Q2,PERSONNEL COMPENSATION,"","MOORE,STEVEN E",04/01/13,06/30/13,CHIEF OF STAFF TO THE DEP WHIP,"15,000.00",2013,"","","","MOORE,STEVEN E"
,OFFICE OF THE MAJORITY WHIP,2013Q2,PERSONNEL COMPENSATION,"","MORK,DAVID I",05/20/13,06/30/13,SHARED EMPLOYEE,"3,416.67",2013,"","","","MORK,DAVID I"
,OFFICE OF THE MAJORITY WHIP,2013Q2,PERSONNEL COMPENSATION,"","PATAKI,TIMOTHY A",04/01/13,05/19/13,SPECIAL ASST TO CHIEF DEPUTY W,"4,083.33",2013,"","","","PATAKI,TIMOTHY A"
,OFFICE OF THE MAJORITY WHIP,2013Q2,PERSONNEL COMPENSATION,"","PATAKI,TIMOTHY A",05/01/13,05/19/13,SPECIAL ASST TO CHIEF DEPUTY W (OTHER COMPENSATION),"1,000.00",2013,"","","","PATAKI,TIMOTHY A"
,OFFICE OF THE MAJORITY WHIP,2013Q2,PERSONNEL COMPENSATION,"","PINKOS,STEPHEN M",04/01/13,06/30/13,POLICY DIR AND GENERAL COUNSEL,"25,416.67",2013,"","","","PINKOS,STEPHEN M"
,OFFICE OF THE MAJORITY WHIP,2013Q2,PERSONNEL COMPENSATION,"","PINKOS,STEPHEN M",06/01/13,06/30/13,POLICY DIR AND GENERAL COUNSEL (OTHER COMPENSATION),"5,000.00",2013,"","","","PINKOS,STEPHEN M"
,OFFICE OF THE MAJORITY WHIP,2013Q2,PERSONNEL COMPENSATION,"","SPARKS, MATTHEW E",04/01/13,06/30/13,DEPUTY PRESS SECRETARY,"14,000.00",2013,"","","","SPARKS, MATTHEW E"
,OFFICE OF THE MAJORITY WHIP,2013Q2,PERSONNEL COMPENSATION,"","STIPICEVIC, JOHN A",04/01/13,06/30/13,DIRECTOR OF FLOOR OPERATIONS,"34,500.00",2013,"","","","STIPICEVIC, JOHN A"
,OFFICE OF THE MAJORITY WHIP,2013Q2,PERSONNEL COMPENSATION,"","THOMSON, KRISTIN",04/01/13,06/30/13,EXECUTIVE ASSISTANT,"19,000.00",2013,"","","","THOMSON, KRISTIN"
,OFFICE OF THE MAJORITY WHIP,2013Q2,PERSONNEL COMPENSATION,"","WORTH,BRIAN A",04/01/13,06/30/13,DIRECTOR OF COALITIONS,"10,000.00",2013,"","","","WORTH,BRIAN A"
,OFFICE OF THE MAJORITY WHIP,2013Q2,TRAVEL,04-11,"MIN, JAMES B",04/04/13,04/04/13,TAXI/PARKING/TOLLS,13.00,2013,AP,Accounts payable,E0001813,"MIN, JAMES B"
,OFFICE OF THE MAJORITY WHIP,2013Q2,PRINTING AND REPRODUCTION,05-14,SHARP ELECTRONICS CORP,03/01/13,04/01/13,PRINTING & REPRODUCTION,227.76,2013,AP,Accounts payable,E0014529,SHARP ELECTRONICS CORP
,OFFICE OF THE MAJORITY WHIP,2013Q2,PRINTING AND REPRODUCTION,06-20,SHARP ELECTRONICS CORPORATION,12/01/12,12/01/12,PRINTING & REPRODUCTION,3.24,2013,AP,Accounts payable,E0031145,SHARP ELECTRONICS CORPORATION
,OFFICE OF THE MAJORITY WHIP,2013Q2,SUPPLIES AND MATERIALS,04-11,SHARP ELECTRONICS CORPORATION,03/01/13,03/01/13,OFFICE SUPPLIES (OUTSIDE),98.34,2013,AP,Accounts payable,E0001803,SHARP ELECTRONICS CORPORATION
,OFFICE OF THE MAJORITY WHIP,2013Q2,SUPPLIES AND MATERIALS,04-11,DEER PARK WATER,02/27/13,03/26/13,WATER,552.56,2013,AP,Accounts payable,E0001806,DEER PARK WATER
,OFFICE OF THE MAJORITY WHIP,2013Q2,SUPPLIES AND MATERIALS,04-11,"MIN, JAMES B",04/05/13,04/05/13,FOOD & BEVERAGE,558.96,2013,AP,Accounts payable,E0001813,"MIN, JAMES B"
,OFFICE OF THE MAJORITY WHIP,2013Q2,SUPPLIES AND MATERIALS,04-11,"METTLER, ASHLEY",03/19/13,03/19/13,FOOD & BEVERAGE,14.21,2013,AP,Accounts payable,E0001819,"METTLER, ASHLEY"
,OFFICE OF THE MAJORITY WHIP,2013Q2,SUPPLIES AND MATERIALS,04-18,CITI PCARD-CORNER BAKERY,03/01/13,03/28/13,FOOD & BEVERAGE,"1,050.09",2013,AP,Accounts payable,00664378,CITI PCARD-CORNER BAKERY
,OFFICE OF THE MAJORITY WHIP,2013Q2,SUPPLIES AND MATERIALS,04-18,CITI PCARD-HARRIS TEETER,03/01/13,03/28/13,FOOD & BEVERAGE,62.32,2013,AP,Accounts payable,00664378,CITI PCARD-HARRIS TEETER
,OFFICE OF THE MAJORITY WHIP,2013Q2,SUPPLIES AND MATERIALS,04-18,CITI PCARD-JOE RAGAN S COFFEE,03/01/13,03/28/13,FOOD & BEVERAGE,"1,046.83",2013,AP,Accounts payable,00664378,CITI PCARD-JOE RAGAN S COFFEE
,OFFICE OF THE MAJORITY WHIP,2013Q2,SUPPLIES AND MATERIALS,04-18,CITI PCARD-MATCHBOX CAPITOL HILL,03/01/13,03/28/13,FOOD & BEVERAGE,66.00,2013,AP,Accounts payable,00664378,CITI PCARD-MATCHBOX CAPITOL HILL
,OFFICE OF THE MAJORITY WHIP,2013Q2,SUPPLIES AND MATERIALS,04-18,CITI PCARD-NEW YORK TIMES DIGITAL,03/01/13,03/28/13,PUBLICATIONS/REFERENCE MAT'L,37.10,2013,AP,Accounts payable,00664378,CITI PCARD-NEW YORK TIMES DIGITAL
,OFFICE OF THE MAJORITY WHIP,2013Q2,SUPPLIES AND MATERIALS,04-18,CITI PCARD-SAFEWAY STORE,03/01/13,03/28/13,FOOD & BEVERAGE,13.47,2013,AP,Accounts payable,00664378,CITI PCARD-SAFEWAY STORE
,OFFICE OF THE MAJORITY WHIP,2013Q2,SUPPLIES AND MATERIALS,04-18,CITI PCARD-USPS,03/01/13,03/28/13,MISC. SUPPLIES & MATERIALS,4.16,2013,AP,Accounts payable,00664378,CITI PCARD-USPS
,OFFICE OF THE MAJORITY WHIP,2013Q2,SUPPLIES AND MATERIALS,04-24,BLOOMBERG FINANCE LP,01/01/13,12/31/13,PUBLICATIONS/REFERENCE MAT'L,"5,898.78",2013,AP,Accounts payable,E0006086,BLOOMBERG FINANCE LP
,OFFICE OF THE MAJORITY WHIP,2013Q2,SUPPLIES AND MATERIALS,05-14,DEER PARK WATER,03/27/13,04/26/13,WATER,337.39,2013,AP,Accounts payable,E0014518,DEER PARK WATER
,OFFICE OF THE MAJORITY WHIP,2013Q2,SUPPLIES AND MATERIALS,05-14,"METTLER, ASHLEY",04/25/13,04/25/13,FOOD & BEVERAGE,13.47,2013,AP,Accounts payable,E0014523,"METTLER, ASHLEY"
,OFFICE OF THE MAJORITY WHIP,2013Q2,SUPPLIES AND MATERIALS,05-14,"MIN, JAMES B",05/06/13,05/06/13,FOOD & BEVERAGE,389.00,2013,AP,Accounts payable,E0014525,"MIN, JAMES B"
,OFFICE OF THE MAJORITY WHIP,2013Q2,SUPPLIES AND MATERIALS,05-21,CITI PCARD-APL APPLE ITUNES STORE,03/29/13,04/28/13,OFFICE SUPPLIES (OUTSIDE),21.19,2013,AP,Accounts payable,00669866,CITI PCARD-APL APPLE ITUNES STORE
,OFFICE OF THE MAJORITY WHIP,2013Q2,SUPPLIES AND MATERIALS,05-21,CITI PCARD-BUCA DI BEPPO,03/29/13,04/28/13,FOOD & BEVERAGE,"2,091.71",2013,AP,Accounts payable,00669866,CITI PCARD-BUCA DI BEPPO
,OFFICE OF THE MAJORITY WHIP,2013Q2,SUPPLIES AND MATERIALS,05-21,CITI PCARD-CORNER BAKERY,03/29/13,04/28/13,FOOD & BEVERAGE,"1,580.75",2013,AP,Accounts payable,00669866,CITI PCARD-CORNER BAKERY
,OFFICE OF THE MAJORITY WHIP,2013Q2,SUPPLIES AND MATERIALS,05-21,CITI PCARD-JOE RAGAN S COFFEE,03/29/13,04/28/13,FOOD & BEVERAGE,487.69,2013,AP,Accounts payable,00669866,CITI PCARD-JOE RAGAN S COFFEE
,OFFICE OF THE MAJORITY WHIP,2013Q2,SUPPLIES AND MATERIALS,05-21,CITI PCARD-NEW YORK TIMES DIGITAL,03/29/13,04/28/13,PUBLICATIONS/REFERENCE MAT'L,37.10,2013,AP,Accounts payable,00669866,CITI PCARD-NEW YORK TIMES DIGITAL
,OFFICE OF THE MAJORITY WHIP,2013Q2,SUPPLIES AND MATERIALS,05-21,CITI PCARD-SAFEWAY STORE,03/29/13,04/28/13,FOOD & BEVERAGE,13.47,2013,AP,Accounts payable,00669866,CITI PCARD-SAFEWAY STORE
,OFFICE OF THE MAJORITY WHIP,2013Q2,SUPPLIES AND MATERIALS,06-05,"METTLER, ASHLEY",05/16/13,05/16/13,FOOD & BEVERAGE,13.47,2013,AP,Accounts payable,E0023800,"METTLER, ASHLEY"
,OFFICE OF THE MAJORITY WHIP,2013Q2,SUPPLIES AND MATERIALS,06-05,"METTLER, ASHLEY",05/23/13,05/23/13,FOOD & BEVERAGE,13.47,2013,AP,Accounts payable,E0023800,"METTLER, ASHLEY"
,OFFICE OF THE MAJORITY WHIP,2013Q2,SUPPLIES AND MATERIALS,06-20,CITI PCARD-BUCA DI BEPPO-WASHINGT,04/29/13,05/28/13,FOOD & BEVERAGE,"1,009.82",2013,AP,Accounts payable,00675033,CITI PCARD-BUCA DI BEPPO-WASHINGT
,OFFICE OF THE MAJORITY WHIP,2013Q2,SUPPLIES AND MATERIALS,06-20,CITI PCARD-CORNER BAKERY,04/29/13,05/28/13,FOOD & BEVERAGE,717.40,2013,AP,Accounts payable,00675033,CITI PCARD-CORNER BAKERY
,OFFICE OF THE MAJORITY WHIP,2013Q2,SUPPLIES AND MATERIALS,06-20,CITI PCARD-FIRST CHOICE JOE RAGAN,04/29/13,05/28/13,FOOD & BEVERAGE,383.49,2013,AP,Accounts payable,00675033,CITI PCARD-FIRST CHOICE JOE RAGAN
,OFFICE OF THE MAJORITY WHIP,2013Q2,SUPPLIES AND MATERIALS,06-20,CITI PCARD-JOE RAGAN S COFFEE,04/29/13,05/28/13,FOOD & BEVERAGE,241.64,2013,AP,Accounts payable,00675033,CITI PCARD-JOE RAGAN S COFFEE
,OFFICE OF THE MAJORITY WHIP,2013Q2,SUPPLIES AND MATERIALS,06-20,CITI PCARD-NEW YORK TIMES DIGITAL,04/29/13,05/28/13,PUBLICATIONS/REFERENCE MAT'L,37.10,2013,AP,Accounts payable,00675033,CITI PCARD-NEW YORK TIMES DIGITAL
,OFFICE OF THE MAJORITY WHIP,2013Q2,SUPPLIES AND MATERIALS,06-20,CITI PCARD-ZORBA'S WASHINGTON,04/29/13,05/28/13,FOOD & BEVERAGE,528.00,2013,AP,Accounts payable,00675033,CITI PCARD-ZORBA'S WASHINGTON
,OFFICE OF THE MINORITY WHIP,2013Q2,PERSONNEL COMPENSATION,"","ABOUCHAR, KEITH S",04/01/13,06/30/13,SENIOR POLICY ADVISOR,549.99,2013,"","","","ABOUCHAR, KEITH S"
,OFFICE OF THE MINORITY WHIP,2013Q2,PERSONNEL COMPENSATION,"","AVILES,DANIELLE R",04/01/13,06/30/13,EXECUTIVE ASST OFFICE MANAGER,"11,000.01",2013,"","","","AVILES,DANIELLE R"
,OFFICE OF THE MINORITY WHIP,2013Q2,PERSONNEL COMPENSATION,"","BOHANAN JR, JOHN L",04/01/13,06/30/13,CONSTITUENT LIAISON,"1,500.00",2013,"","","","BOHANAN JR, JOHN L"
,OFFICE OF THE MINORITY WHIP,2013Q2,PERSONNEL COMPENSATION,"","BURNES, AUSTIN W",04/01/13,05/31/13,DIR. OF LEGISLATIVE OPERATIONS,"20,000.00",2013,"","","","BURNES, AUSTIN W"
,OFFICE OF THE MINORITY WHIP,2013Q2,PERSONNEL COMPENSATION,"","COBIA, LINDSEY G",04/01/13,06/30/13,STAFF ASSISTANT,"6,249.99",2013,"","","","COBIA, LINDSEY G"
,OFFICE OF THE MINORITY WHIP,2013Q2,PERSONNEL COMPENSATION,"","COBIA, LINDSEY G",03/01/13,05/31/13,STAFF ASSISTANT (OVERTIME),"2,343.73",2013,"","","","COBIA, LINDSEY G"
,OFFICE OF THE MINORITY WHIP,2013Q2,PERSONNEL COMPENSATION,"","COLLINS, MICHAEL E",04/01/13,06/30/13,CHIEF DEPUTY WHIP,"10,625.01",2013,"","","","COLLINS, MICHAEL E"
,OFFICE OF THE MINORITY WHIP,2013Q2,PERSONNEL COMPENSATION,"","COVEY-BRANDT, ALEXIS",04/01/13,06/30/13,CHIEF OF STAFF,"22,629.00",2013,"","","","COVEY-BRANDT, ALEXIS"
,OFFICE OF THE MINORITY WHIP,2013Q2,PERSONNEL COMPENSATION,"","DEBOSIER, CHRISTOPHER M",04/01/13,04/04/13,DIR OF MEM SERVICES & OUTREACH,972.22,2013,"","","","DEBOSIER, CHRISTOPHER M"
,OFFICE OF THE MINORITY WHIP,2013Q2,PERSONNEL COMPENSATION,"","DWYER, STEPHEN",04/01/13,06/30/13,DIGITAL DIR & POLICY ADV,"11,000.01",2013,"","","","DWYER, STEPHEN"
,OFFICE OF THE MINORITY WHIP,2013Q2,PERSONNEL COMPENSATION,"","FRY,COURTNEY",04/01/13,06/30/13,DEP OUTREACH DIR & MEM SER ADV,"19,166.66",2013,"","","","FRY,COURTNEY"
,OFFICE OF THE MINORITY WHIP,2013Q2,PERSONNEL COMPENSATION,"","GENSEMER,ELLIOT J",04/01/13,06/30/13,SPECIAL ASSIST & PROJECT COORD,"9,999.99",2013,"","","","GENSEMER,ELLIOT J"
,OFFICE OF THE MINORITY WHIP,2013Q2,PERSONNEL COMPENSATION,"","GOFF,SHUWANZA R",04/01/13,06/30/13,DEPUTY DIR LEG OPERATIONS,"19,166.66",2013,"","","","GOFF,SHUWANZA R"
,OFFICE OF THE MINORITY WHIP,2013Q2,PERSONNEL COMPENSATION,"","GRANT,KATHRYN L",04/01/13,06/30/13,COMMUNICATIONS DIRECTOR,"27,500.01",2013,"","","","GRANT,KATHRYN L"
,OFFICE OF THE MINORITY WHIP,2013Q2,PERSONNEL COMPENSATION,"","LEUSCHEN, JAMES P",04/01/13,06/30/13,SENIOR POLICY ADVISOR,"33,249.99",2013,"","","","LEUSCHEN, JAMES P"
,OFFICE OF THE MINORITY WHIP,2013Q2,PERSONNEL COMPENSATION,"","MAHR,THOMAS",04/01/13,06/30/13,POLICY DIRECTOR,"10,299.99",2013,"","","","MAHR,THOMAS"
,OFFICE OF THE MINORITY WHIP,2013Q2,PERSONNEL COMPENSATION,"","MARTINEZ, JAVIER D",04/01/13,06/30/13,DEP DIR OF MBR SERV & OUTR ADV,"18,750.00",2013,"","","","MARTINEZ, JAVIER D"
,OFFICE OF THE MINORITY WHIP,2013Q2,PERSONNEL COMPENSATION,"","MEDLEY, ANNA E",04/01/13,06/30/13,DIR OF SCHEDLNG & SPEC EVENTS,"17,499.99",2013,"","","","MEDLEY, ANNA E"
,OFFICE OF THE MINORITY WHIP,2013Q2,PERSONNEL COMPENSATION,"","MURRAY, ELIZABETH M",04/01/13,06/30/13,SENIOR POLICY ADVISOR,"1,050.00",2013,"","","","MURRAY, ELIZABETH M"
,OFFICE OF THE MINORITY WHIP,2013Q2,PERSONNEL COMPENSATION,"","OTT,AMANDA M",04/01/13,06/30/13,MIN STAFF CONS/SPECIAL PROJ (P,"9,999.99",2013,"","","","OTT,AMANDA M"
,OFFICE OF THE MINORITY WHIP,2013Q2,PERSONNEL COMPENSATION,"","REPKO,MARY F",04/01/13,06/30/13,SENIOR POLICY ADVISOR,300.00,2013,"","","","REPKO,MARY F"
,OFFICE OF THE MINORITY WHIP,2013Q2,PERSONNEL COMPENSATION,"","RODRIGUEZ,FEDERICO J",04/01/13,06/30/13,STAFF ASSISTANT,"6,249.99",2013,"","","","RODRIGUEZ,FEDERICO J"
,OFFICE OF THE MINORITY WHIP,2013Q2,PERSONNEL COMPENSATION,"","RODRIGUEZ,FEDERICO J",03/01/13,05/31/13,STAFF ASSISTANT (OVERTIME),"2,596.14",2013,"","","","RODRIGUEZ,FEDERICO J"
,OFFICE OF THE MINORITY WHIP,2013Q2,PERSONNEL COMPENSATION,"","ROMICK, BRIAN",04/01/13,06/30/13,WHIP DIR AND SENIOR ADVISOR,300.00,2013,"","","","ROMICK, BRIAN"
,OFFICE OF THE MINORITY WHIP,2013Q2,PERSONNEL COMPENSATION,"","SAEZ,MARIEL S",04/01/13,06/30/13,DEPUTY PRESS SECRETARY,"9,750.00",2013,"","","","SAEZ,MARIEL S"
,OFFICE OF THE MINORITY WHIP,2013Q2,PERSONNEL COMPENSATION,"","SHOTT,DANIEL",04/01/13,06/30/13,FLOOR ASSISTANT,"12,500.01",2013,"","","","SHOTT,DANIEL"
,OFFICE OF THE MINORITY WHIP,2013Q2,PERSONNEL COMPENSATION,"","SIXKILLER, MARIAH S",04/01/13,06/30/13,SENIOR POLICY ADVISOR,"14,499.99",2013,"","","","SIXKILLER, MARIAH S"
,OFFICE OF THE MINORITY WHIP,2013Q2,PERSONNEL COMPENSATION,"","WEISSMANN, ADAM",04/01/13,06/30/13,SPEECHWRITER,"13,749.99",2013,"","","","WEISSMANN, ADAM"
,OFFICE OF THE MINORITY WHIP,2013Q2,TRAVEL,04-08,"AVILES,DANIELLE R",03/14/13,03/14/13,TAXI/PARKING/TOLLS,27.00,2013,AP,Accounts payable,E0000079,"AVILES,DANIELLE R"
,OFFICE OF THE MINORITY WHIP,2013Q2,TRAVEL,04-08,"COBIA, LINDSEY G",02/19/13,02/19/13,TAXI/PARKING/TOLLS,15.29,2013,AP,Accounts payable,E0000084,"COBIA, LINDSEY G"
,OFFICE OF THE MINORITY WHIP,2013Q2,TRAVEL,04-08,"COBIA, LINDSEY G",03/22/13,03/22/13,TAXI/PARKING/TOLLS,20.00,2013,AP,Accounts payable,E0000087,"COBIA, LINDSEY G"
,OFFICE OF THE MINORITY WHIP,2013Q2,TRAVEL,04-08,"AVILES,DANIELLE R",02/28/13,02/28/13,TAXI/PARKING/TOLLS,27.00,2013,AP,Accounts payable,E0000092,"AVILES,DANIELLE R"
,OFFICE OF THE MINORITY WHIP,2013Q2,TRAVEL,04-10,"COBIA, LINDSEY G",03/21/13,03/21/13,TAXI/PARKING/TOLLS,6.00,2013,AP,Accounts payable,E0000897,"COBIA, LINDSEY G"
,OFFICE OF THE MINORITY WHIP,2013Q2,TRAVEL,04-10,"AVILES,DANIELLE R",03/21/13,03/21/13,TAXI/PARKING/TOLLS,27.00,2013,AP,Accounts payable,E0000908,"AVILES,DANIELLE R"
,OFFICE OF THE MINORITY WHIP,2013Q2,TRAVEL,05-08,"COBIA, LINDSEY G",04/09/13,04/09/13,TAXI/PARKING/TOLLS,16.00,2013,AP,Accounts payable,E0012673,"COBIA, LINDSEY G"
,OFFICE OF THE MINORITY WHIP,2013Q2,TRAVEL,05-08,"GENSEMER, ELLIOT J",04/17/13,04/17/13,TAXI/PARKING/TOLLS,11.00,2013,AP,Accounts payable,E0012674,"GENSEMER, ELLIOT J"
,OFFICE OF THE MINORITY WHIP,2013Q2,TRAVEL,05-08,"GENSEMER, ELLIOT J",05/03/13,05/03/13,TAXI/PARKING/TOLLS,17.00,2013,AP,Accounts payable,E0012675,"GENSEMER, ELLIOT J"
,OFFICE OF THE MINORITY WHIP,2013Q2,TRAVEL,05-08,"AVILES,DANIELLE R",04/11/13,04/11/13,TAXI/PARKING/TOLLS,26.00,2013,AP,Accounts payable,E0012678,"AVILES,DANIELLE R"
,OFFICE OF THE MINORITY WHIP,2013Q2,TRAVEL,05-08,"AVILES,DANIELLE R",04/25/13,04/25/13,TAXI/PARKING/TOLLS,26.00,2013,AP,Accounts payable,E0012680,"AVILES,DANIELLE R"
,OFFICE OF THE MINORITY WHIP,2013Q2,TRAVEL,05-08,"AVILES,DANIELLE R",04/18/13,04/18/13,TAXI/PARKING/TOLLS,28.00,2013,AP,Accounts payable,E0012681,"AVILES,DANIELLE R"
,OFFICE OF THE MINORITY WHIP,2013Q2,TRAVEL,05-08,"COBIA, LINDSEY G",04/22/13,04/22/13,TAXI/PARKING/TOLLS,9.00,2013,AP,Accounts payable,E0012682,"COBIA, LINDSEY G"
,OFFICE OF THE MINORITY WHIP,2013Q2,TRAVEL,06-14,"AVILES,DANIELLE R",05/16/13,05/16/13,TAXI/PARKING/TOLLS,24.00,2013,AP,Accounts payable,E0028903,"AVILES,DANIELLE R"
,OFFICE OF THE MINORITY WHIP,2013Q2,TRAVEL,06-14,"AVILES,DANIELLE R",05/09/13,05/09/13,TAXI/PARKING/TOLLS,26.00,2013,AP,Accounts payable,E0028909,"AVILES,DANIELLE R"
,OFFICE OF THE MINORITY WHIP,2013Q2,TRAVEL,06-14,"AVILES,DANIELLE R",06/05/13,06/05/13,TAXI/PARKING/TOLLS,23.00,2013,AP,Accounts payable,E0028914,"AVILES,DANIELLE R"
,OFFICE OF THE MINORITY WHIP,2013Q2,TRAVEL,06-14,"COBIA, LINDSEY G",05/10/13,05/10/13,TAXI/PARKING/TOLLS,8.00,2013,AP,Accounts payable,E0028915,"COBIA, LINDSEY G"
,OFFICE OF THE MINORITY WHIP,2013Q2,TRAVEL,06-17,"COBIA, LINDSEY G",05/17/13,05/17/13,TAXI/PARKING/TOLLS,7.00,2013,AP,Accounts payable,E0028907,"COBIA, LINDSEY G"
,OFFICE OF THE MINORITY WHIP,2013Q2,TRAVEL,06-17,"COBIA, LINDSEY G",06/04/13,06/04/13,TAXI/PARKING/TOLLS,11.00,2013,AP,Accounts payable,E0028908,"COBIA, LINDSEY G"
,OFFICE OF THE MINORITY WHIP,2013Q2,TRAVEL,06-17,"AVILES,DANIELLE R",06/13/13,06/13/13,TAXI/PARKING/TOLLS,25.00,2013,AP,Accounts payable,E0028910,"AVILES,DANIELLE R"
,OFFICE OF THE MINORITY WHIP,2013Q2,TRAVEL,06-17,"SHOTT,DANIEL",06/05/13,06/05/13,TAXI/PARKING/TOLLS,17.00,2013,AP,Accounts payable,E0028911,"SHOTT,DANIEL"
,OFFICE OF THE MINORITY WHIP,2013Q2,TRAVEL,06-17,"AVILES,DANIELLE R",06/06/13,06/06/13,TAXI/PARKING/TOLLS,26.00,2013,AP,Accounts payable,E0028912,"AVILES,DANIELLE R"
,OFFICE OF THE MINORITY WHIP,2013Q2,TRAVEL,06-17,"GENSEMER, ELLIOT J",05/17/13,05/17/13,TAXI/PARKING/TOLLS,17.00,2013,AP,Accounts payable,E0028913,"GENSEMER, ELLIOT J"
,OFFICE OF THE MINORITY WHIP,2013Q2,"RENT, COMMUNICATION, UTILITIES",04-18,CITI PCARD-AT&T DATA,03/01/13,03/28/13,TELECOMSRV/EQ/TOLL CHARGE,25.00,2013,AP,Accounts payable,00664378,CITI PCARD-AT&T DATA
,OFFICE OF THE MINORITY WHIP,2013Q2,"RENT, COMMUNICATION, UTILITIES",04-18,CITI PCARD-METROCAST MARYLAND VIR,03/01/13,03/28/13,UTILITIES,97.90,2013,AP,Accounts payable,00664378,CITI PCARD-METROCAST MARYLAND VIR
,OFFICE OF THE MINORITY WHIP,2013Q2,PRINTING AND REPRODUCTION,05-08,DAVID L. ANDRUKITUS INC,04/29/13,04/29/13,PRINTING & REPRODUCTION,57.50,2013,AP,Accounts payable,E0012677,DAVID L. ANDRUKITUS INC
,OFFICE OF THE MINORITY WHIP,2013Q2,PRINTING AND REPRODUCTION,05-08,DAVID L. ANDRUKITUS INC,04/29/13,04/29/13,PRINTING & REPRODUCTION,415.00,2013,AP,Accounts payable,E0012679,DAVID L. ANDRUKITUS INC
,OFFICE OF THE MINORITY WHIP,2013Q2,OTHER SERVICES,04-18,CITI PCARD-WWW.1AND1.COM,03/01/13,03/28/13,NON-TECHNOLOGY SERVICE CONTR,112.97,2013,AP,Accounts payable,00664378,CITI PCARD-WWW.1AND1.COM
,OFFICE OF THE MINORITY WHIP,2013Q2,SUPPLIES AND MATERIALS,04-18,CITI PCARD-CAPITOL ADVANTAGE PUBL,03/01/13,03/28/13,OFFICE SUPPLIES (OUTSIDE),62.06,2013,AP,Accounts payable,00664378,CITI PCARD-CAPITOL ADVANTAGE PUBL
,OFFICE OF THE MINORITY WHIP,2013Q2,SUPPLIES AND MATERIALS,04-18,CITI PCARD-CORCORAN CATERERS,03/01/13,03/28/13,FOOD & BEVERAGE,546.25,2013,AP,Accounts payable,00664378,CITI PCARD-CORCORAN CATERERS
,OFFICE OF THE MINORITY WHIP,2013Q2,SUPPLIES AND MATERIALS,04-18,CITI PCARD-DUNKIN,03/01/13,03/28/13,FOOD & BEVERAGE,50.56,2013,AP,Accounts payable,00664378,CITI PCARD-DUNKIN
,OFFICE OF THE MINORITY WHIP,2013Q2,SUPPLIES AND MATERIALS,04-18,CITI PCARD-NEW YORK TIMES DIGITAL,03/01/13,03/28/13,PUBLICATIONS/REFERENCE MAT'L,37.10,2013,AP,Accounts payable,00664378,CITI PCARD-NEW YORK TIMES DIGITAL
,OFFICE OF THE MINORITY WHIP,2013Q2,SUPPLIES AND MATERIALS,04-18,CITI PCARD-RA CAPITAL M,03/01/13,03/28/13,FOOD & BEVERAGE,15.78,2013,AP,Accounts payable,00664378,CITI PCARD-RA CAPITAL M
,OFFICE OF THE MINORITY WHIP,2013Q2,SUPPLIES AND MATERIALS,05-21,CITI PCARD-HARRIS TEETER,03/29/13,04/28/13,FOOD & BEVERAGE,26.52,2013,AP,Accounts payable,00669866,CITI PCARD-HARRIS TEETER
,OFFICE OF THE MINORITY WHIP,2013Q2,SUPPLIES AND MATERIALS,05-21,CITI PCARD-NEW YORK TIMES DIGITAL,03/29/13,04/28/13,PUBLICATIONS/REFERENCE MAT'L,37.10,2013,AP,Accounts payable,00669866,CITI PCARD-NEW YORK TIMES DIGITAL
,OFFICE OF THE MINORITY WHIP,2013Q2,SUPPLIES AND MATERIALS,05-21,CITI PCARD-RA CAPITAL M,03/29/13,04/28/13,FOOD & BEVERAGE,46.75,2013,AP,Accounts payable,00669866,CITI PCARD-RA CAPITAL M
,OFFICE OF THE MINORITY WHIP,2013Q2,SUPPLIES AND MATERIALS,06-20,CITI PCARD-LEADERSHIP DIRECTORIES,04/29/13,05/28/13,PUBLICATIONS/REFERENCE MAT'L,"1,040.00",2013,AP,Accounts payable,00675033,CITI PCARD-LEADERSHIP DIRECTORIES
,OFFICE OF THE MINORITY WHIP,2013Q2,SUPPLIES AND MATERIALS,06-20,CITI PCARD-NEW YORK TIMES DIGITAL,04/29/13,05/28/13,PUBLICATIONS/REFERENCE MAT'L,37.10,2013,AP,Accounts payable,00675033,CITI PCARD-NEW YORK TIMES DIGITAL
,OFFICE OF THE MINORITY WHIP,2013Q2,SUPPLIES AND MATERIALS,06-20,CITI PCARD-RA CAPITAL M,04/29/13,05/28/13,FOOD & BEVERAGE,45.52,2013,AP,Accounts payable,00675033,CITI PCARD-RA CAPITAL M
,OFFICE OF THE MINORITY WHIP,2013Q2,EQUIPMENT,05-08,METRO DATA NETWORKS LLC,10/16/12,10/15/13,MAINTENANCE / REPAIRS,"1,447.85",2013,AP,Accounts payable,E0012693,METRO DATA NETWORKS LLC
,OFFICE OF THE MINORITY WHIP,2013Q2,SUPPLIES AND MATERIALS,04-15,PANERA BREAD COMPANY,12/12/12,12/12/12,FOOD & BEVERAGE,132.93,2012,AP,Accounts payable,E0002306,PANERA BREAD COMPANY
,DEMOCRATIC CAUCUS,2013Q2,PERSONNEL COMPENSATION,"","ALVI,HINA R",04/01/13,06/30/13,SHARED EMPLOYEE,"7,500.00",2013,"","","","ALVI,HINA R"
,DEMOCRATIC CAUCUS,2013Q2,PERSONNEL COMPENSATION,"","ATTAPIT,SIRAT",04/01/13,06/30/13,SENIOR POLICY COUNSEL,"16,626.99",2013,"","","","ATTAPIT,SIRAT"
,DEMOCRATIC CAUCUS,2013Q2,PERSONNEL COMPENSATION,"","AVERY,SAMUEL R",04/01/13,06/30/13,PRESS ASSISTANT,"9,227.79",2013,"","","","AVERY,SAMUEL R"
,DEMOCRATIC CAUCUS,2013Q2,PERSONNEL COMPENSATION,"","AVERY,SAMUEL R",03/01/13,04/30/13,PRESS ASSISTANT (OVERTIME),567.18,2013,"","","","AVERY,SAMUEL R"
,DEMOCRATIC CAUCUS,2013Q2,PERSONNEL COMPENSATION,"","BACKEMEYER,COURTNEY G",04/01/13,06/30/13,COMMUNICTNS DIR TO VICE CHRMN,"7,775.01",2013,"","","","BACKEMEYER,COURTNEY G"
,DEMOCRATIC CAUCUS,2013Q2,PERSONNEL COMPENSATION,"","CASEY, KEVIN",04/01/13,06/30/13,POLICY DIRECTOR / VICE CHAIR,"21,250.01",2013,"","","","CASEY, KEVIN"
,DEMOCRATIC CAUCUS,2013Q2,PERSONNEL COMPENSATION,"","DAGADAKIS,STAMATIOS",04/01/13,05/31/13,DEPUTY EXEC DIRECTOR,"5,500.00",2013,"","","","DAGADAKIS,STAMATIOS"
,DEMOCRATIC CAUCUS,2013Q2,PERSONNEL COMPENSATION,"","DAVALOS,LETICIA M",04/01/13,06/30/13,STAFF ASSISTANT,"6,500.01",2013,"","","","DAVALOS,LETICIA M"
,DEMOCRATIC CAUCUS,2013Q2,PERSONNEL COMPENSATION,"","DAVALOS,LETICIA M",03/01/13,05/30/13,STAFF ASSISTANT (OVERTIME),"1,045.30",2013,"","","","DAVALOS,LETICIA M"
,DEMOCRATIC CAUCUS,2013Q2,PERSONNEL COMPENSATION,"","DELANEY, ERIC L",04/01/13,06/30/13,SR MBR OUTREACH ASST,"12,500.01",2013,"","","","DELANEY, ERIC L"
,DEMOCRATIC CAUCUS,2013Q2,PERSONNEL COMPENSATION,"","DIXON, DEBRA A",06/01/13,06/30/13,CHIEF OF STAFF,"13,934.25",2013,"","","","DIXON, DEBRA A"
,DEMOCRATIC CAUCUS,2013Q2,PERSONNEL COMPENSATION,"","ESTRADA,ANDREW M",05/13/13,06/30/13,STAFF ASSISTANT,"3,466.67",2013,"","","","ESTRADA,ANDREW M"
,DEMOCRATIC CAUCUS,2013Q2,PERSONNEL COMPENSATION,"","ESTRADA,ANDREW M",05/13/13,05/31/13,STAFF ASSISTANT (OVERTIME),435.93,2013,"","","","ESTRADA,ANDREW M"
,DEMOCRATIC CAUCUS,2013Q2,PERSONNEL COMPENSATION,"","GLEESON,JAMES M",03/01/13,06/30/13,PRESS SEC FOR THE VICE CHAIR,"24,687.51",2013,"","","","GLEESON,JAMES M"
,DEMOCRATIC CAUCUS,2013Q2,PERSONNEL COMPENSATION,"","HERRERA,DANIEL",04/01/13,06/30/13,PRESS SECRETARY,"12,750.00",2013,"","","","HERRERA,DANIEL"
,DEMOCRATIC CAUCUS,2013Q2,PERSONNEL COMPENSATION,"","JONES II,MERVYN L",04/01/13,06/30/13,"SPECIAL ASSISTANT,VICE CHAIR","10,950.00",2013,"","","","JONES II,MERVYN L"
,DEMOCRATIC CAUCUS,2013Q2,PERSONNEL COMPENSATION,"","MARTINEZ,GRISELLA M",06/01/13,06/30/13,SR LEGISLATIVE ASSISTANT,"4,983.33",2013,"","","","MARTINEZ,GRISELLA M"
,DEMOCRATIC CAUCUS,2013Q2,PERSONNEL COMPENSATION,"","MCCLUSKIE,SEAN E",03/01/13,06/30/13,STAFF DIR FOR THE VICE CHAIR,"47,301.75",2013,"","","","MCCLUSKIE,SEAN E"
,DEMOCRATIC CAUCUS,2013Q2,PERSONNEL COMPENSATION,"","PEREZ-SANCHEZ,NOEL",04/01/13,06/30/13,MEMBER OUTREACH ASSISTANT,"10,833.33",2013,"","","","PEREZ-SANCHEZ,NOEL"
,DEMOCRATIC CAUCUS,2013Q2,PERSONNEL COMPENSATION,"","PERONACE,ANTONIO",04/01/13,04/01/13,CREATIVE DIRECTOR,222.22,2013,"","","","PERONACE,ANTONIO"
,DEMOCRATIC CAUCUS,2013Q2,PERSONNEL COMPENSATION,"","RODRIGUEZ-CIAMPOLI,FABIOLA",04/01/13,06/30/13,EXECUTIVE DIRECTOR,"38,111.08",2013,"","","","RODRIGUEZ-CIAMPOLI,FABIOLA"
,DEMOCRATIC CAUCUS,2013Q2,PERSONNEL COMPENSATION,"","SACHSE,ANDREW M",04/01/13,06/30/13,STAFF ASSISTANT,"7,500.00",2013,"","","","SACHSE,ANDREW M"
,DEMOCRATIC CAUCUS,2013Q2,PERSONNEL COMPENSATION,"","SALDANA,AMANDA M",04/15/13,06/30/13,MEMBER OUTREACH ASSISTANT,"9,500.00",2013,"","","","SALDANA,AMANDA M"
,DEMOCRATIC CAUCUS,2013Q2,PERSONNEL COMPENSATION,"","SHARMA,MOH R",04/01/13,06/30/13,POLICY ADVISOR,"11,250.00",2013,"","","","SHARMA,MOH R"
,DEMOCRATIC CAUCUS,2013Q2,PERSONNEL COMPENSATION,"","SKILES, KATHLEE",04/01/13,06/30/13,PRESS SEC& DIR OF ONLINE STRAT,"13,749.99",2013,"","","","SKILES, KATHLEE"
,DEMOCRATIC CAUCUS,2013Q2,PERSONNEL COMPENSATION,"","VENEGAS,STEPHANIE A",04/01/13,06/30/13,DEPUTY DIR OF OPERATIONS,"17,250.00",2013,"","","","VENEGAS,STEPHANIE A"
,DEMOCRATIC CAUCUS,2013Q2,PERSONNEL COMPENSATION,"","WINKLER, KATHERINE E",04/01/13,06/30/13,SHARED EMPLOYEE,"21,250.01",2013,"","","","WINKLER, KATHERINE E"
,DEMOCRATIC CAUCUS,2013Q2,"RENT, COMMUNICATION, UTILITIES",04-18,CITI PCARD-USPS,03/01/13,03/28/13,POSTAGE / COURIER / BOX RENTAL,41.40,2013,AP,Accounts payable,00664378,CITI PCARD-USPS
,DEMOCRATIC CAUCUS,2013Q2,"RENT, COMMUNICATION, UTILITIES",05-21,CITI PCARD-USTREAM TV,03/29/13,04/28/13,UTILITIES,99.00,2013,AP,Accounts payable,00669866,CITI PCARD-USTREAM TV
,DEMOCRATIC CAUCUS,2013Q2,"RENT, COMMUNICATION, UTILITIES",06-20,CITI PCARD-USPS,04/29/13,05/28/13,POSTAGE / COURIER / BOX RENTAL,18.40,2013,AP,Accounts payable,00675033,CITI PCARD-USPS
,DEMOCRATIC CAUCUS,2013Q2,OTHER SERVICES,04-18,CITI PCARD-CLASSICLEANERS-LONGWOR,03/01/13,03/28/13,LAUNDRY SERVICES,47.50,2013,AP,Accounts payable,00664378,CITI PCARD-CLASSICLEANERS-LONGWOR
,DEMOCRATIC CAUCUS,2013Q2,OTHER SERVICES,05-21,CITI PCARD-CLASSICLEANERS,03/29/13,04/28/13,LAUNDRY SERVICES,88.00,2013,AP,Accounts payable,00669866,CITI PCARD-CLASSICLEANERS
,DEMOCRATIC CAUCUS,2013Q2,OTHER SERVICES,06-20,CITI PCARD-CLASSICLEANERS-LONGWOR,04/29/13,05/28/13,LAUNDRY SERVICES,95.00,2013,AP,Accounts payable,00675033,CITI PCARD-CLASSICLEANERS-LONGWOR
,DEMOCRATIC CAUCUS,2013Q2,SUPPLIES AND MATERIALS,04-05,"DIXON, DEBRA A",02/03/13,02/03/13,FOOD & BEVERAGE,"1,206.44",2013,AP,Accounts payable,00658931,"DIXON, DEBRA A"
,DEMOCRATIC CAUCUS,2013Q2,SUPPLIES AND MATERIALS,04-05,"DIXON, DEBRA A",01/03/13,01/03/13,FOOD & BEVERAGE,173.90,2013,AP,Accounts payable,00658932,"DIXON, DEBRA A"
,DEMOCRATIC CAUCUS,2013Q2,SUPPLIES AND MATERIALS,04-05,"DIXON, DEBRA A",01/14/13,01/14/13,FOOD & BEVERAGE,245.68,2013,AP,Accounts payable,00658933,"DIXON, DEBRA A"
,DEMOCRATIC CAUCUS,2013Q2,SUPPLIES AND MATERIALS,04-05,"DIXON, DEBRA A",01/04/13,01/04/13,FOOD & BEVERAGE,"1,552.68",2013,AP,Accounts payable,00658935,"DIXON, DEBRA A"
,DEMOCRATIC CAUCUS,2013Q2,SUPPLIES AND MATERIALS,04-18,"CITI PCARD-CATERING BY AVALON, IN",03/01/13,03/28/13,FOOD & BEVERAGE,"1,146.92",2013,AP,Accounts payable,00664378,"CITI PCARD-CATERING BY AVALON, IN"
,DEMOCRATIC CAUCUS,2013Q2,SUPPLIES AND MATERIALS,04-18,CITI PCARD-DREAMZ CATERING,03/01/13,03/28/13,FOOD & BEVERAGE,"1,232.50",2013,AP,Accounts payable,00664378,CITI PCARD-DREAMZ CATERING
,DEMOCRATIC CAUCUS,2013Q2,SUPPLIES AND MATERIALS,04-18,CITI PCARD-HARRIS TEETER,03/01/13,03/28/13,FOOD & BEVERAGE,814.73,2013,AP,Accounts payable,00664378,CITI PCARD-HARRIS TEETER
,DEMOCRATIC CAUCUS,2013Q2,SUPPLIES AND MATERIALS,04-18,CITI PCARD-PANERA BREAD,03/01/13,03/28/13,FOOD & BEVERAGE,65.40,2013,AP,Accounts payable,00664378,CITI PCARD-PANERA BREAD
,DEMOCRATIC CAUCUS,2013Q2,SUPPLIES AND MATERIALS,04-18,CITI PCARD-PAYPAL GEORGETOWND,03/01/13,03/28/13,FOOD & BEVERAGE,132.50,2013,AP,Accounts payable,00664378,CITI PCARD-PAYPAL GEORGETOWND
,DEMOCRATIC CAUCUS,2013Q2,SUPPLIES AND MATERIALS,04-18,CITI PCARD-ST GERMAIN CATERERS,03/01/13,03/28/13,FOOD & BEVERAGE,985.00,2013,AP,Accounts payable,00664378,CITI PCARD-ST GERMAIN CATERERS
,DEMOCRATIC CAUCUS,2013Q2,SUPPLIES AND MATERIALS,04-18,CITI PCARD-WASHPOS SUBSCRIPTION,03/01/13,03/28/13,PUBLICATIONS/REFERENCE MAT'L,361.40,2013,AP,Accounts payable,00664378,CITI PCARD-WASHPOS SUBSCRIPTION
,DEMOCRATIC CAUCUS,2013Q2,SUPPLIES AND MATERIALS,04-18,CITI PCARD-WHOLEFDS PST,03/01/13,03/28/13,FOOD & BEVERAGE,3.99,2013,AP,Accounts payable,00664378,CITI PCARD-WHOLEFDS PST
,DEMOCRATIC CAUCUS,2013Q2,SUPPLIES AND MATERIALS,05-02,TV EYES INC,01/03/13,12/31/13,PUBLICATIONS/REFERENCE MAT'L,"1,200.00",2013,AP,Accounts payable,00658936,TV EYES INC
,DEMOCRATIC CAUCUS,2013Q2,SUPPLIES AND MATERIALS,05-07,ACCOUNTS RECEIVABLE,02/06/13,02/08/13,FOOD & BEVERAGE,"17,200.30",2013,AP,Accounts payable,E0012125,ACCOUNTS RECEIVABLE
,DEMOCRATIC CAUCUS,2013Q2,SUPPLIES AND MATERIALS,05-21,CITI PCARD-FIREHOOK BAKERY-WHOLES,03/29/13,04/28/13,FOOD & BEVERAGE,539.80,2013,AP,Accounts payable,00669866,CITI PCARD-FIREHOOK BAKERY-WHOLES
,DEMOCRATIC CAUCUS,2013Q2,SUPPLIES AND MATERIALS,05-21,CITI PCARD-HARRIS TEETER,03/29/13,04/28/13,FOOD & BEVERAGE,964.20,2013,AP,Accounts payable,00669866,CITI PCARD-HARRIS TEETER
,DEMOCRATIC CAUCUS,2013Q2,SUPPLIES AND MATERIALS,05-21,CITI PCARD-LEADERSHIP DIRECTORIES,03/29/13,04/28/13,PUBLICATIONS/REFERENCE MAT'L,447.00,2013,AP,Accounts payable,00669866,CITI PCARD-LEADERSHIP DIRECTORIES
,DEMOCRATIC CAUCUS,2013Q2,SUPPLIES AND MATERIALS,05-21,CITI PCARD-PACIFIC NEWS SERVICE,03/29/13,04/28/13,PUBLICATIONS/REFERENCE MAT'L,350.00,2013,AP,Accounts payable,00669866,CITI PCARD-PACIFIC NEWS SERVICE
,DEMOCRATIC CAUCUS,2013Q2,SUPPLIES AND MATERIALS,06-20,"CITI PCARD-CATERING BY AVALON, IN",04/29/13,05/28/13,FOOD & BEVERAGE,"7,939.68",2013,AP,Accounts payable,00675033,"CITI PCARD-CATERING BY AVALON, IN"
,DEMOCRATIC CAUCUS,2013Q2,SUPPLIES AND MATERIALS,06-20,CITI PCARD-HARRIS TEETER,04/29/13,05/28/13,FOOD & BEVERAGE,822.28,2013,AP,Accounts payable,00675033,CITI PCARD-HARRIS TEETER
,DEMOCRATIC CAUCUS,2013Q2,SUPPLIES AND MATERIALS,06-20,CITI PCARD-ORIENTAL TRADING CO,04/29/13,05/28/13,OFFICE SUPPLIES (OUTSIDE),96.15,2013,AP,Accounts payable,00675033,CITI PCARD-ORIENTAL TRADING CO
,DEMOCRATIC CAUCUS,2013Q2,SUPPLIES AND MATERIALS,06-20,CITI PCARD-PAYPAL GEORGETOWND,04/29/13,05/28/13,FOOD & BEVERAGE,111.00,2013,AP,Accounts payable,00675033,CITI PCARD-PAYPAL GEORGETOWND
,DEMOCRATIC CAUCUS,2013Q2,SUPPLIES AND MATERIALS,06-20,CITI PCARD-USTREAM TV,04/29/13,05/28/13,PUBLICATIONS/REFERENCE MAT'L,99.00,2013,AP,Accounts payable,00675033,CITI PCARD-USTREAM TV
,DEMOCRATIC CAUCUS,2013Q2,SUPPLIES AND MATERIALS,06-20,CITI PCARD-WHOLEFDS PST,04/29/13,05/28/13,FOOD & BEVERAGE,37.72,2013,AP,Accounts payable,00675033,CITI PCARD-WHOLEFDS PST
,DEMOCRATIC CAUCUS,2013Q2,EQUIPMENT,05-21,CITI PCARD-B & H PHOTO-VIDEO.COM,03/29/13,04/28/13,"OFFICE EQUIP PURCH LESS THAN $25,000","1,390.53",2013,AP,Accounts payable,00669866,CITI PCARD-B & H PHOTO-VIDEO.COM
,DEMOCRATIC CAUCUS,2013Q2,SUPPLIES AND MATERIALS,04-10,"BRACHMAN, ELLIS A",01/01/13,01/01/13,FOOD & BEVERAGE,-186.56,2012,AP,Accounts payable,00660035,"BRACHMAN, ELLIS A"
,DEMOCRATIC CAUCUS,2013Q2,SUPPLIES AND MATERIALS,04-10,"ESPARZA DIGGS, IRMA Y",12/30/12,01/01/13,FOOD & BEVERAGE,-810.22,2012,AP,Accounts payable,00660036,"ESPARZA DIGGS, IRMA Y"
,REPUBLICAN CONFERENCE,2013Q2,PERSONNEL COMPENSATION,"","BEDARD,EDWARD A",04/01/13,06/30/13,STAFF ASSISTANT,"8,750.01",2013,"","","","BEDARD,EDWARD A"
,REPUBLICAN CONFERENCE,2013Q2,PERSONNEL COMPENSATION,"","BETZ, KIMBERLY S",04/01/13,06/30/13,POLICY DIRECTOR,"37,500.00",2013,"","","","BETZ, KIMBERLY S"
,REPUBLICAN CONFERENCE,2013Q2,PERSONNEL COMPENSATION,"","CAMERON,TIMOTHY M",04/01/13,06/30/13,DIRECTOR OF DIGITAL MEDIA,"20,499.99",2013,"","","","CAMERON,TIMOTHY M"
,REPUBLICAN CONFERENCE,2013Q2,PERSONNEL COMPENSATION,"","COLLIGAN,DYLAN H",04/01/13,06/30/13,DEPUTY PRESS SECRETARY,"8,750.01",2013,"","","","COLLIGAN,DYLAN H"
,REPUBLICAN CONFERENCE,2013Q2,PERSONNEL COMPENSATION,"","CONNELL, MARJORIE F",04/01/13,06/30/13,DIRECTOR OF OPERATIONS,"20,000.01",2013,"","","","CONNELL, MARJORIE F"
,REPUBLICAN CONFERENCE,2013Q2,PERSONNEL COMPENSATION,"","DEUTSCH,JEREMY",04/01/13,06/30/13,CHIEF OF STAFF,"19,000.00",2013,"","","","DEUTSCH,JEREMY"
,REPUBLICAN CONFERENCE,2013Q2,PERSONNEL COMPENSATION,"","GAITAN,WADI",04/01/13,06/30/13,DEP PRESS SECY HISPANIC MEDIA,"12,000.00",2013,"","","","GAITAN,WADI"
,REPUBLICAN CONFERENCE,2013Q2,PERSONNEL COMPENSATION,"","GRAVES,JOEL D",04/01/13,06/30/13,STAFF ASSISTANT,"8,000.01",2013,"","","","GRAVES,JOEL D"
,REPUBLICAN CONFERENCE,2013Q2,PERSONNEL COMPENSATION,"","HODSON,NATHAN M",04/01/13,06/30/13,DIRECTOR OF COMMUNICATIONS,"28,749.99",2013,"","","","HODSON,NATHAN M"
,REPUBLICAN CONFERENCE,2013Q2,PERSONNEL COMPENSATION,"","LEVINER,EMILY E",04/03/13,06/30/13,POLICY ADVISOR,"12,222.23",2013,"","","","LEVINER,EMILY E"
,REPUBLICAN CONFERENCE,2013Q2,PERSONNEL COMPENSATION,"","LITMAN,RIVA",04/01/13,06/30/13,PRESS SECRETARY,"16,749.99",2013,"","","","LITMAN,RIVA"
,REPUBLICAN CONFERENCE,2013Q2,PERSONNEL COMPENSATION,"","MURPHY,SHAUGHNESSY P",04/01/13,06/30/13,SENIOR ADVISOR,"29,887.50",2013,"","","","MURPHY,SHAUGHNESSY P"
,REPUBLICAN CONFERENCE,2013Q2,PERSONNEL COMPENSATION,"","MUZIN,NICOLAS D",04/01/13,06/30/13,DIRECTOR OF OUTREACH,"33,750.00",2013,"","","","MUZIN,NICOLAS D"
,REPUBLICAN CONFERENCE,2013Q2,PERSONNEL COMPENSATION,"","PATRU, KATHRYN M",04/01/13,06/09/13,DIR OF MEMBER SERVICES,"28,750.00",2013,"","","","PATRU, KATHRYN M"
,REPUBLICAN CONFERENCE,2013Q2,PERSONNEL COMPENSATION,"","PINEGAR,PHILLIP",04/01/13,06/30/13,STAFF ASSISTANT,"8,750.01",2013,"","","","PINEGAR,PHILLIP"
,REPUBLICAN CONFERENCE,2013Q2,PERSONNEL COMPENSATION,"","SHORE,STANLEY",04/01/13,06/30/13,SENIOR ADVISOR,"4,500.00",2013,"","","","SHORE,STANLEY"
,REPUBLICAN CONFERENCE,2013Q2,PERSONNEL COMPENSATION,"","STEVENS,PAMELA R",04/01/13,06/30/13,DIRECTOR OF MEDIA AFFAIRS,"31,250.01",2013,"","","","STEVENS,PAMELA R"
,REPUBLICAN CONFERENCE,2013Q2,PERSONNEL COMPENSATION,"","WHITTMAN,JOHN L",04/01/13,06/30/13,RAPID RESPONSE COORDINATOR,"11,250.00",2013,"","","","WHITTMAN,JOHN L"
,REPUBLICAN CONFERENCE,2013Q2,"RENT, COMMUNICATION, UTILITIES",04-22,CRAFT MEDIA DIGITAL,02/19/13,02/19/13,RECORDING (OUTSIDE),"-4,000.00",2013,AP,Accounts payable,00664577,CRAFT MEDIA DIGITAL
,REPUBLICAN CONFERENCE,2013Q2,"RENT, COMMUNICATION, UTILITIES",04-24,MASTERTRACK PRODUCTIONS,03/28/13,03/28/13,RECORDING (OUTSIDE),"1,000.00",2013,AP,Accounts payable,E0005668,MASTERTRACK PRODUCTIONS
,REPUBLICAN CONFERENCE,2013Q2,"RENT, COMMUNICATION, UTILITIES",05-03,AVA VIDEO PRODUCTIONS,01/31/13,01/31/13,RECORDING (OUTSIDE),"1,050.00",2013,AP,Accounts payable,E0003135,AVA VIDEO PRODUCTIONS
,REPUBLICAN CONFERENCE,2013Q2,PRINTING AND REPRODUCTION,04-25,"GRAVES, JOEL D",04/09/13,04/09/13,PRINTING & REPRODUCTION,43.37,2013,AP,Accounts payable,E0005673,"GRAVES, JOEL D"
,REPUBLICAN CONFERENCE,2013Q2,PRINTING AND REPRODUCTION,04-25,"GRAVES, JOEL D",04/10/13,04/10/13,PRINTING & REPRODUCTION,32.84,2013,AP,Accounts payable,E0005673,"GRAVES, JOEL D"
,REPUBLICAN CONFERENCE,2013Q2,PRINTING AND REPRODUCTION,04-25,"GRAVES, JOEL D",04/11/13,04/11/13,PRINTING & REPRODUCTION,7.90,2013,AP,Accounts payable,E0005673,"GRAVES, JOEL D"
,REPUBLICAN CONFERENCE,2013Q2,PRINTING AND REPRODUCTION,06-06,"GRAVES, JOEL D",05/30/13,05/30/13,PRINTING & REPRODUCTION,10.54,2013,AP,Accounts payable,E0023840,"GRAVES, JOEL D"
,REPUBLICAN CONFERENCE,2013Q2,PRINTING AND REPRODUCTION,06-18,"HODSON, NATHAN",06/04/13,06/04/13,PRINTING & REPRODUCTION,366.18,2013,AP,Accounts payable,E0029831,"HODSON, NATHAN"
,REPUBLICAN CONFERENCE,2013Q2,PRINTING AND REPRODUCTION,06-19,CANON BUSINESS SOLUTIONS,05/21/13,05/21/13,PRINTING & REPRODUCTION,360.00,2013,AP,Accounts payable,E0029846,CANON BUSINESS SOLUTIONS
,REPUBLICAN CONFERENCE,2013Q2,PRINTING AND REPRODUCTION,06-20,CITI PCARD-PAYPAL ENVATO,04/29/13,05/28/13,ADVERTISEMENTS,100.00,2013,AP,Accounts payable,00675033,CITI PCARD-PAYPAL ENVATO
,REPUBLICAN CONFERENCE,2013Q2,OTHER SERVICES,04-17,O'DONNELL & ASSOC LTD,04/01/13,04/01/13,TRAINING,"6,400.00",2013,AP,Accounts payable,E0003134,O'DONNELL & ASSOC LTD
,REPUBLICAN CONFERENCE,2013Q2,OTHER SERVICES,04-18,CITI PCARD-ECSUITE.COM,03/01/13,03/28/13,NON-TECHNOLOGY SERVICE CONTR,5.95,2013,AP,Accounts payable,00664378,CITI PCARD-ECSUITE.COM
,REPUBLICAN CONFERENCE,2013Q2,OTHER SERVICES,04-18,CITI PCARD-MB ENVATO.COM,03/01/13,03/28/13,MISCELLANEOUS OTHER SERVICES,100.00,2013,AP,Accounts payable,00664378,CITI PCARD-MB ENVATO.COM
,REPUBLICAN CONFERENCE,2013Q2,OTHER SERVICES,04-18,CITI PCARD-TYPEKIT BY ADOBE,03/01/13,03/28/13,MISCELLANEOUS OTHER SERVICES,99.99,2013,AP,Accounts payable,00664378,CITI PCARD-TYPEKIT BY ADOBE
,REPUBLICAN CONFERENCE,2013Q2,OTHER SERVICES,04-22,CAPITOL CONTENDER,02/04/13,02/04/13,CONSULTANT CONTRACT SERVICE,"-5,000.00",2013,AP,Accounts payable,00664572,CAPITOL CONTENDER
,REPUBLICAN CONFERENCE,2013Q2,OTHER SERVICES,04-22,CAPITOL CONTENDER,02/04/13,02/04/13,"WEB DEV HST,EMAIL & RLTD SERV","-4,975.00",2013,AP,Accounts payable,00664575,CAPITOL CONTENDER
,REPUBLICAN CONFERENCE,2013Q2,OTHER SERVICES,04-22,DATAGRAPHICS,03/01/13,03/01/13,"WEB DEV HST,EMAIL & RLTD SERV","-15,000.00",2013,AP,Accounts payable,00664582,DATAGRAPHICS
,REPUBLICAN CONFERENCE,2013Q2,OTHER SERVICES,05-03,CAPITOL CONTENDER,04/01/13,04/30/13,TECHNOLOGY SERVICE CONTRACTS,"1,590.00",2013,AP,Accounts payable,E0010556,CAPITOL CONTENDER
,REPUBLICAN CONFERENCE,2013Q2,OTHER SERVICES,05-21,CITI PCARD-ECSUITE.COM,03/29/13,04/28/13,TECHNOLOGY SERVICE CONTRACTS,5.95,2013,AP,Accounts payable,00669866,CITI PCARD-ECSUITE.COM
,REPUBLICAN CONFERENCE,2013Q2,OTHER SERVICES,05-21,CITI PCARD-HTTP://WEBEX.COM,03/29/13,04/28/13,TECHNOLOGY SERVICE CONTRACTS,89.00,2013,AP,Accounts payable,00669866,CITI PCARD-HTTP://WEBEX.COM
,REPUBLICAN CONFERENCE,2013Q2,OTHER SERVICES,05-21,O'DONNELL & ASSOC LTD,05/01/13,05/31/13,TRAINING,"4,000.00",2013,AP,Accounts payable,E0016597,O'DONNELL & ASSOC LTD
,REPUBLICAN CONFERENCE,2013Q2,OTHER SERVICES,06-18,ARAMARK REFRESHMENT SERVICES,03/28/13,03/28/13,EQUIPMENT INSTALLATION,75.00,2013,AP,Accounts payable,E0029642,ARAMARK REFRESHMENT SERVICES
,REPUBLICAN CONFERENCE,2013Q2,OTHER SERVICES,06-18,O'DONNELL & ASSOC LTD,06/01/13,06/30/13,TRAINING,"4,000.00",2013,AP,Accounts payable,E0029655,O'DONNELL & ASSOC LTD
,REPUBLICAN CONFERENCE,2013Q2,OTHER SERVICES,06-20,CITI PCARD-ECSUITE.COM,04/29/13,05/28/13,NON-TECHNOLOGY SERVICE CONTR,5.95,2013,AP,Accounts payable,00675033,CITI PCARD-ECSUITE.COM
,REPUBLICAN CONFERENCE,2013Q2,SUPPLIES AND MATERIALS,04-10,"BEDARD, ED",03/18/13,03/18/13,FOOD & BEVERAGE,15.48,2013,AP,Accounts payable,00656530,"BEDARD, ED"
,REPUBLICAN CONFERENCE,2013Q2,SUPPLIES AND MATERIALS,04-16,CAPITOLHOST,03/05/13,03/05/13,FOOD & BEVERAGE,740.40,2013,AP,Accounts payable,E0003131,CAPITOLHOST
,REPUBLICAN CONFERENCE,2013Q2,SUPPLIES AND MATERIALS,04-17,DORNETTE MARJORIE F,03/25/13,03/25/13,FOOD & BEVERAGE,59.33,2013,AP,Accounts payable,E0003132,DORNETTE MARJORIE F
,REPUBLICAN CONFERENCE,2013Q2,SUPPLIES AND MATERIALS,04-17,DORNETTE MARJORIE F,04/02/13,04/02/13,FOOD & BEVERAGE,566.37,2013,AP,Accounts payable,E0003132,DORNETTE MARJORIE F
,REPUBLICAN CONFERENCE,2013Q2,SUPPLIES AND MATERIALS,04-17,DORNETTE MARJORIE F,04/05/13,04/05/13,FOOD & BEVERAGE,300.07,2013,AP,Accounts payable,E0003132,DORNETTE MARJORIE F
,REPUBLICAN CONFERENCE,2013Q2,SUPPLIES AND MATERIALS,04-18,CITI PCARD-RA CANNON,03/01/13,03/28/13,FOOD & BEVERAGE,11.10,2013,AP,Accounts payable,00664378,CITI PCARD-RA CANNON
,REPUBLICAN CONFERENCE,2013Q2,SUPPLIES AND MATERIALS,04-23,"BETZ, KIMBERLY S",04/04/13,04/04/13,FOOD & BEVERAGE,140.00,2013,AP,Accounts payable,E0003130,"BETZ, KIMBERLY S"
,REPUBLICAN CONFERENCE,2013Q2,SUPPLIES AND MATERIALS,04-24,ARAMARK REFRESHMENT SERVICES,03/28/13,03/28/13,FOOD & BEVERAGE,547.16,2013,AP,Accounts payable,E0005667,ARAMARK REFRESHMENT SERVICES
,REPUBLICAN CONFERENCE,2013Q2,SUPPLIES AND MATERIALS,04-24,DORNETTE MARJORIE F,04/10/13,04/10/13,FOOD & BEVERAGE,111.32,2013,AP,Accounts payable,E0005670,DORNETTE MARJORIE F
,REPUBLICAN CONFERENCE,2013Q2,SUPPLIES AND MATERIALS,04-24,DORNETTE MARJORIE F,04/11/13,04/11/13,FOOD & BEVERAGE,303.80,2013,AP,Accounts payable,E0005670,DORNETTE MARJORIE F
,REPUBLICAN CONFERENCE,2013Q2,SUPPLIES AND MATERIALS,04-24,DORNETTE MARJORIE F,04/16/13,04/16/13,FOOD & BEVERAGE,219.23,2013,AP,Accounts payable,E0005670,DORNETTE MARJORIE F
,REPUBLICAN CONFERENCE,2013Q2,SUPPLIES AND MATERIALS,04-24,FANITICS INC,04/16/13,06/30/13,PUBLICATIONS/REFERENCE MAT'L,"1,250.00",2013,AP,Accounts payable,E0005671,FANITICS INC
,REPUBLICAN CONFERENCE,2013Q2,SUPPLIES AND MATERIALS,04-24,"HODSON, NATHAN",04/12/13,04/12/13,FOOD & BEVERAGE,240.90,2013,AP,Accounts payable,E0005672,"HODSON, NATHAN"
,REPUBLICAN CONFERENCE,2013Q2,SUPPLIES AND MATERIALS,05-03,"HODSON, NATHAN",04/19/13,04/19/13,FOOD & BEVERAGE,326.10,2013,AP,Accounts payable,E0010345,"HODSON, NATHAN"
,REPUBLICAN CONFERENCE,2013Q2,SUPPLIES AND MATERIALS,05-03,DORNETTE MARJORIE F,04/23/13,04/23/13,FOOD & BEVERAGE,80.17,2013,AP,Accounts payable,E0010353,DORNETTE MARJORIE F
,REPUBLICAN CONFERENCE,2013Q2,SUPPLIES AND MATERIALS,05-03,DORNETTE MARJORIE F,04/24/13,04/24/13,FOOD & BEVERAGE,9.58,2013,AP,Accounts payable,E0010353,DORNETTE MARJORIE F
,REPUBLICAN CONFERENCE,2013Q2,SUPPLIES AND MATERIALS,05-03,DORNETTE MARJORIE F,04/26/13,04/26/13,FOOD & BEVERAGE,309.37,2013,AP,Accounts payable,E0010353,DORNETTE MARJORIE F
,REPUBLICAN CONFERENCE,2013Q2,SUPPLIES AND MATERIALS,05-03,"GRAVES, JOEL D",04/24/13,04/24/13,FOOD & BEVERAGE,111.69,2013,AP,Accounts payable,E0010363,"GRAVES, JOEL D"
,REPUBLICAN CONFERENCE,2013Q2,SUPPLIES AND MATERIALS,05-03,CAPITOL HOST,04/24/13,04/24/13,FOOD & BEVERAGE,660.00,2013,AP,Accounts payable,E0010552,CAPITOL HOST
,REPUBLICAN CONFERENCE,2013Q2,SUPPLIES AND MATERIALS,05-03,ARAMARK REFRESHMENT SERVICES,05/01/13,05/31/13,FOOD & BEVERAGE,106.00,2013,AP,Accounts payable,E0010554,ARAMARK REFRESHMENT SERVICES
,REPUBLICAN CONFERENCE,2013Q2,SUPPLIES AND MATERIALS,05-03,ARAMARK REFRESHMENT SERVICES,04/17/13,04/17/13,FOOD & BEVERAGE,234.00,2013,AP,Accounts payable,E0010557,ARAMARK REFRESHMENT SERVICES
,REPUBLICAN CONFERENCE,2013Q2,SUPPLIES AND MATERIALS,05-07,DORNETTE MARJORIE F,04/24/13,04/24/13,FOOD & BEVERAGE,89.75,2013,AP,Accounts payable,E0011824,DORNETTE MARJORIE F
,REPUBLICAN CONFERENCE,2013Q2,SUPPLIES AND MATERIALS,05-07,DORNETTE MARJORIE F,04/26/13,04/26/13,FOOD & BEVERAGE,309.37,2013,AP,Accounts payable,E0011824,DORNETTE MARJORIE F
,REPUBLICAN CONFERENCE,2013Q2,SUPPLIES AND MATERIALS,05-20,DORNETTE MARJORIE F,05/02/13,05/02/13,FOOD & BEVERAGE,576.48,2013,AP,Accounts payable,E0016525,DORNETTE MARJORIE F
,REPUBLICAN CONFERENCE,2013Q2,SUPPLIES AND MATERIALS,05-21,"CITI PCARD-ADOBE SYSTEMS, INC",03/29/13,04/28/13,SOFTWARE LESS THAN $500,370.93,2013,AP,Accounts payable,00669866,"CITI PCARD-ADOBE SYSTEMS, INC"
,REPUBLICAN CONFERENCE,2013Q2,SUPPLIES AND MATERIALS,05-21,CITI PCARD-COSI,03/29/13,04/28/13,FOOD & BEVERAGE,219.10,2013,AP,Accounts payable,00669866,CITI PCARD-COSI
,REPUBLICAN CONFERENCE,2013Q2,SUPPLIES AND MATERIALS,05-21,CITI PCARD-RA CANNON,03/29/13,04/28/13,FOOD & BEVERAGE,9.70,2013,AP,Accounts payable,00669866,CITI PCARD-RA CANNON
,REPUBLICAN CONFERENCE,2013Q2,SUPPLIES AND MATERIALS,05-21,"CITI PCARD-WRAP2GO, LLC",03/29/13,04/28/13,FOOD & BEVERAGE,110.00,2013,AP,Accounts payable,00669866,"CITI PCARD-WRAP2GO, LLC"
,REPUBLICAN CONFERENCE,2013Q2,SUPPLIES AND MATERIALS,05-21,WRAP2GO LLC,05/07/13,05/07/13,FOOD & BEVERAGE,151.47,2013,AP,Accounts payable,E0016594,WRAP2GO LLC
,REPUBLICAN CONFERENCE,2013Q2,SUPPLIES AND MATERIALS,05-21,"JIRIK, MONICA",04/11/13,04/11/13,FOOD & BEVERAGE,89.23,2013,AP,Accounts payable,E0017094,"JIRIK, MONICA"
,REPUBLICAN CONFERENCE,2013Q2,SUPPLIES AND MATERIALS,05-21,"JIRIK, MONICA",04/17/13,04/17/13,FOOD & BEVERAGE,36.25,2013,AP,Accounts payable,E0017094,"JIRIK, MONICA"
,REPUBLICAN CONFERENCE,2013Q2,SUPPLIES AND MATERIALS,05-21,"JIRIK, MONICA",04/24/13,04/24/13,FOOD & BEVERAGE,28.28,2013,AP,Accounts payable,E0017094,"JIRIK, MONICA"
,REPUBLICAN CONFERENCE,2013Q2,SUPPLIES AND MATERIALS,05-23,"HODSON, NATHAN",04/12/13,04/12/13,FOOD & BEVERAGE,40.00,2013,AP,Accounts payable,E0011603,"HODSON, NATHAN"
,REPUBLICAN CONFERENCE,2013Q2,SUPPLIES AND MATERIALS,05-23,"HODSON, NATHAN",04/19/13,04/19/13,FOOD & BEVERAGE,326.10,2013,AP,Accounts payable,E0011823,"HODSON, NATHAN"
,REPUBLICAN CONFERENCE,2013Q2,SUPPLIES AND MATERIALS,05-29,ARAMARK REFRESHMENT SERVICES,06/01/13,06/30/13,FOOD & BEVERAGE,106.00,2013,AP,Accounts payable,E0020864,ARAMARK REFRESHMENT SERVICES
,REPUBLICAN CONFERENCE,2013Q2,SUPPLIES AND MATERIALS,05-29,ARAMARK REFRESHMENT SERVICES,05/22/13,05/22/13,FOOD & BEVERAGE,109.75,2013,AP,Accounts payable,E0020865,ARAMARK REFRESHMENT SERVICES
,REPUBLICAN CONFERENCE,2013Q2,SUPPLIES AND MATERIALS,05-29,DORNETTE MARJORIE F,05/14/13,05/14/13,FOOD & BEVERAGE,230.25,2013,AP,Accounts payable,E0020870,DORNETTE MARJORIE F
,REPUBLICAN CONFERENCE,2013Q2,SUPPLIES AND MATERIALS,05-29,"HODSON, NATHAN",05/17/13,05/17/13,FOOD & BEVERAGE,285.90,2013,AP,Accounts payable,E0020871,"HODSON, NATHAN"
,REPUBLICAN CONFERENCE,2013Q2,SUPPLIES AND MATERIALS,06-05,WASHINGTON POST #1202,05/24/13,06/11/14,PUBLICATIONS/REFERENCE MAT'L,589.16,2013,AP,Accounts payable,E0023871,WASHINGTON POST #1202
,REPUBLICAN CONFERENCE,2013Q2,SUPPLIES AND MATERIALS,06-06,"HODSON, NATHAN",05/31/13,05/31/13,FOOD & BEVERAGE,289.94,2013,AP,Accounts payable,E0023873,"HODSON, NATHAN"
,REPUBLICAN CONFERENCE,2013Q2,SUPPLIES AND MATERIALS,06-06,"JIRIK, MONICA",05/15/13,05/15/13,FOOD & BEVERAGE,19.53,2013,AP,Accounts payable,E0024041,"JIRIK, MONICA"
,REPUBLICAN CONFERENCE,2013Q2,SUPPLIES AND MATERIALS,06-18,CAPITOLHOST,05/21/13,05/21/13,FOOD & BEVERAGE,740.40,2013,AP,Accounts payable,E0029658,CAPITOLHOST
,REPUBLICAN CONFERENCE,2013Q2,SUPPLIES AND MATERIALS,06-18,"GRAVES, JOEL D",06/12/13,06/12/13,FOOD & BEVERAGE,28.79,2013,AP,Accounts payable,E0029801,"GRAVES, JOEL D"
,REPUBLICAN CONFERENCE,2013Q2,SUPPLIES AND MATERIALS,06-18,ARAMARK REFRESHMENT SERVICES,04/01/13,04/30/13,FOOD & BEVERAGE,106.00,2013,AP,Accounts payable,E0030031,ARAMARK REFRESHMENT SERVICES
,REPUBLICAN CONFERENCE,2013Q2,SUPPLIES AND MATERIALS,06-20,"CITI PCARD-ADOBE SYSTEMS, INC",04/29/13,05/28/13,OFFICE SUPPLIES (OUTSIDE),137.77,2013,AP,Accounts payable,00675033,"CITI PCARD-ADOBE SYSTEMS, INC"
,REPUBLICAN CONFERENCE,2013Q2,SUPPLIES AND MATERIALS,06-20,CITI PCARD-AMAZON.COM,04/29/13,05/28/13,PUBLICATIONS/REFERENCE MAT'L,74.52,2013,AP,Accounts payable,00675033,CITI PCARD-AMAZON.COM
,REPUBLICAN CONFERENCE,2013Q2,SUPPLIES AND MATERIALS,06-20,CITI PCARD-CAPITOL HOST (RIDGEWEL,04/29/13,05/28/13,FOOD & BEVERAGE,"6,833.69",2013,AP,Accounts payable,00675033,CITI PCARD-CAPITOL HOST (RIDGEWEL
,REPUBLICAN CONFERENCE,2013Q2,SUPPLIES AND MATERIALS,06-20,CITI PCARD-COSI,04/29/13,05/28/13,FOOD & BEVERAGE,129.12,2013,AP,Accounts payable,00675033,CITI PCARD-COSI
,REPUBLICAN CONFERENCE,2013Q2,SUPPLIES AND MATERIALS,06-20,CITI PCARD-HTTP://WEBEX.COM,04/29/13,05/28/13,OFFICE SUPPLIES (OUTSIDE),89.00,2013,AP,Accounts payable,00675033,CITI PCARD-HTTP://WEBEX.COM
,REPUBLICAN CONFERENCE,2013Q2,SUPPLIES AND MATERIALS,06-20,CITI PCARD-ISTOCK INTERNATIONAL,04/29/13,05/28/13,HABITATION EXPENSE,231.00,2013,AP,Accounts payable,00675033,CITI PCARD-ISTOCK INTERNATIONAL
,REPUBLICAN CONFERENCE,2013Q2,SUPPLIES AND MATERIALS,06-20,CITI PCARD-QDOBA MEXICAN GRIL,04/29/13,05/28/13,FOOD & BEVERAGE,"1,605.94",2013,AP,Accounts payable,00675033,CITI PCARD-QDOBA MEXICAN GRIL
,REPUBLICAN CONFERENCE,2013Q2,SUPPLIES AND MATERIALS,04-10,SHADOW TV INC,01/01/13,02/14/13,PUBLICATIONS/REFERENCE MAT'L,-750.00,2012,AP,Accounts payable,00660030,SHADOW TV INC
,OFFICE OF THE SPEAKER,2013Q2,SUPPLIES AND MATERIALS,04-30,CITIBANK P CARD,01/03/13,01/28/13,FOOD & BEVERAGE,"-8,170.55",2013,AP,Accounts payable,00636390,CITIBANK P CARD
,OFFICE OF THE SPEAKER,2013Q2,SUPPLIES AND MATERIALS,05-01,CITIBANK P CARD,01/29/13,02/28/13,FOOD & BEVERAGE,"-6,202.83",2013,AP,Accounts payable,00665122,CITIBANK P CARD
,OFFICE OF THE SPEAKER,2013Q2,SUPPLIES AND MATERIALS,04-03,DESIGN CUISINE,12/04/12,12/04/12,FOOD & BEVERAGE,"6,696.00",2012,AP,Accounts payable,00657422,DESIGN CUISINE
,OFFICE OF THE MINORITY LEADER,2013Q2,SUPPLIES AND MATERIALS,04-10,"SURGEON,BINA G",11/02/12,12/03/12,FOOD & BEVERAGE,41.97,2012,AP,Accounts payable,00659982,"SURGEON,BINA G"
,OFFICE OF THE MINORITY LEADER,2013Q2,SUPPLIES AND MATERIALS,04-10,HELEN OLIVIA,01/02/13,01/02/13,HABITATION EXPENSE,249.00,2012,AP,Accounts payable,00659994,HELEN OLIVIA
,OFFICE OF THE MINORITY LEADER,2013Q2,SUPPLIES AND MATERIALS,04-10,HELEN OLIVIA,12/28/12,12/28/12,HABITATION EXPENSE,150.00,2012,AP,Accounts payable,00660009,HELEN OLIVIA
,OFFICE OF THE MINORITY LEADER,2013Q2,SUPPLIES AND MATERIALS,04-10,CAPITOL HOST,12/04/12,12/04/12,FOOD & BEVERAGE,94.50,2012,AP,Accounts payable,00660010,CAPITOL HOST
,OFFICE OF THE MINORITY LEADER,2013Q2,SUPPLIES AND MATERIALS,04-10,CAPITOL HOST,12/04/12,12/04/12,FOOD & BEVERAGE,33.00,2012,AP,Accounts payable,00660011,CAPITOL HOST
,OFFICE OF THE MINORITY LEADER,2013Q2,SUPPLIES AND MATERIALS,04-10,CAPITOL HOST,12/11/12,12/11/12,FOOD & BEVERAGE,66.00,2012,AP,Accounts payable,00660013,CAPITOL HOST
,OFFICE OF THE MINORITY LEADER,2013Q2,SUPPLIES AND MATERIALS,04-10,CAPITOL HOST,12/12/12,12/12/12,FOOD & BEVERAGE,280.40,2012,AP,Accounts payable,00660015,CAPITOL HOST
,OFFICE OF THE MINORITY LEADER,2013Q2,SUPPLIES AND MATERIALS,04-10,CAPITOL HOST,12/19/12,12/19/12,FOOD & BEVERAGE,33.00,2012,AP,Accounts payable,00660021,CAPITOL HOST
,OFFICE OF THE MINORITY LEADER,2013Q2,TRAVEL,04-15,"SURGEON,BINA G",11/26/12,12/03/12,TAXI/PARKING/TOLLS,23.00,2012,AP,Accounts payable,E0003239,"SURGEON,BINA G"
,OFFICE OF THE MINORITY LEADER,2013Q2,TRAVEL,06-07,"HAMMILL, ANDREW T",11/30/12,12/01/12,TAXI/PARKING/TOLLS,35.00,2012,AP,Accounts payable,E0024978,"HAMMILL, ANDREW T"
,OFFICE OF THE MINORITY LEADER,2013Q2,SUPPLIES AND MATERIALS,04-10,HAGUE QUALITY WATER OF MD INC,12/01/12,12/31/12,WATER,378.00,2012,AP,Accounts payable,00660026,HAGUE QUALITY WATER OF MD INC
,OFFICE OF THE MINORITY LEADER,2013Q2,SUPPLIES AND MATERIALS,04-26,CAPITOLHOST,11/28/12,11/28/12,FOOD & BEVERAGE,33.00,2012,AP,Accounts payable,E0007582,CAPITOLHOST
,DEMOCRATIC CAUCUS,2013Q2,SUPPLIES AND MATERIALS,04-10,"BRACHMAN, ELLIS A",01/01/13,01/01/13,FOOD & BEVERAGE,186.56,2013,AP,Accounts payable,00660035,"BRACHMAN, ELLIS A"
,DEMOCRATIC CAUCUS,2013Q2,SUPPLIES AND MATERIALS,04-10,"ESPARZA DIGGS, IRMA Y",12/30/12,01/01/13,FOOD & BEVERAGE,810.22,2012,AP,Accounts payable,00660036,"ESPARZA DIGGS, IRMA Y"
,REPUBLICAN CONFERENCE,2013Q2,SUPPLIES AND MATERIALS,04-10,SHADOW TV INC,01/01/13,02/14/13,PUBLICATIONS/REFERENCE MAT'L,750.00,2012,AP,Accounts payable,00660030,SHADOW TV INC
,REPUBLICAN CONFERENCE,2013Q2,"RENT, COMMUNICATION, UTILITIES",05-01,ELLEN RATNER-TALK RADIO NEWS SERVICES,01/30/12,01/30/12,RECORDING (OUTSIDE),"-2,500.00",2012,AP,Accounts payable,00371821,ELLEN RATNER-TALK RADIO NEWS SERVICES
,CHIEF ADMIN OFCR OF THE HOUSE,2013Q2,TRAVEL,05-17,"SUPLEE, ANDREW D",04/16/13,04/30/13,PRIVATE AUTO MILEAGE,135.60,FISCAL YEAR 2013,AP,Accounts payable,E0017753,"SUPLEE, ANDREW D"
,CHIEF ADMIN OFCR OF THE HOUSE,2013Q2,TRAVEL,05-22,"SUPLEE, ANDREW D",04/16/13,04/30/13,PRIVATE AUTO MILEAGE,-135.60,FISCAL YEAR 2013,AP,Accounts payable,00669985,"SUPLEE, ANDREW D"
,CHIEF ADMIN OFCR OF THE HOUSE,2013Q2,TRAVEL,06-30,"HARRIS, DONALD",06/22/13,06/28/13,COMMERCIAL TRANSPORTATION,-392.80,FISCAL YEAR 2013,AP,Accounts payable,00675872,"HARRIS, DONALD"
,CHIEF ADMIN OFCR OF THE HOUSE,2013Q2,TRAVEL,06-30,"HARRIS, DONALD",06/22/13,06/27/13,LODGING,-545.65,FISCAL YEAR 2013,AP,Accounts payable,00675872,"HARRIS, DONALD"
,CHIEF ADMIN OFCR OF THE HOUSE,2013Q2,TRAVEL,06-30,"HARRIS, DONALD",06/22/13,06/28/13,MEALS,-364.00,FISCAL YEAR 2013,AP,Accounts payable,00675872,"HARRIS, DONALD"
,CHIEF ADMIN OFCR OF THE HOUSE,2013Q2,TRAVEL,06-30,"HARRIS, DONALD",06/22/13,06/28/13,PRIVATE AUTO MILEAGE,-54.52,FISCAL YEAR 2013,AP,Accounts payable,00675872,"HARRIS, DONALD"
,CHIEF ADMIN OFCR OF THE HOUSE,2013Q2,TRAVEL,06-30,"HARRIS, DONALD",06/22/13,06/28/13,MISCELLANEOUS TRAVEL,-50.00,FISCAL YEAR 2013,AP,Accounts payable,00675872,"HARRIS, DONALD"
,CHIEF ADMIN OFCR OF THE HOUSE,2013Q2,TRAVEL,06-30,"STOUGHTON, MARIA R",06/22/13,06/28/13,TAXI/PARKING/TOLLS,-76.00,FISCAL YEAR 2013,AP,Accounts payable,00675881,"STOUGHTON, MARIA R"
,CHIEF ADMIN OFCR OF THE HOUSE,2013Q2,"RENT, COMMUNICATION, UTILITIES",04-30,VERIZON CABS,03/01/13,03/31/13,TELECOMSRV/EQ/TOLL CHARGE,"-2,772.00",FISCAL YEAR 2013,AP,Accounts payable,00665395,VERIZON CABS
,CHIEF ADMIN OFCR OF THE HOUSE,2013Q2,"RENT, COMMUNICATION, UTILITIES",04-30,VERIZON CABS,03/01/13,03/31/13,TELECOMSRV/EQ/TOLL CHARGE,-863.80,FISCAL YEAR 2013,AP,Accounts payable,00665396,VERIZON CABS
,CHIEF ADMIN OFCR OF THE HOUSE,2013Q2,"RENT, COMMUNICATION, UTILITIES",05-03,VERIZON CABS,03/01/13,03/31/13,TELECOMSRV/EQ/TOLL CHARGE,"2,772.00",FISCAL YEAR 2013,AP,Accounts payable,E0010368,VERIZON CABS
,CHIEF ADMIN OFCR OF THE HOUSE,2013Q2,"RENT, COMMUNICATION, UTILITIES",05-03,VERIZON CABS,03/01/13,03/31/13,TELECOMSRV/EQ/TOLL CHARGE,863.80,FISCAL YEAR 2013,AP,Accounts payable,E0010370,VERIZON CABS
,CHIEF ADMIN OFCR OF THE HOUSE,2013Q2,"RENT, COMMUNICATION, UTILITIES",05-31,VERIZON BUSINESS,04/16/13,05/15/13,TELECOMSRV/EQ/TOLL CHARGE,-229.78,FISCAL YEAR 2013,AP,Accounts payable,00670658,VERIZON BUSINESS
,CHIEF ADMIN OFCR OF THE HOUSE,2013Q2,"RENT, COMMUNICATION, UTILITIES",06-06,VERIZON BUSINESS,04/16/13,05/15/13,TELECOMSRV/EQ/TOLL CHARGE,229.78,FISCAL YEAR 2013,AP,Accounts payable,E0024184,VERIZON BUSINESS
,CHIEF ADMIN OFCR OF THE HOUSE,2013Q2,"RENT, COMMUNICATION, UTILITIES",06-30,VERIZON,05/01/13,05/31/13,TELECOMSRV/EQ/TOLL CHARGE,-525.10,FISCAL YEAR 2013,AP,Accounts payable,00675726,VERIZON
,CHIEF ADMIN OFCR OF THE HOUSE,2013Q2,EQUIPMENT,04-05,DELL MARKETING LP,04/01/13,04/01/13,MAINTENANCE / REPAIRS,"827,540.00",FISCAL YEAR 2013,AP,Accounts payable,00659021,DELL MARKETING LP
,CHIEF ADMIN OFCR OF THE HOUSE,2013Q2,PERSONNEL COMPENSATION,"","ABBOTT, JESSICA A",04/01/13,06/30/13,FINANCIAL ANALYST,"31,512.51",FISCAL YEAR 2013,"","","","ABBOTT, JESSICA A"
,CHIEF ADMIN OFCR OF THE HOUSE,2013Q2,PERSONNEL COMPENSATION,"","ABEL, TIMOTHY",04/01/13,06/30/13,SR TECHNICAL SUPPORT REP (A),"23,888.25",FISCAL YEAR 2013,"","","","ABEL, TIMOTHY"
,CHIEF ADMIN OFCR OF THE HOUSE,2013Q2,PERSONNEL COMPENSATION,"","ACUESTA,JULY J",04/01/13,06/30/13,SENIOR SYSTEMS ENGINEER,"26,928.51",FISCAL YEAR 2013,"","","","ACUESTA,JULY J"
,CHIEF ADMIN OFCR OF THE HOUSE,2013Q2,PERSONNEL COMPENSATION,"","ADDISON, TRACY",04/01/13,06/30/13,LOGISTICS & DIST SPEC (A),"11,469.66",FISCAL YEAR 2013,"","","","ADDISON, TRACY"
,CHIEF ADMIN OFCR OF THE HOUSE,2013Q2,PERSONNEL COMPENSATION,"","ADELAKUN, DEEN A",04/01/13,06/30/13,SR TECH SOLUTIONS ENGINEER,"22,107.00",FISCAL YEAR 2013,"","","","ADELAKUN, DEEN A"
,CHIEF ADMIN OFCR OF THE HOUSE,2013Q2,PERSONNEL COMPENSATION,"","AGEE, MATTHEW P",04/01/13,06/30/13,RESOURCE MANAGER,"30,405.24",FISCAL YEAR 2013,"","","","AGEE, MATTHEW P"
,CHIEF ADMIN OFCR OF THE HOUSE,2013Q2,PERSONNEL COMPENSATION,"","AGEE, TINA M",04/01/13,06/30/13,DIRECTOR PHOTOGRAPHY,"26,928.51",FISCAL YEAR 2013,"","","","AGEE, TINA M"
,CHIEF ADMIN OFCR OF THE HOUSE,2013Q2,PERSONNEL COMPENSATION,"","AGNEW, ROSE M",04/01/13,06/30/13,PAYROLL & BENEFITS GENERALIST,"18,329.01",FISCAL YEAR 2013,"","","","AGNEW, ROSE M"
,CHIEF ADMIN OFCR OF THE HOUSE,2013Q2,PERSONNEL COMPENSATION,"","AGNEW, ROSE M",03/01/13,03/31/13,PAYROLL & BENEFITS GENERALIST (OVERTIME),317.23,FISCAL YEAR 2013,"","","","AGNEW, ROSE M"
,CHIEF ADMIN OFCR OF THE HOUSE,2013Q2,PERSONNEL COMPENSATION,"","AKINSEGUN, PATRICIA A",04/01/13,06/30/13,TELEPHONE SYSTEMS CONSULTANT,"22,107.00",FISCAL YEAR 2013,"","","","AKINSEGUN, PATRICIA A"
,CHIEF ADMIN OFCR OF THE HOUSE,2013Q2,PERSONNEL COMPENSATION,"","ALEXANDER, GORDON",04/01/13,06/30/13,TECH SOLUTIONS ENGINEER,"17,735.76",FISCAL YEAR 2013,"","","","ALEXANDER, GORDON"
,CHIEF ADMIN OFCR OF THE HOUSE,2013Q2,PERSONNEL COMPENSATION,"","ALEXANDER, SHARYN B",04/01/13,06/30/13,SPECIAL ASSISTANT,"27,280.50",FISCAL YEAR 2013,"","","","ALEXANDER, SHARYN B"
,CHIEF ADMIN OFCR OF THE HOUSE,2013Q2,PERSONNEL COMPENSATION,"","ALLARD,KENNETH V",04/01/13,06/30/13,ADA AIDE,"6,839.67",FISCAL YEAR 2013,"","","","ALLARD,KENNETH V"
,CHIEF ADMIN OFCR OF THE HOUSE,2013Q2,PERSONNEL COMPENSATION,"","ALLISON, KEVIN M",04/01/13,06/30/13,LOGISTICS & DIST SPEC (A),"13,503.51",FISCAL YEAR 2013,"","","","ALLISON, KEVIN M"
,CHIEF ADMIN OFCR OF THE HOUSE,2013Q2,PERSONNEL COMPENSATION,"","ALLISON, KEVIN M",04/01/13,04/30/13,LOGISTICS & DIST SPEC (A) (OTHER COMPENSATION),500.00,FISCAL YEAR 2013,"","","","ALLISON, KEVIN M"
,CHIEF ADMIN OFCR OF THE HOUSE,2013Q2,PERSONNEL COMPENSATION,"","ALSTON,MARK A",04/01/13,06/30/13,TECH SOLUTIONS ENGINEER,"17,344.26",FISCAL YEAR 2013,"","","","ALSTON,MARK A"
,CHIEF ADMIN OFCR OF THE HOUSE,2013Q2,PERSONNEL COMPENSATION,"","ALVEY, LISA M",04/01/13,06/30/13,FINANCIAL COUNSELOR,"20,286.24",FISCAL YEAR 2013,"","","","ALVEY, LISA M"
,CHIEF ADMIN OFCR OF THE HOUSE,2013Q2,PERSONNEL COMPENSATION,"","ANDERSEN, FREDERIC E",04/01/13,06/30/13,2ND ASST SUPERINTENDENT,"22,107.00",FISCAL YEAR 2013,"","","","ANDERSEN, FREDERIC E"
,CHIEF ADMIN OFCR OF THE HOUSE,2013Q2,PERSONNEL COMPENSATION,"","ANDERSON, DONTRELL",04/01/13,06/30/13,FINANCIAL COUNSELOR,"15,789.00",FISCAL YEAR 2013,"","","","ANDERSON, DONTRELL"
,CHIEF ADMIN OFCR OF THE HOUSE,2013Q2,PERSONNEL COMPENSATION,"","ANDERSON, DONTRELL",04/01/13,04/30/13,FINANCIAL COUNSELOR (OVERTIME),910.89,FISCAL YEAR 2013,"","","","ANDERSON, DONTRELL"
,CHIEF ADMIN OFCR OF THE HOUSE,2013Q2,PERSONNEL COMPENSATION,"","ANDREWS,THOMAS",05/13/13,06/30/13,VOICE & VIDEO BRANCH MGR (A),"17,772.40",FISCAL YEAR 2013,"","","","ANDREWS,THOMAS"
,CHIEF ADMIN OFCR OF THE HOUSE,2013Q2,PERSONNEL COMPENSATION,"","ANDREWS-MOBLEY, RACHELLE G",04/01/13,06/30/13,PRINCIPAL TECHNICAL TRAINER,"24,150.51",FISCAL YEAR 2013,"","","","ANDREWS-MOBLEY, RACHELLE G"
,CHIEF ADMIN OFCR OF THE HOUSE,2013Q2,PERSONNEL COMPENSATION,"","ARMAS, KENTON A",04/01/13,06/30/13,JOURNEYMAN TEXTILE SPEC,"18,903.24",FISCAL YEAR 2013,"","","","ARMAS, KENTON A"
,CHIEF ADMIN OFCR OF THE HOUSE,2013Q2,PERSONNEL COMPENSATION,"","ARMSTRONG,JANCIERA C",04/01/13,06/30/13,"MANAGER, ACCOUNTING","25,403.76",FISCAL YEAR 2013,"","","","ARMSTRONG,JANCIERA C"
,CHIEF ADMIN OFCR OF THE HOUSE,2013Q2,PERSONNEL COMPENSATION,"","ARTHUR, CAMILLA S",04/01/13,06/30/13,ASSISTANT CAO,"39,794.25",FISCAL YEAR 2013,"","","","ARTHUR, CAMILLA S"
,CHIEF ADMIN OFCR OF THE HOUSE,2013Q2,PERSONNEL COMPENSATION,"","ATCHISON, DARRYL A",04/01/13,06/30/13,DEPUTY CHIEF ENGINEER,"30,405.24",FISCAL YEAR 2013,"","","","ATCHISON, DARRYL A"
,CHIEF ADMIN OFCR OF THE HOUSE,2013Q2,PERSONNEL COMPENSATION,"","AWAN, OMAR",04/01/13,06/30/13,SR BUSINESS PROCESS APPL SPEC,"35,160.75",FISCAL YEAR 2013,"","","","AWAN, OMAR"
,CHIEF ADMIN OFCR OF THE HOUSE,2013Q2,PERSONNEL COMPENSATION,"","BABCOCK, TIMOTHY W",04/01/13,06/30/13,JOURNEYMAN TEXTILE SPEC,"14,470.50",FISCAL YEAR 2013,"","","","BABCOCK, TIMOTHY W"
,CHIEF ADMIN OFCR OF THE HOUSE,2013Q2,PERSONNEL COMPENSATION,"","BAER, PETER L",04/01/13,06/30/13,BUSINESS PROC APPLIC SPEC,"32,010.99",FISCAL YEAR 2013,"","","","BAER, PETER L"
,CHIEF ADMIN OFCR OF THE HOUSE,2013Q2,PERSONNEL COMPENSATION,"","BAHAM,TODD",04/01/13,06/30/13,BROADCAST PRODUCTION TECHNICIA,"18,719.25",FISCAL YEAR 2013,"","","","BAHAM,TODD"
,CHIEF ADMIN OFCR OF THE HOUSE,2013Q2,PERSONNEL COMPENSATION,"","BAHAM,TODD",03/01/13,05/31/13,BROADCAST PRODUCTION TECHNICIA (OVERTIME),"1,124.95",FISCAL YEAR 2013,"","","","BAHAM,TODD"
,CHIEF ADMIN OFCR OF THE HOUSE,2013Q2,PERSONNEL COMPENSATION,"","BAILEY, DAVID E",04/01/13,06/30/13,SR TECHNICAL SUPPORT REP (A),"23,888.25",FISCAL YEAR 2013,"","","","BAILEY, DAVID E"
,CHIEF ADMIN OFCR OF THE HOUSE,2013Q2,PERSONNEL COMPENSATION,"","BAKER, DARRELL F",04/01/13,06/30/13,SENIOR NETWORK TECHNICIAN,"24,595.50",FISCAL YEAR 2013,"","","","BAKER, DARRELL F"
,CHIEF ADMIN OFCR OF THE HOUSE,2013Q2,PERSONNEL COMPENSATION,"","BANFIELD,KELLI C",04/01/13,06/30/13,BROADCAST ENGINEER/PROD SPEC,"20,771.49",FISCAL YEAR 2013,"","","","BANFIELD,KELLI C"
,CHIEF ADMIN OFCR OF THE HOUSE,2013Q2,PERSONNEL COMPENSATION,"","BANKS,BIANCA N",04/01/13,06/30/13,RETAIL INVENTORY SPECIALIST,"16,569.24",FISCAL YEAR 2013,"","","","BANKS,BIANCA N"
,CHIEF ADMIN OFCR OF THE HOUSE,2013Q2,PERSONNEL COMPENSATION,"","BARBEE, GLENN",04/01/13,06/30/13,NETWORK TECHNICIAN,"21,663.00",FISCAL YEAR 2013,"","","","BARBEE, GLENN"
,CHIEF ADMIN OFCR OF THE HOUSE,2013Q2,PERSONNEL COMPENSATION,"","BARBEE,DONELL G",04/01/13,06/30/13,RETAIL INVENTORY SPECIALIST,"9,801.00",FISCAL YEAR 2013,"","","","BARBEE,DONELL G"
,CHIEF ADMIN OFCR OF THE HOUSE,2013Q2,PERSONNEL COMPENSATION,"","BARBOUR, JUNE M",04/01/13,06/30/13,BROADCAST PRODUCTION TECHNICIA,"18,719.25",FISCAL YEAR 2013,"","","","BARBOUR, JUNE M"
,CHIEF ADMIN OFCR OF THE HOUSE,2013Q2,PERSONNEL COMPENSATION,"","BARBOUR, JUNE M",05/01/13,05/31/13,BROADCAST PRODUCTION TECHNICIA (OVERTIME),188.99,FISCAL YEAR 2013,"","","","BARBOUR, JUNE M"
,CHIEF ADMIN OFCR OF THE HOUSE,2013Q2,PERSONNEL COMPENSATION,"","BARCINIAK, DANA L",04/01/13,06/30/13,SENIOR PHOTOGRAPHER,"21,069.99",FISCAL YEAR 2013,"","","","BARCINIAK, DANA L"
,CHIEF ADMIN OFCR OF THE HOUSE,2013Q2,PERSONNEL COMPENSATION,"","BAREFOOT,JEFFREY",04/01/13,06/30/13,PRODUCTION/ENGINEER SPEC (TEMP,"11,858.34",FISCAL YEAR 2013,"","","","BAREFOOT,JEFFREY"
,CHIEF ADMIN OFCR OF THE HOUSE,2013Q2,PERSONNEL COMPENSATION,"","BARNABAE, MONICA M",04/01/13,06/30/13,DIRECTOR-HOUSE CHILD CARE CNTR,"26,422.74",FISCAL YEAR 2013,"","","","BARNABAE, MONICA M"
,CHIEF ADMIN OFCR OF THE HOUSE,2013Q2,PERSONNEL COMPENSATION,"","BARRETT, ROBERT R",04/01/13,06/30/13,"MANAGER, SUPPORT SYSTEMS","33,938.25",FISCAL YEAR 2013,"","","","BARRETT, ROBERT R"
,CHIEF ADMIN OFCR OF THE HOUSE,2013Q2,PERSONNEL COMPENSATION,"","BARTHOLOMEW, DEBORAH",04/01/13,06/30/13,ADMIN-FINANCE & PAYROLL,"22,809.00",FISCAL YEAR 2013,"","","","BARTHOLOMEW, DEBORAH"
,CHIEF ADMIN OFCR OF THE HOUSE,2013Q2,PERSONNEL COMPENSATION,"","BASILIO, TYRONE A",04/01/13,06/30/13,TECHNICAL SUPPORT REP,"19,110.75",FISCAL YEAR 2013,"","","","BASILIO, TYRONE A"
,CHIEF ADMIN OFCR OF THE HOUSE,2013Q2,PERSONNEL COMPENSATION,"","BATES, DEBORAH A",12/01/12,12/31/12,PRODUCTION/ENGINEER SPEC(TEMP),"2,210.88",FISCAL YEAR 2013,"","","","BATES, DEBORAH A"
,CHIEF ADMIN OFCR OF THE HOUSE,2013Q2,PERSONNEL COMPENSATION,"","BATES, DEBORAH A",04/01/13,06/30/13,PRODUCTION/ENGINEER SPEC (TEMP,"7,637.58",FISCAL YEAR 2013,"","","","BATES, DEBORAH A"
,CHIEF ADMIN OFCR OF THE HOUSE,2013Q2,PERSONNEL COMPENSATION,"","BATES, DEBORAH A",12/01/12,12/31/12,PRODUCTION/ENGINEER SPEC(TEMP) (OVERTIME),"-2,210.88",FISCAL YEAR 2013,"","","","BATES, DEBORAH A"
,CHIEF ADMIN OFCR OF THE HOUSE,2013Q2,PERSONNEL COMPENSATION,"","BAULEY, PATRICK J",04/01/13,06/30/13,TECHNICAL DIRECTOR (A),"28,962.75",FISCAL YEAR 2013,"","","","BAULEY, PATRICK J"
,CHIEF ADMIN OFCR OF THE HOUSE,2013Q2,PERSONNEL COMPENSATION,"","BAULEY, PATRICK J",03/01/13,03/31/13,TECHNICAL DIRECTOR (A) (OVERTIME),334.18,FISCAL YEAR 2013,"","","","BAULEY, PATRICK J"
,CHIEF ADMIN OFCR OF THE HOUSE,2013Q2,PERSONNEL COMPENSATION,"","BEAUBIAN, TRACI R",04/01/13,06/30/13,CHIEF FINANCIAL OFFICER,"42,102.75",FISCAL YEAR 2013,"","","","BEAUBIAN, TRACI R"
,CHIEF ADMIN OFCR OF THE HOUSE,2013Q2,PERSONNEL COMPENSATION,"","BEIDEL, BERNARD E",04/01/13,06/30/13,"DIR, OFFICE OF EMPLOYEE ASSIST","42,102.75",FISCAL YEAR 2013,"","","","BEIDEL, BERNARD E"
,CHIEF ADMIN OFCR OF THE HOUSE,2013Q2,PERSONNEL COMPENSATION,"","BELL,FRANK E",04/01/13,06/30/13,SENIOR TECHNICAL ADVISOR,"32,096.01",FISCAL YEAR 2013,"","","","BELL,FRANK E"
,CHIEF ADMIN OFCR OF THE HOUSE,2013Q2,PERSONNEL COMPENSATION,"","BENAVIDEZ, OSCAR",04/01/13,06/30/13,LOGISTICS & DIST SPEC (A),"12,325.26",FISCAL YEAR 2013,"","","","BENAVIDEZ, OSCAR"
,CHIEF ADMIN OFCR OF THE HOUSE,2013Q2,PERSONNEL COMPENSATION,"","BENN, PHILLIP F",04/01/13,06/30/13,ELECTRONICS TECHNICIAN (A),"22,551.00",FISCAL YEAR 2013,"","","","BENN, PHILLIP F"
,CHIEF ADMIN OFCR OF THE HOUSE,2013Q2,PERSONNEL COMPENSATION,"","BENN, PHILLIP F",03/01/13,03/31/13,ELECTRONICS TECHNICIAN (A) (OVERTIME),65.05,FISCAL YEAR 2013,"","","","BENN, PHILLIP F"
,CHIEF ADMIN OFCR OF THE HOUSE,2013Q2,PERSONNEL COMPENSATION,"","BENNETT, GERALD E",04/01/13,06/30/13,CHIEF LOGISTICS OFFICER,"42,102.75",FISCAL YEAR 2013,"","","","BENNETT, GERALD E"
,CHIEF ADMIN OFCR OF THE HOUSE,2013Q2,PERSONNEL COMPENSATION,"","BERGER, DONALD W",04/01/13,06/30/13,BROADCAST PRODUCTION TECHNICIA,"20,771.49",FISCAL YEAR 2013,"","","","BERGER, DONALD W"
,CHIEF ADMIN OFCR OF THE HOUSE,2013Q2,PERSONNEL COMPENSATION,"","BEST, CHARLENE",04/01/13,06/30/13,MANAGER,"23,256.00",FISCAL YEAR 2013,"","","","BEST, CHARLENE"
,CHIEF ADMIN OFCR OF THE HOUSE,2013Q2,PERSONNEL COMPENSATION,"","BETHEA,LASHON L",04/01/13,06/30/13,TECHNICAL TRAINER,"25,044.51",FISCAL YEAR 2013,"","","","BETHEA,LASHON L"
,CHIEF ADMIN OFCR OF THE HOUSE,2013Q2,PERSONNEL COMPENSATION,"","BILLARD, MICHAEL A",04/01/13,06/30/13,COMMUNICATIONS SPEC,"24,595.50",FISCAL YEAR 2013,"","","","BILLARD, MICHAEL A"
,CHIEF ADMIN OFCR OF THE HOUSE,2013Q2,PERSONNEL COMPENSATION,"","BILLUPS, BRIAN E",04/01/13,06/30/13,NETWORK TECHNICIAN (A),"19,110.75",FISCAL YEAR 2013,"","","","BILLUPS, BRIAN E"
,CHIEF ADMIN OFCR OF THE HOUSE,2013Q2,PERSONNEL COMPENSATION,"","BLAKNEY, HAROLD",04/01/13,06/30/13,SENIOR SYSTEMS ENGINEER,"37,001.25",FISCAL YEAR 2013,"","","","BLAKNEY, HAROLD"
,CHIEF ADMIN OFCR OF THE HOUSE,2013Q2,PERSONNEL COMPENSATION,"","BOGAN, DAVID S",04/01/13,06/30/13,"SUPERVISOR, RETAIL INVENTORY","19,110.75",FISCAL YEAR 2013,"","","","BOGAN, DAVID S"
,CHIEF ADMIN OFCR OF THE HOUSE,2013Q2,PERSONNEL COMPENSATION,"","BOGER, KELLY M",04/01/13,06/30/13,ACCOUNT MANAGEMENT COUNSELOR,"19,502.49",FISCAL YEAR 2013,"","","","BOGER, KELLY M"
,CHIEF ADMIN OFCR OF THE HOUSE,2013Q2,PERSONNEL COMPENSATION,"","BOOKER, CARLOS",04/01/13,06/30/13,SALES SPECIALIST,"10,095.75",FISCAL YEAR 2013,"","","","BOOKER, CARLOS"
,CHIEF ADMIN OFCR OF THE HOUSE,2013Q2,PERSONNEL COMPENSATION,"","BOONE, RUSSELL",04/01/13,06/30/13,TECHNICAL SUPPORT REP,"21,854.01",FISCAL YEAR 2013,"","","","BOONE, RUSSELL"
,CHIEF ADMIN OFCR OF THE HOUSE,2013Q2,PERSONNEL COMPENSATION,"","BOWERS,KAREN L",04/01/13,06/30/13,FINANCIAL COUNSELOR,"18,719.25",FISCAL YEAR 2013,"","","","BOWERS,KAREN L"
,CHIEF ADMIN OFCR OF THE HOUSE,2013Q2,PERSONNEL COMPENSATION,"","BOWLDING, SONIA R",04/01/13,06/30/13,REC/WAREHOUSE SPEC (A),"10,980.00",FISCAL YEAR 2013,"","","","BOWLDING, SONIA R"
,CHIEF ADMIN OFCR OF THE HOUSE,2013Q2,PERSONNEL COMPENSATION,"","BOWLES JR, FREDERICK H",04/01/13,06/30/13,"SUPERVISOR-LOGISTICS, SUPP EQU","23,888.25",FISCAL YEAR 2013,"","","","BOWLES JR, FREDERICK H"
,CHIEF ADMIN OFCR OF THE HOUSE,2013Q2,PERSONNEL COMPENSATION,"","BOWLES, JAMES A",04/01/13,06/30/13,JOURNEYMAN FURNITURE SPEC,"18,903.24",FISCAL YEAR 2013,"","","","BOWLES, JAMES A"
,CHIEF ADMIN OFCR OF THE HOUSE,2013Q2,PERSONNEL COMPENSATION,"","BOWLING-STOKES,CHAUNETTE L",04/01/13,06/30/13,SUPERVISOR,"22,809.00",FISCAL YEAR 2013,"","","","BOWLING-STOKES,CHAUNETTE L"
,CHIEF ADMIN OFCR OF THE HOUSE,2013Q2,PERSONNEL COMPENSATION,"","BOWMAN,SHELIA",04/01/13,06/30/13,FINANCIAL COUNSELOR,"16,179.24",FISCAL YEAR 2013,"","","","BOWMAN,SHELIA"
,CHIEF ADMIN OFCR OF THE HOUSE,2013Q2,PERSONNEL COMPENSATION,"","BOYD, KRISTIE N",03/01/13,05/21/13,PHOTOGRAPHER/LAB TECH (TEMP),"16,883.06",FISCAL YEAR 2013,"","","","BOYD, KRISTIE N"
,CHIEF ADMIN OFCR OF THE HOUSE,2013Q2,PERSONNEL COMPENSATION,"","BOYD, PETRINA",04/01/13,06/30/13,SALES SPECIALIST,"11,146.50",FISCAL YEAR 2013,"","","","BOYD, PETRINA"
,CHIEF ADMIN OFCR OF THE HOUSE,2013Q2,PERSONNEL COMPENSATION,"","BOYLE, KEVIN J",04/01/13,06/30/13,SR BUSINESS PROCESS APPL SPEC,"37,613.25",FISCAL YEAR 2013,"","","","BOYLE, KEVIN J"
,CHIEF ADMIN OFCR OF THE HOUSE,2013Q2,PERSONNEL COMPENSATION,"","BRACKENS, ROBERT",04/01/13,06/30/13,BROADCAST PRODUCTION TECHNICIA,"21,214.74",FISCAL YEAR 2013,"","","","BRACKENS, ROBERT"
,CHIEF ADMIN OFCR OF THE HOUSE,2013Q2,PERSONNEL COMPENSATION,"","BRACKENS, ROBERT",03/01/13,05/31/13,BROADCAST PRODUCTION TECHNICIA (OVERTIME),183.59,FISCAL YEAR 2013,"","","","BRACKENS, ROBERT"
,CHIEF ADMIN OFCR OF THE HOUSE,2013Q2,PERSONNEL COMPENSATION,"","BRANCH,PAMELA J",04/01/13,04/07/13,SENIOR BENEFITS SPECIALIST,"2,017.54",FISCAL YEAR 2013,"","","","BRANCH,PAMELA J"
,CHIEF ADMIN OFCR OF THE HOUSE,2013Q2,PERSONNEL COMPENSATION,"","BRANCH,PAMELA J",04/08/13,06/30/13,"MANAGER, PAYROLL & BENEFITS","26,240.92",FISCAL YEAR 2013,"","","","BRANCH,PAMELA J"
,CHIEF ADMIN OFCR OF THE HOUSE,2013Q2,PERSONNEL COMPENSATION,"","BRAXTON, BRANDON A",04/01/13,06/30/13,LOGISTICS & DIST SPEC (A),"10,783.00",FISCAL YEAR 2013,"","","","BRAXTON, BRANDON A"
,CHIEF ADMIN OFCR OF THE HOUSE,2013Q2,PERSONNEL COMPENSATION,"","BRAYE, LORENZO",04/01/13,06/30/13,SR BROADCAST ENG/PROD SPECLST,"23,704.50",FISCAL YEAR 2013,"","","","BRAYE, LORENZO"
,CHIEF ADMIN OFCR OF THE HOUSE,2013Q2,PERSONNEL COMPENSATION,"","BREWSTER III,JAMES E",04/01/13,06/30/13,LOGISTICS & DIST SPEC (A),"9,002.49",FISCAL YEAR 2013,"","","","BREWSTER III,JAMES E"
,CHIEF ADMIN OFCR OF THE HOUSE,2013Q2,PERSONNEL COMPENSATION,"","BREWSTER,CHRISTOPHER A",04/01/13,06/30/13,ADMINISTRATIVE COUNSEL,"42,102.75",FISCAL YEAR 2013,"","","","BREWSTER,CHRISTOPHER A"
,CHIEF ADMIN OFCR OF THE HOUSE,2013Q2,PERSONNEL COMPENSATION,"","BRIDGEFORTH, TOINETTA A",04/01/13,06/30/13,CONTRACTS SPECIALIST,"22,107.00",FISCAL YEAR 2013,"","","","BRIDGEFORTH, TOINETTA A"
,CHIEF ADMIN OFCR OF THE HOUSE,2013Q2,PERSONNEL COMPENSATION,"","BRISCOE, KEVIN",04/01/13,06/30/13,LOGISTICS & DIST SPEC (A),"10,783.00",FISCAL YEAR 2013,"","","","BRISCOE, KEVIN"
,CHIEF ADMIN OFCR OF THE HOUSE,2013Q2,PERSONNEL COMPENSATION,"","BRITT,SHANNON W",04/01/13,06/30/13,SR HUMAN RESOURCES GENERALIST,"17,544.51",FISCAL YEAR 2013,"","","","BRITT,SHANNON W"
,CHIEF ADMIN OFCR OF THE HOUSE,2013Q2,PERSONNEL COMPENSATION,"","BROBBEY-MENSAH, KWAME",04/01/13,06/30/13,SR INFO SYST. SECURITY ANALYST,"28,454.01",FISCAL YEAR 2013,"","","","BROBBEY-MENSAH, KWAME"
,CHIEF ADMIN OFCR OF THE HOUSE,2013Q2,PERSONNEL COMPENSATION,"","BROWN SR, DEMETRICE T",04/01/13,06/30/13,SUPERVISOR,"25,912.74",FISCAL YEAR 2013,"","","","BROWN SR, DEMETRICE T"
,CHIEF ADMIN OFCR OF THE HOUSE,2013Q2,PERSONNEL COMPENSATION,"","BROWN, ANNETTE G",04/01/13,06/30/13,SR SOFTWARE ENGINEER,"26,384.49",FISCAL YEAR 2013,"","","","BROWN, ANNETTE G"
,CHIEF ADMIN OFCR OF THE HOUSE,2013Q2,PERSONNEL COMPENSATION,"","BROWN, KEITH S",04/01/13,06/30/13,REC/WAREHOUSE SPEC (A),"13,798.50",FISCAL YEAR 2013,"","","","BROWN, KEITH S"
,CHIEF ADMIN OFCR OF THE HOUSE,2013Q2,PERSONNEL COMPENSATION,"","BROWN, PAMELA L",04/01/13,06/30/13,CUSTOMER SOLUTIONS REP,"18,123.51",FISCAL YEAR 2013,"","","","BROWN, PAMELA L"
,CHIEF ADMIN OFCR OF THE HOUSE,2013Q2,PERSONNEL COMPENSATION,"","BROWN,DAVID D",04/01/13,06/30/13,FINANCIAL COUNSELOR,"15,530.84",FISCAL YEAR 2013,"","","","BROWN,DAVID D"
,CHIEF ADMIN OFCR OF THE HOUSE,2013Q2,PERSONNEL COMPENSATION,"","BROWN,DAVID D",04/01/13,04/30/13,FINANCIAL COUNSELOR (OVERTIME),510.92,FISCAL YEAR 2013,"","","","BROWN,DAVID D"
,CHIEF ADMIN OFCR OF THE HOUSE,2013Q2,PERSONNEL COMPENSATION,"","BROWN,JASON",04/01/13,06/30/13,BROADCAST PRODUCTION TECHNICIA,"18,719.25",FISCAL YEAR 2013,"","","","BROWN,JASON"
,CHIEF ADMIN OFCR OF THE HOUSE,2013Q2,PERSONNEL COMPENSATION,"","BROWN,KIMBERLY K",04/01/13,06/30/13,RESOURCE ANALYST,"16,569.24",FISCAL YEAR 2013,"","","","BROWN,KIMBERLY K"
,CHIEF ADMIN OFCR OF THE HOUSE,2013Q2,PERSONNEL COMPENSATION,"","BROWN,LAWRENCE",04/01/13,06/30/13,BROADCAST ENGINEER/PROD SPEC,"21,364.16",FISCAL YEAR 2013,"","","","BROWN,LAWRENCE"
,CHIEF ADMIN OFCR OF THE HOUSE,2013Q2,PERSONNEL COMPENSATION,"","BROWN,LAWRENCE",03/01/13,05/31/13,BROADCAST ENGINEER/PROD SPEC. (OVERTIME),418.17,FISCAL YEAR 2013,"","","","BROWN,LAWRENCE"
,CHIEF ADMIN OFCR OF THE HOUSE,2013Q2,PERSONNEL COMPENSATION,"","BRUMMELL,JENELLE L",04/01/13,06/30/13,PARALEGAL,"16,569.24",FISCAL YEAR 2013,"","","","BRUMMELL,JENELLE L"
,CHIEF ADMIN OFCR OF THE HOUSE,2013Q2,PERSONNEL COMPENSATION,"","BUCKLER, RICKY L",04/01/13,06/30/13,PURCHASING AGENT,"18,589.17",FISCAL YEAR 2013,"","","","BUCKLER, RICKY L"
,CHIEF ADMIN OFCR OF THE HOUSE,2013Q2,PERSONNEL COMPENSATION,"","BUCKLER, TROY D",04/01/13,06/30/13,PURCHASING AGENT,"16,054.67",FISCAL YEAR 2013,"","","","BUCKLER, TROY D"
,CHIEF ADMIN OFCR OF THE HOUSE,2013Q2,PERSONNEL COMPENSATION,"","BUFORD, MARCIA L",04/01/13,06/30/13,COMPUTER FAC OP SUPERVISOR,"26,384.49",FISCAL YEAR 2013,"","","","BUFORD, MARCIA L"
,CHIEF ADMIN OFCR OF THE HOUSE,2013Q2,PERSONNEL COMPENSATION,"","BURCH, KENNETH J",04/01/13,06/30/13,BUSINESS PROC APPLIC SPEC,"29,470.74",FISCAL YEAR 2013,"","","","BURCH, KENNETH J"
,CHIEF ADMIN OFCR OF THE HOUSE,2013Q2,PERSONNEL COMPENSATION,"","BURNHAM, ELIZABETH",04/01/13,06/30/13,PAYROLL & BENEFITS MANAGER,"26,928.51",FISCAL YEAR 2013,"","","","BURNHAM, ELIZABETH"
,CHIEF ADMIN OFCR OF THE HOUSE,2013Q2,PERSONNEL COMPENSATION,"","BUTLER, CLARENCE G",04/01/13,06/30/13,JOURNEYMAN FURNITURE SPEC,"15,155.76",FISCAL YEAR 2013,"","","","BUTLER, CLARENCE G"
,CHIEF ADMIN OFCR OF THE HOUSE,2013Q2,PERSONNEL COMPENSATION,"","BUTLER, JAMES F",04/01/13,06/30/13,PAYROLL & BENEFITS MANAGER,"25,491.51",FISCAL YEAR 2013,"","","","BUTLER, JAMES F"
,CHIEF ADMIN OFCR OF THE HOUSE,2013Q2,PERSONNEL COMPENSATION,"","CAIN, MOLLY J",04/01/13,06/30/13,5TH ASST SUPERINTENDENT,"15,155.76",FISCAL YEAR 2013,"","","","CAIN, MOLLY J"
,CHIEF ADMIN OFCR OF THE HOUSE,2013Q2,PERSONNEL COMPENSATION,"","CALLAWAY, ROBERT M",04/01/13,06/30/13,SR BROADCAST ENG./PROD SPEC,"23,704.50",FISCAL YEAR 2013,"","","","CALLAWAY, ROBERT M"
,CHIEF ADMIN OFCR OF THE HOUSE,2013Q2,PERSONNEL COMPENSATION,"","CANNON, DREW",04/01/13,06/30/13,4TH ASST SUPERINTENDENT,"17,344.26",FISCAL YEAR 2013,"","","","CANNON, DREW"
,CHIEF ADMIN OFCR OF THE HOUSE,2013Q2,PERSONNEL COMPENSATION,"","CANNON,SUSANNAH",04/01/13,06/30/13,CUSTOMER SOLUTIONS REP,"13,460.01",FISCAL YEAR 2013,"","","","CANNON,SUSANNAH"
,CHIEF ADMIN OFCR OF THE HOUSE,2013Q2,PERSONNEL COMPENSATION,"","CARCAMO, ALICIA L",04/01/13,06/30/13,ACCOUNTING TECHNICIAN,"18,903.24",FISCAL YEAR 2013,"","","","CARCAMO, ALICIA L"
,CHIEF ADMIN OFCR OF THE HOUSE,2013Q2,PERSONNEL COMPENSATION,"","CARLSON,STACY",04/01/13,06/30/13,DEPUTY CAO,"42,674.01",FISCAL YEAR 2013,"","","","CARLSON,STACY"
,CHIEF ADMIN OFCR OF THE HOUSE,2013Q2,PERSONNEL COMPENSATION,"","CARNNIA,CASEY",04/01/13,06/30/13,INTERNET SYSTEMS SPECIALIST,"19,110.75",FISCAL YEAR 2013,"","","","CARNNIA,CASEY"
,CHIEF ADMIN OFCR OF THE HOUSE,2013Q2,PERSONNEL COMPENSATION,"","CARR, JOSH D",04/01/13,06/30/13,SENIOR SYSTEMS ENGINEER,"24,595.50",FISCAL YEAR 2013,"","","","CARR, JOSH D"
,CHIEF ADMIN OFCR OF THE HOUSE,2013Q2,PERSONNEL COMPENSATION,"","CARRICO, RONALD",04/01/13,06/30/13,SR BUSINESS PROCESS APPL SPEC,"35,775.51",FISCAL YEAR 2013,"","","","CARRICO, RONALD"
,CHIEF ADMIN OFCR OF THE HOUSE,2013Q2,PERSONNEL COMPENSATION,"","CARSON,LAWRENCE T",04/01/13,06/30/13,SALES SPECIALIST,"9,801.00",FISCAL YEAR 2013,"","","","CARSON,LAWRENCE T"
,CHIEF ADMIN OFCR OF THE HOUSE,2013Q2,PERSONNEL COMPENSATION,"","CARTER JR, JOHN L",04/01/13,06/30/13,"MANAGER, FINISHING","24,777.24",FISCAL YEAR 2013,"","","","CARTER JR, JOHN L"
,CHIEF ADMIN OFCR OF THE HOUSE,2013Q2,PERSONNEL COMPENSATION,"","CARTER,DELISA D",04/01/13,06/30/13,SR. SOFTWARE SPECIALIST,"34,547.25",FISCAL YEAR 2013,"","","","CARTER,DELISA D"
,CHIEF ADMIN OFCR OF THE HOUSE,2013Q2,PERSONNEL COMPENSATION,"","CAULK, ANDREW T",04/01/13,06/30/13,SUPERVISOR,"23,704.50",FISCAL YEAR 2013,"","","","CAULK, ANDREW T"
,CHIEF ADMIN OFCR OF THE HOUSE,2013Q2,PERSONNEL COMPENSATION,"","CHABOT, ELLIOT C",04/01/13,06/30/13,SR SYSTEMS ANALYST,"32,010.99",FISCAL YEAR 2013,"","","","CHABOT, ELLIOT C"
,CHIEF ADMIN OFCR OF THE HOUSE,2013Q2,PERSONNEL COMPENSATION,"","CHAMBERS, KEVIN N",04/01/13,06/30/13,SR CUSTOMER SOLUTIONS REP,"19,894.74",FISCAL YEAR 2013,"","","","CHAMBERS, KEVIN N"
,CHIEF ADMIN OFCR OF THE HOUSE,2013Q2,PERSONNEL COMPENSATION,"","CHAMBERS,KEVINA D",04/01/13,06/30/13,ACCOUNTING TECHNICIAN,"11,890.16",FISCAL YEAR 2013,"","","","CHAMBERS,KEVINA D"
,CHIEF ADMIN OFCR OF THE HOUSE,2013Q2,PERSONNEL COMPENSATION,"","CHANG, SU-HWA",04/01/13,06/30/13,SENIOR SYSTEMS ENGINEER,"29,978.76",FISCAL YEAR 2013,"","","","CHANG, SU-HWA"
,CHIEF ADMIN OFCR OF THE HOUSE,2013Q2,PERSONNEL COMPENSATION,"","CHEN, SUSAN",04/01/13,06/30/13,FINANCIAL COUNSELOR,"15,789.00",FISCAL YEAR 2013,"","","","CHEN, SUSAN"
,CHIEF ADMIN OFCR OF THE HOUSE,2013Q2,PERSONNEL COMPENSATION,"","CHEN, SUSAN",03/01/13,04/30/13,FINANCIAL COUNSELOR (OVERTIME),"1,722.88",FISCAL YEAR 2013,"","","","CHEN, SUSAN"
,CHIEF ADMIN OFCR OF THE HOUSE,2013Q2,PERSONNEL COMPENSATION,"","CHILDRESS, J T",04/01/13,06/30/13,JOURNEYMAN FURNITURE SPEC,"19,421.42",FISCAL YEAR 2013,"","","","CHILDRESS, J T"
,CHIEF ADMIN OFCR OF THE HOUSE,2013Q2,PERSONNEL COMPENSATION,"","CIANCIOLO,CRAIG",04/01/13,05/31/13,JOURNEYMAN FURNITURE SPEC,"7,132.47",FISCAL YEAR 2013,"","","","CIANCIOLO,CRAIG"
,CHIEF ADMIN OFCR OF THE HOUSE,2013Q2,PERSONNEL COMPENSATION,"","CIANCIOLO,CRAIG",05/01/13,05/31/13,JOURNEYMAN FURNITURE SPEC. (OTHER COMPENSATION),10.29,FISCAL YEAR 2013,"","","","CIANCIOLO,CRAIG"
,CHIEF ADMIN OFCR OF THE HOUSE,2013Q2,PERSONNEL COMPENSATION,"","CICALE, MICHAEL P",04/01/13,06/30/13,SR CUSTOMER SOLUTIONS REP,"18,903.24",FISCAL YEAR 2013,"","","","CICALE, MICHAEL P"
,CHIEF ADMIN OFCR OF THE HOUSE,2013Q2,PERSONNEL COMPENSATION,"","CICALE, MICHAEL P",04/01/13,04/30/13,SR CUSTOMER SOLUTIONS REP. (OTHER COMPENSATION),500.00,FISCAL YEAR 2013,"","","","CICALE, MICHAEL P"
,CHIEF ADMIN OFCR OF THE HOUSE,2013Q2,PERSONNEL COMPENSATION,"","CLAGGETT, TIMOTHY A",04/01/13,06/30/13,JOURNEYMAN TEXTILE SPEC,"18,773.24",FISCAL YEAR 2013,"","","","CLAGGETT, TIMOTHY A"
,CHIEF ADMIN OFCR OF THE HOUSE,2013Q2,PERSONNEL COMPENSATION,"","CLARK, MARION",04/01/13,06/30/13,SR TELECOMMUNICATIONS ADMIN,"17,735.76",FISCAL YEAR 2013,"","","","CLARK, MARION"
,CHIEF ADMIN OFCR OF THE HOUSE,2013Q2,PERSONNEL COMPENSATION,"","CLARKE, JOHN P",04/01/13,06/30/13,SUPERVISOR,"21,214.74",FISCAL YEAR 2013,"","","","CLARKE, JOHN P"
,CHIEF ADMIN OFCR OF THE HOUSE,2013Q2,PERSONNEL COMPENSATION,"","CLOCKER, JOHN C",04/01/13,06/30/13,DIRECTOR WEB SYSTEMS,"39,794.25",FISCAL YEAR 2013,"","","","CLOCKER, JOHN C"
,CHIEF ADMIN OFCR OF THE HOUSE,2013Q2,PERSONNEL COMPENSATION,"","COAKLEY,KRISTEN J",04/01/13,06/30/13,SR TELECOMMUNICATIONS ADMIN,"16,569.24",FISCAL YEAR 2013,"","","","COAKLEY,KRISTEN J"
,CHIEF ADMIN OFCR OF THE HOUSE,2013Q2,PERSONNEL COMPENSATION,"","COBB, FAYE C",04/01/13,06/30/13,"DIR, BUDGET, POLICY & PLANNING","37,384.26",FISCAL YEAR 2013,"","","","COBB, FAYE C"
,CHIEF ADMIN OFCR OF THE HOUSE,2013Q2,PERSONNEL COMPENSATION,"","COLBERT, RAY C",04/01/13,06/30/13,SR BROADCAST ENG/PROD SPECLST,"22,809.00",FISCAL YEAR 2013,"","","","COLBERT, RAY C"
,CHIEF ADMIN OFCR OF THE HOUSE,2013Q2,PERSONNEL COMPENSATION,"","COLBERT, RAY C",03/01/13,05/31/13,SR BROADCAST ENG/PROD SPECLST (OVERTIME),164.48,FISCAL YEAR 2013,"","","","COLBERT, RAY C"
,CHIEF ADMIN OFCR OF THE HOUSE,2013Q2,PERSONNEL COMPENSATION,"","COLLINS, JOHN B",04/01/13,06/30/13,BROADCAST PRODUCTION TECHNICIA,"22,998.51",FISCAL YEAR 2013,"","","","COLLINS, JOHN B"
,CHIEF ADMIN OFCR OF THE HOUSE,2013Q2,PERSONNEL COMPENSATION,"","COLLINS, JOHN B",03/01/13,05/31/13,BROADCAST PRODUCTION TECHNICIA (OVERTIME),331.70,FISCAL YEAR 2013,"","","","COLLINS, JOHN B"
,CHIEF ADMIN OFCR OF THE HOUSE,2013Q2,PERSONNEL COMPENSATION,"","COLLINS,JOEL",04/01/13,06/30/13,SR INTERNET SYSTEMS SPECIALIST,"29,298.99",FISCAL YEAR 2013,"","","","COLLINS,JOEL"
,CHIEF ADMIN OFCR OF THE HOUSE,2013Q2,PERSONNEL COMPENSATION,"","CONNOLLY,ERIC",04/01/13,06/30/13,PHOTOGRAPHER,"14,481.75",FISCAL YEAR 2013,"","","","CONNOLLY,ERIC"
,CHIEF ADMIN OFCR OF THE HOUSE,2013Q2,PERSONNEL COMPENSATION,"","COOK, ERIC H",04/01/13,06/30/13,NETWORK TECHNICIAN,"19,894.74",FISCAL YEAR 2013,"","","","COOK, ERIC H"
,CHIEF ADMIN OFCR OF THE HOUSE,2013Q2,PERSONNEL COMPENSATION,"","COOPER, RICHARD S",04/01/13,06/30/13,STAFF ACCOUNTANT (A),"25,044.51",FISCAL YEAR 2013,"","","","COOPER, RICHARD S"
,CHIEF ADMIN OFCR OF THE HOUSE,2013Q2,PERSONNEL COMPENSATION,"","CORNEJO, LUIS E",04/01/13,06/30/13,SENIOR SYSTEMS ENGINEER,"25,491.51",FISCAL YEAR 2013,"","","","CORNEJO, LUIS E"
,CHIEF ADMIN OFCR OF THE HOUSE,2013Q2,PERSONNEL COMPENSATION,"","COX, BRIDGET A",04/01/13,06/30/13,SENIOR SYSTEMS ANALYST,"29,470.74",FISCAL YEAR 2013,"","","","COX, BRIDGET A"
,CHIEF ADMIN OFCR OF THE HOUSE,2013Q2,PERSONNEL COMPENSATION,"","COYNE III, THOMAS E",04/01/13,06/30/13,ASSISTANT CAO,"42,102.75",FISCAL YEAR 2013,"","","","COYNE III, THOMAS E"
,CHIEF ADMIN OFCR OF THE HOUSE,2013Q2,PERSONNEL COMPENSATION,"","CRUDUP III, WILLIAM D",04/01/13,06/30/13,LOGISTICS & DIST SPEC (A),"12,325.26",FISCAL YEAR 2013,"","","","CRUDUP III, WILLIAM D"
,CHIEF ADMIN OFCR OF THE HOUSE,2013Q2,PERSONNEL COMPENSATION,"","CUFF,LOREN D",04/01/13,06/30/13,INTERNET SYSTEMS SPECIALIST,"19,502.49",FISCAL YEAR 2013,"","","","CUFF,LOREN D"
,CHIEF ADMIN OFCR OF THE HOUSE,2013Q2,PERSONNEL COMPENSATION,"","CUFFEY, LAWRENCE",04/01/13,06/30/13,SR RECVNG AND WAREHOUSING SPEC,"17,848.50",FISCAL YEAR 2013,"","","","CUFFEY, LAWRENCE"
,CHIEF ADMIN OFCR OF THE HOUSE,2013Q2,PERSONNEL COMPENSATION,"","CUPRILL, CARLOS",04/01/13,06/30/13,SR TECHNICAL SUPPORT REP,"22,551.00",FISCAL YEAR 2013,"","","","CUPRILL, CARLOS"
,CHIEF ADMIN OFCR OF THE HOUSE,2013Q2,PERSONNEL COMPENSATION,"","CUSATI, ALESSANDRO",04/01/13,06/30/13,CHIEF ENGINEER,"37,409.25",FISCAL YEAR 2013,"","","","CUSATI, ALESSANDRO"
,CHIEF ADMIN OFCR OF THE HOUSE,2013Q2,PERSONNEL COMPENSATION,"","CUTLER JR, BENJAMIN S",04/01/13,06/30/13,PAYROLL & BENEFITS ASSISTANT,"15,155.76",FISCAL YEAR 2013,"","","","CUTLER JR, BENJAMIN S"
,CHIEF ADMIN OFCR OF THE HOUSE,2013Q2,PERSONNEL COMPENSATION,"","D'AMICO, THOMAS A",04/01/13,06/30/13,LOCKSMITH,"18,903.24",FISCAL YEAR 2013,"","","","D'AMICO, THOMAS A"
,CHIEF ADMIN OFCR OF THE HOUSE,2013Q2,PERSONNEL COMPENSATION,"","DAHL,RYAN S",04/01/13,06/30/13,MEDIA LOGISTICS COORDINATOR,"14,819.25",FISCAL YEAR 2013,"","","","DAHL,RYAN S"
,CHIEF ADMIN OFCR OF THE HOUSE,2013Q2,PERSONNEL COMPENSATION,"","DAHLSTROM, DARREN",04/01/13,06/30/13,JOURNEYMAN FURNITURE SPEC,"19,680.51",FISCAL YEAR 2013,"","","","DAHLSTROM, DARREN"
,CHIEF ADMIN OFCR OF THE HOUSE,2013Q2,PERSONNEL COMPENSATION,"","DALTON, MARK V",04/01/13,06/30/13,SENIOR SYSTEMS ENGINEER,"28,962.75",FISCAL YEAR 2013,"","","","DALTON, MARK V"
,CHIEF ADMIN OFCR OF THE HOUSE,2013Q2,PERSONNEL COMPENSATION,"","DAS, SATYENDRA K",04/01/13,06/30/13,BUSINESS PROC APPLIC SPEC,"29,978.76",FISCAL YEAR 2013,"","","","DAS, SATYENDRA K"
,CHIEF ADMIN OFCR OF THE HOUSE,2013Q2,PERSONNEL COMPENSATION,"","DAVENPORT,KAREN V",04/01/13,06/30/13,FINANCIAL ANALYST,"21,663.00",FISCAL YEAR 2013,"","","","DAVENPORT,KAREN V"
,CHIEF ADMIN OFCR OF THE HOUSE,2013Q2,PERSONNEL COMPENSATION,"","DAVIS, JOHN J",04/01/13,06/30/13,BROADCAST PRODUCTION TECHNICIA,"22,551.00",FISCAL YEAR 2013,"","","","DAVIS, JOHN J"
,CHIEF ADMIN OFCR OF THE HOUSE,2013Q2,PERSONNEL COMPENSATION,"","DAVIS, STACHIA G",04/01/13,06/30/13,DIR MOD FURN & TRANSITION,"26,928.51",FISCAL YEAR 2013,"","","","DAVIS, STACHIA G"
,CHIEF ADMIN OFCR OF THE HOUSE,2013Q2,PERSONNEL COMPENSATION,"","DAVIS,SCOTT K",04/01/13,06/30/13,PAYROLL & BENEFITS GENERALIST,"16,569.24",FISCAL YEAR 2013,"","","","DAVIS,SCOTT K"
,CHIEF ADMIN OFCR OF THE HOUSE,2013Q2,PERSONNEL COMPENSATION,"","DAWKINS, JOANN",04/01/13,06/30/13,SR TELECOMM ADMIN,"16,167.00",FISCAL YEAR 2013,"","","","DAWKINS, JOANN"
,CHIEF ADMIN OFCR OF THE HOUSE,2013Q2,PERSONNEL COMPENSATION,"","DEAN, JOSEPH M",04/01/13,06/30/13,JOURNEYMAN TEXTILE SPEC,"19,894.74",FISCAL YEAR 2013,"","","","DEAN, JOSEPH M"
,CHIEF ADMIN OFCR OF THE HOUSE,2013Q2,PERSONNEL COMPENSATION,"","DEAVER,JAMES",04/01/13,06/30/13,SENIOR SYSTEMS ENGINEER,"31,512.51",FISCAL YEAR 2013,"","","","DEAVER,JAMES"
,CHIEF ADMIN OFCR OF THE HOUSE,2013Q2,PERSONNEL COMPENSATION,"","DELISLE,KALDON A",04/01/13,06/30/13,JOURNEYMAN FURNITURE SPEC,"13,472.01",FISCAL YEAR 2013,"","","","DELISLE,KALDON A"
,CHIEF ADMIN OFCR OF THE HOUSE,2013Q2,PERSONNEL COMPENSATION,"","DELUCA, ALAN",04/01/13,06/30/13,COMPUTER FACILITIES OP MGR (A),"35,160.75",FISCAL YEAR 2013,"","","","DELUCA, ALAN"
,CHIEF ADMIN OFCR OF THE HOUSE,2013Q2,PERSONNEL COMPENSATION,"","DENT,RICHARD H",04/01/13,06/30/13,JOURNEYMAN TEXTILE SPEC,"12,340.66",FISCAL YEAR 2013,"","","","DENT,RICHARD H"
,CHIEF ADMIN OFCR OF THE HOUSE,2013Q2,PERSONNEL COMPENSATION,"","DERRICK, SCOTT",04/01/13,06/30/13,GRAPHICS & DESKTOP PUBL SPEC,"22,551.00",FISCAL YEAR 2013,"","","","DERRICK, SCOTT"
,CHIEF ADMIN OFCR OF THE HOUSE,2013Q2,PERSONNEL COMPENSATION,"","DICKIE, JAMES",04/01/13,06/30/13,ENGINEERING OPS MANAGER,"30,221.49",FISCAL YEAR 2013,"","","","DICKIE, JAMES"
,CHIEF ADMIN OFCR OF THE HOUSE,2013Q2,PERSONNEL COMPENSATION,"","DIEFFENDERFER, GARY L",04/01/13,06/30/13,SR. APPLICATION DBA SPECIALIST,"31,512.51",FISCAL YEAR 2013,"","","","DIEFFENDERFER, GARY L"
,CHIEF ADMIN OFCR OF THE HOUSE,2013Q2,PERSONNEL COMPENSATION,"","DOBBINS, MARK",04/01/13,06/30/13,"MANAGER, PURCHASING","22,998.51",FISCAL YEAR 2013,"","","","DOBBINS, MARK"
,CHIEF ADMIN OFCR OF THE HOUSE,2013Q2,PERSONNEL COMPENSATION,"","DOODY,ERICA",02/01/13,06/30/13,ADMINISTRATIVE SPECIALIST,"10,898.80",FISCAL YEAR 2013,"","","","DOODY,ERICA"
,CHIEF ADMIN OFCR OF THE HOUSE,2013Q2,PERSONNEL COMPENSATION,"","DOOLEY,GENEVA",04/01/13,06/30/13,SENIOR SOFTWARE SPECIALIST,"32,067.24",FISCAL YEAR 2013,"","","","DOOLEY,GENEVA"
,CHIEF ADMIN OFCR OF THE HOUSE,2013Q2,PERSONNEL COMPENSATION,"","DOZIER, BRIAN A",04/01/13,06/30/13,INVENTORY ADMINISTRATOR,"14,931.42",FISCAL YEAR 2013,"","","","DOZIER, BRIAN A"
,CHIEF ADMIN OFCR OF THE HOUSE,2013Q2,PERSONNEL COMPENSATION,"","DUENAS, JOSEPH E",04/01/13,06/30/13,TECHNICAL SUPPORT REP,"18,329.01",FISCAL YEAR 2013,"","","","DUENAS, JOSEPH E"
,CHIEF ADMIN OFCR OF THE HOUSE,2013Q2,PERSONNEL COMPENSATION,"","DUNKLIN, KELDA Y",04/01/13,06/30/13,SR TECHNICAL SUPPORT REP,"25,939.74",FISCAL YEAR 2013,"","","","DUNKLIN, KELDA Y"
,CHIEF ADMIN OFCR OF THE HOUSE,2013Q2,PERSONNEL COMPENSATION,"","DUPUIS,TIMOTHY D",04/01/13,05/31/13,ADA AIDE,"4,559.78",FISCAL YEAR 2013,"","","","DUPUIS,TIMOTHY D"
,CHIEF ADMIN OFCR OF THE HOUSE,2013Q2,PERSONNEL COMPENSATION,"","DUPUIS,TIMOTHY D",03/01/13,04/30/13,ADA AIDE (OVERTIME),"4,417.23",FISCAL YEAR 2013,"","","","DUPUIS,TIMOTHY D"
,CHIEF ADMIN OFCR OF THE HOUSE,2013Q2,PERSONNEL COMPENSATION,"","DURAN, ROLANDO",04/01/13,06/30/13,ELECTRONICS TECHNICIAN (A),"22,107.00",FISCAL YEAR 2013,"","","","DURAN, ROLANDO"
,CHIEF ADMIN OFCR OF THE HOUSE,2013Q2,PERSONNEL COMPENSATION,"","DURHAM, SANDRA F",04/01/13,06/30/13,NETWORK OPER BRANCH MGR,"34,141.25",FISCAL YEAR 2013,"","","","DURHAM, SANDRA F"
,CHIEF ADMIN OFCR OF THE HOUSE,2013Q2,PERSONNEL COMPENSATION,"","EBERLE,DAVID A",12/01/12,12/31/12,CONSTITUENT SERVICES REP,"-5,823.77",FISCAL YEAR 2013,"","","","EBERLE,DAVID A"
,CHIEF ADMIN OFCR OF THE HOUSE,2013Q2,PERSONNEL COMPENSATION,"","EBERLE,DAVID A",12/01/12,12/31/12,CONSTITUENT SERVICES REP (OTHER COMPENSATION),"1,559.94",FISCAL YEAR 2013,"","","","EBERLE,DAVID A"
,CHIEF ADMIN OFCR OF THE HOUSE,2013Q2,PERSONNEL COMPENSATION,"","EGERSON, TROY H",04/01/13,06/30/13,JOURNEYMAN TEXTILE SPEC,"18,123.51",FISCAL YEAR 2013,"","","","EGERSON, TROY H"
,CHIEF ADMIN OFCR OF THE HOUSE,2013Q2,PERSONNEL COMPENSATION,"","ELERY, JR, E J",04/01/13,06/30/13,SENIOR CONTRACTS SPECIALIST,"34,098.59",FISCAL YEAR 2013,"","","","ELERY, JR, E J"
,CHIEF ADMIN OFCR OF THE HOUSE,2013Q2,PERSONNEL COMPENSATION,"","ELIAS, ANDREW C",04/01/13,06/30/13,DEPUTY DIRECTOR,"29,470.74",FISCAL YEAR 2013,"","","","ELIAS, ANDREW C"
,CHIEF ADMIN OFCR OF THE HOUSE,2013Q2,PERSONNEL COMPENSATION,"","ELLIN, JAMES B",04/01/13,06/30/13,SR NETWORK SYSTEMS ENGINEER,"28,746.75",FISCAL YEAR 2013,"","","","ELLIN, JAMES B"
,CHIEF ADMIN OFCR OF THE HOUSE,2013Q2,PERSONNEL COMPENSATION,"","ELLIOTT, RONALD",04/01/13,06/30/13,SR INFO SYST. SECURITY ANALYST,"25,044.51",FISCAL YEAR 2013,"","","","ELLIOTT, RONALD"
,CHIEF ADMIN OFCR OF THE HOUSE,2013Q2,PERSONNEL COMPENSATION,"","ELLIS-GREGG, SHARON",04/01/13,06/30/13,PAYROLL & BENEFITS ASSISTANT,"14,134.74",FISCAL YEAR 2013,"","","","ELLIS-GREGG, SHARON"
,CHIEF ADMIN OFCR OF THE HOUSE,2013Q2,PERSONNEL COMPENSATION,"","EMAMALI, NICOLE S",04/01/13,06/30/13,SR TECHNICAL SUPPORT REP,"26,928.51",FISCAL YEAR 2013,"","","","EMAMALI, NICOLE S"
,CHIEF ADMIN OFCR OF THE HOUSE,2013Q2,PERSONNEL COMPENSATION,"","ENGLISH, JOSEPH H",04/01/13,06/30/13,MOBILE COMM SPECIALIST (DATA),"25,044.51",FISCAL YEAR 2013,"","","","ENGLISH, JOSEPH H"
,CHIEF ADMIN OFCR OF THE HOUSE,2013Q2,PERSONNEL COMPENSATION,"","ERVING, JAMES H",04/01/13,06/30/13,COMMUNICATIONS SPECIALIST,"25,939.74",FISCAL YEAR 2013,"","","","ERVING, JAMES H"
,CHIEF ADMIN OFCR OF THE HOUSE,2013Q2,PERSONNEL COMPENSATION,"","EVANS JR, WILLIAM R",04/01/13,06/30/13,ELECTRONICS TECHNICIAN (A),"22,551.00",FISCAL YEAR 2013,"","","","EVANS JR, WILLIAM R"
,CHIEF ADMIN OFCR OF THE HOUSE,2013Q2,PERSONNEL COMPENSATION,"","EVANS JR, WILLIAM R",03/01/13,05/31/13,ELECTRONICS TECHNICIAN (A) (OVERTIME),585.46,FISCAL YEAR 2013,"","","","EVANS JR, WILLIAM R"
,CHIEF ADMIN OFCR OF THE HOUSE,2013Q2,PERSONNEL COMPENSATION,"","EWERS, GRETCHEN",04/01/13,06/30/13,MANAGER,"25,939.74",FISCAL YEAR 2013,"","","","EWERS, GRETCHEN"
,CHIEF ADMIN OFCR OF THE HOUSE,2013Q2,PERSONNEL COMPENSATION,"","EWING JR, JOHN C",04/01/13,06/30/13,RECEIVING/WAREHOUSE SPECIALIST,"10,684.50",FISCAL YEAR 2013,"","","","EWING JR, JOHN C"
,CHIEF ADMIN OFCR OF THE HOUSE,2013Q2,PERSONNEL COMPENSATION,"","FARLEY, JOANN I",04/01/13,06/30/13,FINANCIAL COUNSELOR,"17,735.76",FISCAL YEAR 2013,"","","","FARLEY, JOANN I"
,CHIEF ADMIN OFCR OF THE HOUSE,2013Q2,PERSONNEL COMPENSATION,"","FIELD, ESTANISLAO",04/01/13,06/30/13,INFO SYSTEMS SECURITY ANALYST,"25,044.51",FISCAL YEAR 2013,"","","","FIELD, ESTANISLAO"
,CHIEF ADMIN OFCR OF THE HOUSE,2013Q2,PERSONNEL COMPENSATION,"","FISHER, JEROME",04/01/13,06/30/13,SR TECH SOLUTIONS ENGINEER,"24,150.51",FISCAL YEAR 2013,"","","","FISHER, JEROME"
,CHIEF ADMIN OFCR OF THE HOUSE,2013Q2,PERSONNEL COMPENSATION,"","FONTNEAU, BRUCE",04/01/13,06/30/13,SYSTEMS ENGINEER,"22,809.00",FISCAL YEAR 2013,"","","","FONTNEAU, BRUCE"
,CHIEF ADMIN OFCR OF THE HOUSE,2013Q2,PERSONNEL COMPENSATION,"","FORD, DARIN J",04/01/13,06/30/13,SR TECHNICAL SUPPORT REP (A),"22,551.00",FISCAL YEAR 2013,"","","","FORD, DARIN J"
,CHIEF ADMIN OFCR OF THE HOUSE,2013Q2,PERSONNEL COMPENSATION,"","FORGIONE, JOHN A",04/01/13,06/30/13,SR CUSTOMER SOLUTIONS REP,"18,903.24",FISCAL YEAR 2013,"","","","FORGIONE, JOHN A"
,CHIEF ADMIN OFCR OF THE HOUSE,2013Q2,PERSONNEL COMPENSATION,"","FOSTER, CHARLES J",04/01/13,06/30/13,PAYROLL & BENEFITS ASSISTANT,"13,798.50",FISCAL YEAR 2013,"","","","FOSTER, CHARLES J"
,CHIEF ADMIN OFCR OF THE HOUSE,2013Q2,PERSONNEL COMPENSATION,"","FOUNTAIN,ANIKA",04/01/13,06/30/13,TECH SOLUTIONS TECHNICIAN,"17,605.26",FISCAL YEAR 2013,"","","","FOUNTAIN,ANIKA"
,CHIEF ADMIN OFCR OF THE HOUSE,2013Q2,PERSONNEL COMPENSATION,"","FRANK, DEBBIE",04/01/13,06/30/13,SR EA COUNSELOR,"28,176.51",FISCAL YEAR 2013,"","","","FRANK, DEBBIE"
,CHIEF ADMIN OFCR OF THE HOUSE,2013Q2,PERSONNEL COMPENSATION,"","FRAVEL,DON J",02/01/13,06/30/13,TECH SOLUTIONS TECHNICIAN,"14,633.61",FISCAL YEAR 2013,"","","","FRAVEL,DON J"
,CHIEF ADMIN OFCR OF THE HOUSE,2013Q2,PERSONNEL COMPENSATION,"","FRECH, JASON L",04/01/13,06/30/13,SR SYSTEMS ENGINEER,"25,403.76",FISCAL YEAR 2013,"","","","FRECH, JASON L"
,CHIEF ADMIN OFCR OF THE HOUSE,2013Q2,PERSONNEL COMPENSATION,"","FREEMAN, ANTOINETTE P",04/01/13,06/30/13,ADMINISTRATIVE SPECIALIST,"14,807.25",FISCAL YEAR 2013,"","","","FREEMAN, ANTOINETTE P"
,CHIEF ADMIN OFCR OF THE HOUSE,2013Q2,PERSONNEL COMPENSATION,"","FREENEY, MALCOLM",04/01/13,06/30/13,PROJECT MANAGER,"25,491.51",FISCAL YEAR 2013,"","","","FREENEY, MALCOLM"
,CHIEF ADMIN OFCR OF THE HOUSE,2013Q2,PERSONNEL COMPENSATION,"","FRENCH, CAROL",04/01/13,06/30/13,PAYROLL & BENEFITS GENERALIST,"18,123.51",FISCAL YEAR 2013,"","","","FRENCH, CAROL"
,CHIEF ADMIN OFCR OF THE HOUSE,2013Q2,PERSONNEL COMPENSATION,"","FRENCH, CHARLES",04/01/13,06/30/13,SENIOR NETWORK TECHNICIAN,"25,044.51",FISCAL YEAR 2013,"","","","FRENCH, CHARLES"
,CHIEF ADMIN OFCR OF THE HOUSE,2013Q2,PERSONNEL COMPENSATION,"","FRITZ,ERIC D",04/01/13,06/30/13,SENIOR SYSTEMS ENGINEER,"26,928.51",FISCAL YEAR 2013,"","","","FRITZ,ERIC D"
,CHIEF ADMIN OFCR OF THE HOUSE,2013Q2,PERSONNEL COMPENSATION,"","GAERTNER, LESLIE C",04/01/13,06/30/13,SR NETWORK COMM SPEC,"28,962.75",FISCAL YEAR 2013,"","","","GAERTNER, LESLIE C"
,CHIEF ADMIN OFCR OF THE HOUSE,2013Q2,PERSONNEL COMPENSATION,"","GAINES, JULIA W",04/01/13,06/30/13,SPECIAL ASSISTANT (A),"24,777.24",FISCAL YEAR 2013,"","","","GAINES, JULIA W"
,CHIEF ADMIN OFCR OF THE HOUSE,2013Q2,PERSONNEL COMPENSATION,"","GALLAGHER, RENEE",04/01/13,06/30/13,SR INFO SYST. SECURITY ANALYST,"25,044.51",FISCAL YEAR 2013,"","","","GALLAGHER, RENEE"
,CHIEF ADMIN OFCR OF THE HOUSE,2013Q2,PERSONNEL COMPENSATION,"","GALLEGOS, JERRY L",04/01/13,06/30/13,SUPERINTENDENT,"34,836.75",FISCAL YEAR 2013,"","","","GALLEGOS, JERRY L"
,CHIEF ADMIN OFCR OF THE HOUSE,2013Q2,PERSONNEL COMPENSATION,"","GALLO,MAXSON",06/03/13,06/30/13,EXECUTIVE ASSISTANT,"4,191.29",FISCAL YEAR 2013,"","","","GALLO,MAXSON"
,CHIEF ADMIN OFCR OF THE HOUSE,2013Q2,PERSONNEL COMPENSATION,"","GARAY, GERMAN",04/01/13,06/30/13,BROADCAST PRODUCTION TECHNICIA,"22,551.00",FISCAL YEAR 2013,"","","","GARAY, GERMAN"
,CHIEF ADMIN OFCR OF THE HOUSE,2013Q2,PERSONNEL COMPENSATION,"","GARAY, GERMAN",03/01/13,05/31/13,BROADCAST PRODUCTION TECHNICIA (OVERTIME),"2,753.80",FISCAL YEAR 2013,"","","","GARAY, GERMAN"
,CHIEF ADMIN OFCR OF THE HOUSE,2013Q2,PERSONNEL COMPENSATION,"","GASKINS, JAMES R",04/01/13,06/30/13,BRANCH MANAGER,"32,067.24",FISCAL YEAR 2013,"","","","GASKINS, JAMES R"
,CHIEF ADMIN OFCR OF THE HOUSE,2013Q2,PERSONNEL COMPENSATION,"","GATES, TRENA F",04/01/13,06/30/13,FINANCIAL COUNSELOR,"20,676.99",FISCAL YEAR 2013,"","","","GATES, TRENA F"
,CHIEF ADMIN OFCR OF THE HOUSE,2013Q2,PERSONNEL COMPENSATION,"","GATES,COREY M",04/01/13,06/30/13,JOURNEYMAN TEXTILE SPEC,"12,786.51",FISCAL YEAR 2013,"","","","GATES,COREY M"
,CHIEF ADMIN OFCR OF THE HOUSE,2013Q2,PERSONNEL COMPENSATION,"","GATES,THOMAS D",04/01/13,04/30/13,SYSTEMS ENGINEER,"6,923.83",FISCAL YEAR 2013,"","","","GATES,THOMAS D"
,CHIEF ADMIN OFCR OF THE HOUSE,2013Q2,PERSONNEL COMPENSATION,"","GATES,THOMAS D",05/01/13,06/30/13,SENIOR SYSTEMS ENGINEER,"15,803.00",FISCAL YEAR 2013,"","","","GATES,THOMAS D"
,CHIEF ADMIN OFCR OF THE HOUSE,2013Q2,PERSONNEL COMPENSATION,"","GEPERT,DARLA M",04/01/13,06/30/13,ADMINISTRATIVE SPECIALIST (A),"12,453.24",FISCAL YEAR 2013,"","","","GEPERT,DARLA M"
,CHIEF ADMIN OFCR OF THE HOUSE,2013Q2,PERSONNEL COMPENSATION,"","GERARDEN,PAUL J",04/01/13,06/30/13,CUSTOMER SOLUTIONS REP,"13,460.01",FISCAL YEAR 2013,"","","","GERARDEN,PAUL J"
,CHIEF ADMIN OFCR OF THE HOUSE,2013Q2,PERSONNEL COMPENSATION,"","GERARDEN,PAUL J",04/01/13,04/30/13,CUSTOMER SOLUTIONS REP. (OTHER COMPENSATION),500.00,FISCAL YEAR 2013,"","","","GERARDEN,PAUL J"
,CHIEF ADMIN OFCR OF THE HOUSE,2013Q2,PERSONNEL COMPENSATION,"","GILLIS,DANIEL",04/01/13,06/30/13,ADA AIDE,"6,839.67",FISCAL YEAR 2013,"","","","GILLIS,DANIEL"
,CHIEF ADMIN OFCR OF THE HOUSE,2013Q2,PERSONNEL COMPENSATION,"","GILLIS,DANIEL",03/01/13,05/31/13,ADA AIDE (OVERTIME),"3,804.52",FISCAL YEAR 2013,"","","","GILLIS,DANIEL"
,CHIEF ADMIN OFCR OF THE HOUSE,2013Q2,PERSONNEL COMPENSATION,"","GIZARA, MICHAEL P",04/01/13,06/30/13,SR APPLICATION SECURITY ANALYS,"28,962.75",FISCAL YEAR 2013,"","","","GIZARA, MICHAEL P"
,CHIEF ADMIN OFCR OF THE HOUSE,2013Q2,PERSONNEL COMPENSATION,"","GOGGINS II, JAMES D",04/01/13,06/30/13,NETWORK COMM SPECIALIST (A),"22,551.00",FISCAL YEAR 2013,"","","","GOGGINS II, JAMES D"
,CHIEF ADMIN OFCR OF THE HOUSE,2013Q2,PERSONNEL COMPENSATION,"","GOLDSBOROUGH-LEE, ANGEL M",04/01/13,06/30/13,"DIR, TECH MGT & INTERNAL CTRLS","33,938.25",FISCAL YEAR 2013,"","","","GOLDSBOROUGH-LEE, ANGEL M"
,CHIEF ADMIN OFCR OF THE HOUSE,2013Q2,PERSONNEL COMPENSATION,"","GONZALEZ, ROSARIO D",04/01/13,06/30/13,SR CUSTOMER SOLUTIONS REP,"19,502.49",FISCAL YEAR 2013,"","","","GONZALEZ, ROSARIO D"
,CHIEF ADMIN OFCR OF THE HOUSE,2013Q2,PERSONNEL COMPENSATION,"","GOULD, MICHAEL",04/01/13,06/30/13,"MANAGER, REMEDY MANAGEMENT","29,298.99",FISCAL YEAR 2013,"","","","GOULD, MICHAEL"
,CHIEF ADMIN OFCR OF THE HOUSE,2013Q2,PERSONNEL COMPENSATION,"","GRAEUB, ANDREW C",04/01/13,06/30/13,"MANAGER, NETWORK SYST ENGINEER","33,938.25",FISCAL YEAR 2013,"","","","GRAEUB, ANDREW C"
,CHIEF ADMIN OFCR OF THE HOUSE,2013Q2,PERSONNEL COMPENSATION,"","GREEN, CAROLINE",04/01/13,06/30/13,TECHNICAL SUPPORT REP (A),"17,735.76",FISCAL YEAR 2013,"","","","GREEN, CAROLINE"
,CHIEF ADMIN OFCR OF THE HOUSE,2013Q2,PERSONNEL COMPENSATION,"","GREEN, MITCHELL",04/01/13,06/30/13,CONTRACT ADMINISTRATOR,"32,067.24",FISCAL YEAR 2013,"","","","GREEN, MITCHELL"
,CHIEF ADMIN OFCR OF THE HOUSE,2013Q2,PERSONNEL COMPENSATION,"","GREEN, MITCHELL",04/01/13,04/30/13,CONTRACT ADMINISTRATOR (OTHER COMPENSATION),500.00,FISCAL YEAR 2013,"","","","GREEN, MITCHELL"
,CHIEF ADMIN OFCR OF THE HOUSE,2013Q2,PERSONNEL COMPENSATION,"","GREEN,ANDREW L",04/01/13,06/30/13,TECHNICAL SUPPORT REP,"16,569.24",FISCAL YEAR 2013,"","","","GREEN,ANDREW L"
,CHIEF ADMIN OFCR OF THE HOUSE,2013Q2,PERSONNEL COMPENSATION,"","GREENE, CHANTEL T",04/01/13,06/30/13,MGR BUS SYS AND INTEGRATION,"35,160.75",FISCAL YEAR 2013,"","","","GREENE, CHANTEL T"
,CHIEF ADMIN OFCR OF THE HOUSE,2013Q2,PERSONNEL COMPENSATION,"","GRIGGS,KYLE R",04/01/13,06/30/13,CONTRACTS SUPPORT ADMIN,"13,922.16",FISCAL YEAR 2013,"","","","GRIGGS,KYLE R"
,CHIEF ADMIN OFCR OF THE HOUSE,2013Q2,PERSONNEL COMPENSATION,"","GRISWOLD,RAYMOND",04/01/13,06/30/13,"DIRECTOR, ACQ & CONTRACT MGMT","32,714.49",FISCAL YEAR 2013,"","","","GRISWOLD,RAYMOND"
,CHIEF ADMIN OFCR OF THE HOUSE,2013Q2,PERSONNEL COMPENSATION,"","GRONSKI,ROBERT S",04/01/13,06/30/13,SR BUSINESS PROCESS APPL SPEC,"29,853.99",FISCAL YEAR 2013,"","","","GRONSKI,ROBERT S"
,CHIEF ADMIN OFCR OF THE HOUSE,2013Q2,PERSONNEL COMPENSATION,"","GUARNERO,DAVID P",04/01/13,06/30/13,PAYROLL & BENEFITS GENERALIST,"15,401.76",FISCAL YEAR 2013,"","","","GUARNERO,DAVID P"
,CHIEF ADMIN OFCR OF THE HOUSE,2013Q2,PERSONNEL COMPENSATION,"","GUDURU,PRATAP K",04/01/13,06/30/13,SENIOR SYSTEMS ENGINEER,"30,960.24",FISCAL YEAR 2013,"","","","GUDURU,PRATAP K"
,CHIEF ADMIN OFCR OF THE HOUSE,2013Q2,PERSONNEL COMPENSATION,"","GUGLIOTTA,NORMAN",04/01/13,06/30/13,FINANCIAL COUNSELOR (A),"16,179.24",FISCAL YEAR 2013,"","","","GUGLIOTTA,NORMAN"
,CHIEF ADMIN OFCR OF THE HOUSE,2013Q2,PERSONNEL COMPENSATION,"","GUGLIOTTA,NORMAN",04/01/13,04/30/13,FINANCIAL COUNSELOR (A) (OVERTIME),606.72,FISCAL YEAR 2013,"","","","GUGLIOTTA,NORMAN"
,CHIEF ADMIN OFCR OF THE HOUSE,2013Q2,PERSONNEL COMPENSATION,"","HALL,MORGAN",04/01/13,06/30/13,FACILITIES MANAGEMENT SPECIALI,"16,569.24",FISCAL YEAR 2013,"","","","HALL,MORGAN"
,CHIEF ADMIN OFCR OF THE HOUSE,2013Q2,PERSONNEL COMPENSATION,"","HAMBRIC, STEEN H",04/01/13,06/30/13,ASSISTANT CAO,"42,102.75",FISCAL YEAR 2013,"","","","HAMBRIC, STEEN H"
,CHIEF ADMIN OFCR OF THE HOUSE,2013Q2,PERSONNEL COMPENSATION,"","HAMEL,RYAN T",04/01/13,06/30/13,THIRD ASSISTANT,"16,179.24",FISCAL YEAR 2013,"","","","HAMEL,RYAN T"
,CHIEF ADMIN OFCR OF THE HOUSE,2013Q2,PERSONNEL COMPENSATION,"","HAMNER, PHILIP D",04/01/13,06/30/13,"DIRECTOR, ACCOUNTING","35,775.51",FISCAL YEAR 2013,"","","","HAMNER, PHILIP D"
,CHIEF ADMIN OFCR OF THE HOUSE,2013Q2,PERSONNEL COMPENSATION,"","HANCOCK, TERRY L",04/01/13,06/30/13,SR INFO SYST. SECURITY ANALYST,"32,067.24",FISCAL YEAR 2013,"","","","HANCOCK, TERRY L"
,CHIEF ADMIN OFCR OF THE HOUSE,2013Q2,PERSONNEL COMPENSATION,"","HANEY, WINSTON",04/01/13,06/30/13,ACCOUNT MANAGEMENT COUNSELOR,"13,798.50",FISCAL YEAR 2013,"","","","HANEY, WINSTON"
,CHIEF ADMIN OFCR OF THE HOUSE,2013Q2,PERSONNEL COMPENSATION,"","HANONU, TINA M",04/01/13,06/30/13,ASSISTANT CAO,"42,102.75",FISCAL YEAR 2013,"","","","HANONU, TINA M"
,CHIEF ADMIN OFCR OF THE HOUSE,2013Q2,PERSONNEL COMPENSATION,"","HAQ,RABIA",04/01/13,06/30/13,BUSINESS PROC APPLIC SPEC,"23,256.00",FISCAL YEAR 2013,"","","","HAQ,RABIA"
,CHIEF ADMIN OFCR OF THE HOUSE,2013Q2,PERSONNEL COMPENSATION,"","HARGROVE, BRIAN",04/01/13,06/30/13,LOGISTICS & DIST SPEC (A),"10,095.75",FISCAL YEAR 2013,"","","","HARGROVE, BRIAN"
,CHIEF ADMIN OFCR OF THE HOUSE,2013Q2,PERSONNEL COMPENSATION,"","HARRELL,VICKIE",04/01/13,06/30/13,NETWORK TECHNICIAN,"22,551.00",FISCAL YEAR 2013,"","","","HARRELL,VICKIE"
,CHIEF ADMIN OFCR OF THE HOUSE,2013Q2,PERSONNEL COMPENSATION,"","HARRINGTON, KEITH",04/01/13,06/30/13,FINANCIAL COUNSELOR,"22,639.26",FISCAL YEAR 2013,"","","","HARRINGTON, KEITH"
,CHIEF ADMIN OFCR OF THE HOUSE,2013Q2,PERSONNEL COMPENSATION,"","HARRINGTON, KEITH",03/01/13,04/30/13,FINANCIAL COUNSELOR (OVERTIME),"1,436.71",FISCAL YEAR 2013,"","","","HARRINGTON, KEITH"
,CHIEF ADMIN OFCR OF THE HOUSE,2013Q2,PERSONNEL COMPENSATION,"","HARRIS, DONALD",04/01/13,06/30/13,SR NETWORK COMM SPECIALIST,"28,454.01",FISCAL YEAR 2013,"","","","HARRIS, DONALD"
,CHIEF ADMIN OFCR OF THE HOUSE,2013Q2,PERSONNEL COMPENSATION,"","HARRIS, KEVIN",04/01/13,06/30/13,JOURNEYMAN FURNITURE SPEC,"18,903.24",FISCAL YEAR 2013,"","","","HARRIS, KEVIN"
,CHIEF ADMIN OFCR OF THE HOUSE,2013Q2,PERSONNEL COMPENSATION,"","HARRIS, STEPHANIE A",04/01/13,06/30/13,SR BUSINESS PROC APPL SPEC II,"42,102.75",FISCAL YEAR 2013,"","","","HARRIS, STEPHANIE A"
,CHIEF ADMIN OFCR OF THE HOUSE,2013Q2,PERSONNEL COMPENSATION,"","HARVEY, JAMIE",04/01/13,06/30/13,SR TELECOMMUNICATIONS ADMIN (A,"16,167.00",FISCAL YEAR 2013,"","","","HARVEY, JAMIE"
,CHIEF ADMIN OFCR OF THE HOUSE,2013Q2,PERSONNEL COMPENSATION,"","HARVEY,KINSEY B",04/01/13,06/30/13,MEDIA LOGISTICS COORDINATOR,"15,789.00",FISCAL YEAR 2013,"","","","HARVEY,KINSEY B"
,CHIEF ADMIN OFCR OF THE HOUSE,2013Q2,PERSONNEL COMPENSATION,"","HAYES,KATHLEEN M",04/01/13,06/30/13,CUSTOMER SOLUTIONS REP,"14,481.75",FISCAL YEAR 2013,"","","","HAYES,KATHLEEN M"
,CHIEF ADMIN OFCR OF THE HOUSE,2013Q2,PERSONNEL COMPENSATION,"","HAYES,MICHELLE P",04/01/13,06/30/13,SENIOR SYSTEMS ENGINEER,"31,512.51",FISCAL YEAR 2013,"","","","HAYES,MICHELLE P"
,CHIEF ADMIN OFCR OF THE HOUSE,2013Q2,PERSONNEL COMPENSATION,"","HEEB III, JOHN J",04/01/13,06/30/13,SR BUSINESS PROCESS APPL SPEC,"33,729.51",FISCAL YEAR 2013,"","","","HEEB III, JOHN J"
,CHIEF ADMIN OFCR OF THE HOUSE,2013Q2,PERSONNEL COMPENSATION,"","HEFNER,JEREMY",04/01/13,06/30/13,SR SYSTEMS SECURITY ENGINEER,"32,621.25",FISCAL YEAR 2013,"","","","HEFNER,JEREMY"
,CHIEF ADMIN OFCR OF THE HOUSE,2013Q2,PERSONNEL COMPENSATION,"","HERBERT, GREGORY L",04/01/13,06/30/13,REC/WAREHOUSE SPEC (A),"12,029.49",FISCAL YEAR 2013,"","","","HERBERT, GREGORY L"
,CHIEF ADMIN OFCR OF THE HOUSE,2013Q2,PERSONNEL COMPENSATION,"","HERBERT,DONNA",04/01/13,06/30/13,FINANCIAL ANALYST,"19,502.49",FISCAL YEAR 2013,"","","","HERBERT,DONNA"
,CHIEF ADMIN OFCR OF THE HOUSE,2013Q2,PERSONNEL COMPENSATION,"","HIBBS, CYNTHIA",04/01/13,06/30/13,NETWORK COORDINATOR (A),"18,903.24",FISCAL YEAR 2013,"","","","HIBBS, CYNTHIA"
,CHIEF ADMIN OFCR OF THE HOUSE,2013Q2,PERSONNEL COMPENSATION,"","HILL, TITRA M",02/01/13,06/30/13,RECEPTIONIST,"10,993.67",FISCAL YEAR 2013,"","","","HILL, TITRA M"
,CHIEF ADMIN OFCR OF THE HOUSE,2013Q2,PERSONNEL COMPENSATION,"","HIRSCH, PATRICK A",04/01/13,06/30/13,DIR-HOUSE RECORDING STUDIO,"39,794.25",FISCAL YEAR 2013,"","","","HIRSCH, PATRICK A"
,CHIEF ADMIN OFCR OF THE HOUSE,2013Q2,PERSONNEL COMPENSATION,"","HITE,JASON A",04/01/13,06/30/13,CHIEF HUMAN RESOURCES OFFICER,"35,160.75",FISCAL YEAR 2013,"","","","HITE,JASON A"
,CHIEF ADMIN OFCR OF THE HOUSE,2013Q2,PERSONNEL COMPENSATION,"","HOBBS, DENINE",04/01/13,06/30/13,SPECIAL ASSISTANT,"24,595.50",FISCAL YEAR 2013,"","","","HOBBS, DENINE"
,CHIEF ADMIN OFCR OF THE HOUSE,2013Q2,PERSONNEL COMPENSATION,"","HODGES, JOHN E",04/01/13,06/30/13,"MANAGER, SALES & CUSTOMER SVC","24,777.24",FISCAL YEAR 2013,"","","","HODGES, JOHN E"
,CHIEF ADMIN OFCR OF THE HOUSE,2013Q2,PERSONNEL COMPENSATION,"","HOKHOLD, MARK D",04/01/13,06/30/13,SYSTEMS ENGINEER,"24,595.50",FISCAL YEAR 2013,"","","","HOKHOLD, MARK D"
,CHIEF ADMIN OFCR OF THE HOUSE,2013Q2,PERSONNEL COMPENSATION,"","HOLAU,GEORGE",04/01/13,06/30/13,FINANCIAL COUNSELOR,"20,286.24",FISCAL YEAR 2013,"","","","HOLAU,GEORGE"
,CHIEF ADMIN OFCR OF THE HOUSE,2013Q2,PERSONNEL COMPENSATION,"","HOLAU,GEORGE",03/01/13,04/30/13,FINANCIAL COUNSELOR (OVERTIME),"1,433.67",FISCAL YEAR 2013,"","","","HOLAU,GEORGE"
,CHIEF ADMIN OFCR OF THE HOUSE,2013Q2,PERSONNEL COMPENSATION,"","HOLLAND, GREGORY",04/01/13,06/30/13,LOGISTICS & DIST SPEC (A),"11,274.00",FISCAL YEAR 2013,"","","","HOLLAND, GREGORY"
,CHIEF ADMIN OFCR OF THE HOUSE,2013Q2,PERSONNEL COMPENSATION,"","HOLLEY, STEVEN M",04/01/13,06/30/13,LOGISTICS & DIST SPEC (A),"10,980.00",FISCAL YEAR 2013,"","","","HOLLEY, STEVEN M"
,CHIEF ADMIN OFCR OF THE HOUSE,2013Q2,PERSONNEL COMPENSATION,"","HOLLIWAY, MONROE",04/01/13,06/30/13,LOGISTICS & DIST SPEC (A),"10,684.50",FISCAL YEAR 2013,"","","","HOLLIWAY, MONROE"
,CHIEF ADMIN OFCR OF THE HOUSE,2013Q2,PERSONNEL COMPENSATION,"","HOLMBERG, BARBARA A",04/01/13,06/30/13,PAYROLL & BENEFITS ASSISTANT,"14,807.25",FISCAL YEAR 2013,"","","","HOLMBERG, BARBARA A"
,CHIEF ADMIN OFCR OF THE HOUSE,2013Q2,PERSONNEL COMPENSATION,"","HORNBURG, RICHARD A",04/01/13,06/30/13,BUSINESS PROC APPLIC SPEC,"27,946.26",FISCAL YEAR 2013,"","","","HORNBURG, RICHARD A"
,CHIEF ADMIN OFCR OF THE HOUSE,2013Q2,PERSONNEL COMPENSATION,"","HORTON, ALFREDDA L",04/01/13,06/30/13,ASSISTANT CAO,"42,102.75",FISCAL YEAR 2013,"","","","HORTON, ALFREDDA L"
,CHIEF ADMIN OFCR OF THE HOUSE,2013Q2,PERSONNEL COMPENSATION,"","HOWARD, ANTHONY T",04/01/13,06/30/13,JOURNEYMAN TEXTILE SPEC,"16,505.25",FISCAL YEAR 2013,"","","","HOWARD, ANTHONY T"
,CHIEF ADMIN OFCR OF THE HOUSE,2013Q2,PERSONNEL COMPENSATION,"","HUGHES, MICHAEL A",04/01/13,06/30/13,FINANCIAL COUNSELOR,"15,717.01",FISCAL YEAR 2013,"","","","HUGHES, MICHAEL A"
,CHIEF ADMIN OFCR OF THE HOUSE,2013Q2,PERSONNEL COMPENSATION,"","HUGHES, RICHARD N",04/01/13,06/30/13,SENIOR AUDIO SPECIALIST,"29,470.74",FISCAL YEAR 2013,"","","","HUGHES, RICHARD N"
,CHIEF ADMIN OFCR OF THE HOUSE,2013Q2,PERSONNEL COMPENSATION,"","HUGHES, RICHARD N",03/01/13,03/31/13,SENIOR AUDIO SPECIALIST (OVERTIME),552.57,FISCAL YEAR 2013,"","","","HUGHES, RICHARD N"
,CHIEF ADMIN OFCR OF THE HOUSE,2013Q2,PERSONNEL COMPENSATION,"","HUNT,DANIEL",04/01/13,06/30/13,SR NETWORK COMM SPECIALIST,"30,405.24",FISCAL YEAR 2013,"","","","HUNT,DANIEL"
,CHIEF ADMIN OFCR OF THE HOUSE,2013Q2,PERSONNEL COMPENSATION,"","HUNTER, STEVE",04/01/13,06/30/13,ACCOUNT MANAGEMENT COUNSELOR,"13,460.01",FISCAL YEAR 2013,"","","","HUNTER, STEVE"
,CHIEF ADMIN OFCR OF THE HOUSE,2013Q2,PERSONNEL COMPENSATION,"","HURDA, JACQUELINE L",04/01/13,06/30/13,FINANCIAL COUNSELOR (A),"19,894.74",FISCAL YEAR 2013,"","","","HURDA, JACQUELINE L"
,CHIEF ADMIN OFCR OF THE HOUSE,2013Q2,PERSONNEL COMPENSATION,"","HURDA, JACQUELINE L",03/01/13,04/30/13,FINANCIAL COUNSELOR (A) (OVERTIME),172.17,FISCAL YEAR 2013,"","","","HURDA, JACQUELINE L"
,CHIEF ADMIN OFCR OF THE HOUSE,2013Q2,PERSONNEL COMPENSATION,"","ILOG,ANGELA M",04/01/13,06/30/13,CONTRACTS SUPPORT ADMIN,"14,148.00",FISCAL YEAR 2013,"","","","ILOG,ANGELA M"
,CHIEF ADMIN OFCR OF THE HOUSE,2013Q2,PERSONNEL COMPENSATION,"","JACKSON, REGGIE",04/01/13,06/30/13,SR TECHNICAL SUPPORT REP (A),"23,256.00",FISCAL YEAR 2013,"","","","JACKSON, REGGIE"
,CHIEF ADMIN OFCR OF THE HOUSE,2013Q2,PERSONNEL COMPENSATION,"","JACKSON, TREVERA R",04/01/13,06/30/13,SYSTEMS ENGINEER,"22,639.26",FISCAL YEAR 2013,"","","","JACKSON, TREVERA R"
,CHIEF ADMIN OFCR OF THE HOUSE,2013Q2,PERSONNEL COMPENSATION,"","JACKSON, WANDA J",04/01/13,06/30/13,TELECOMMUNICATIONS BRANCH MNGR,"26,422.74",FISCAL YEAR 2013,"","","","JACKSON, WANDA J"
,CHIEF ADMIN OFCR OF THE HOUSE,2013Q2,PERSONNEL COMPENSATION,"","JACOBSON, BRADLEY J",04/01/13,06/30/13,BRANCH MANAGER,"33,938.25",FISCAL YEAR 2013,"","","","JACOBSON, BRADLEY J"
,CHIEF ADMIN OFCR OF THE HOUSE,2013Q2,PERSONNEL COMPENSATION,"","JANIFER, ROLAND S",04/01/13,06/30/13,"SUPERVISOR,LOGIS & DIST (A)","18,123.51",FISCAL YEAR 2013,"","","","JANIFER, ROLAND S"
,CHIEF ADMIN OFCR OF THE HOUSE,2013Q2,PERSONNEL COMPENSATION,"","JANIFER, ROLAND S",04/01/13,04/30/13,"SUPERVISOR,LOGIS & DIST (A) (OTHER COMPENSATION)",500.00,FISCAL YEAR 2013,"","","","JANIFER, ROLAND S"
,CHIEF ADMIN OFCR OF THE HOUSE,2013Q2,PERSONNEL COMPENSATION,"","JECKO,BRITTANY E",04/01/13,06/30/13,HUMAN RESOURCES GENERALIST,"15,401.76",FISCAL YEAR 2013,"","","","JECKO,BRITTANY E"
,CHIEF ADMIN OFCR OF THE HOUSE,2013Q2,PERSONNEL COMPENSATION,"","JEFFERSON,KENYATTA",04/01/13,06/30/13,TECH SOLUTIONS ENGINEER,"16,569.24",FISCAL YEAR 2013,"","","","JEFFERSON,KENYATTA"
,CHIEF ADMIN OFCR OF THE HOUSE,2013Q2,PERSONNEL COMPENSATION,"","JENKINS, JAMES",04/01/13,06/30/13,WORKFLOW COORDINATOR,"18,903.24",FISCAL YEAR 2013,"","","","JENKINS, JAMES"
,CHIEF ADMIN OFCR OF THE HOUSE,2013Q2,PERSONNEL COMPENSATION,"","JENNINGS, ARACELI",04/01/13,06/30/13,FINANCE ASSISTANT,"16,505.25",FISCAL YEAR 2013,"","","","JENNINGS, ARACELI"
,CHIEF ADMIN OFCR OF THE HOUSE,2013Q2,PERSONNEL COMPENSATION,"","JENSEN,CHRISTINE",04/01/13,06/30/13,PROGRAM ASSISTANT (WWP),"23,704.50",FISCAL YEAR 2013,"","","","JENSEN,CHRISTINE"
,CHIEF ADMIN OFCR OF THE HOUSE,2013Q2,PERSONNEL COMPENSATION,"","JOHANN, DEREK",04/01/13,06/30/13,SR RECEIVING & WAREHOUSIN SPEC,"16,505.25",FISCAL YEAR 2013,"","","","JOHANN, DEREK"
,CHIEF ADMIN OFCR OF THE HOUSE,2013Q2,PERSONNEL COMPENSATION,"","JOHNSON, ANDRE",04/01/13,06/30/13,APPLICATION DBA SPECIALIST,"22,551.00",FISCAL YEAR 2013,"","","","JOHNSON, ANDRE"
,CHIEF ADMIN OFCR OF THE HOUSE,2013Q2,PERSONNEL COMPENSATION,"","JOHNSON, DWAYNE",04/01/13,06/30/13,RETAIL INVENTORY SPECIALIST,"14,470.50",FISCAL YEAR 2013,"","","","JOHNSON, DWAYNE"
,CHIEF ADMIN OFCR OF THE HOUSE,2013Q2,PERSONNEL COMPENSATION,"","JOHNSON, ERIC C",02/01/13,06/30/13,LOGISTICS & DIST SPEC (A),"11,503.58",FISCAL YEAR 2013,"","","","JOHNSON, ERIC C"
,CHIEF ADMIN OFCR OF THE HOUSE,2013Q2,PERSONNEL COMPENSATION,"","JOHNSON, MARGARET K",04/01/13,06/30/13,SR MODULAR FURNITURE SPEC,"17,344.26",FISCAL YEAR 2013,"","","","JOHNSON, MARGARET K"
,CHIEF ADMIN OFCR OF THE HOUSE,2013Q2,PERSONNEL COMPENSATION,"","JOHNSON, REGINALD",04/01/13,06/30/13,FINANCIAL COUNSELOR (A),"17,086.26",FISCAL YEAR 2013,"","","","JOHNSON, REGINALD"
,CHIEF ADMIN OFCR OF THE HOUSE,2013Q2,PERSONNEL COMPENSATION,"","JOHNSON, ROBERT C",04/01/13,06/30/13,SENIOR SYSTEMS ENGINEER,"29,470.74",FISCAL YEAR 2013,"","","","JOHNSON, ROBERT C"
,CHIEF ADMIN OFCR OF THE HOUSE,2013Q2,PERSONNEL COMPENSATION,"","JOHNSON, STEPHEN R",04/01/13,06/30/13,AUDIO SPECIALIST,"25,342.51",FISCAL YEAR 2013,"","","","JOHNSON, STEPHEN R"
,CHIEF ADMIN OFCR OF THE HOUSE,2013Q2,PERSONNEL COMPENSATION,"","JOHNSON, STEPHEN R",03/01/13,05/31/13,AUDIO SPECIALIST (OVERTIME),680.28,FISCAL YEAR 2013,"","","","JOHNSON, STEPHEN R"
,CHIEF ADMIN OFCR OF THE HOUSE,2013Q2,PERSONNEL COMPENSATION,"","JOHNSON,KWASI Z",04/01/13,06/30/13,LOGISTICS & DIST SPEC (A),"9,002.49",FISCAL YEAR 2013,"","","","JOHNSON,KWASI Z"
,CHIEF ADMIN OFCR OF THE HOUSE,2013Q2,PERSONNEL COMPENSATION,"","JOLICOEUR,VICTORIA J",04/01/13,05/31/13,CONTRACT ADMINISTRATOR,"9,938.63",FISCAL YEAR 2013,"","","","JOLICOEUR,VICTORIA J"
,CHIEF ADMIN OFCR OF THE HOUSE,2013Q2,PERSONNEL COMPENSATION,"","JOLICOEUR,VICTORIA J",05/01/13,05/31/13,CONTRACT ADMINISTRATOR (OTHER COMPENSATION),220.86,FISCAL YEAR 2013,"","","","JOLICOEUR,VICTORIA J"
,CHIEF ADMIN OFCR OF THE HOUSE,2013Q2,PERSONNEL COMPENSATION,"","JONES III,CLARENCE",04/01/13,06/30/13,SENIOR NETWORK TECHNICIAN,"19,110.75",FISCAL YEAR 2013,"","","","JONES III,CLARENCE"
,CHIEF ADMIN OFCR OF THE HOUSE,2013Q2,PERSONNEL COMPENSATION,"","JONES JR, CHARLES J",04/01/13,06/30/13,NETWORK COMM SPECIALIST,"23,704.50",FISCAL YEAR 2013,"","","","JONES JR, CHARLES J"
,CHIEF ADMIN OFCR OF THE HOUSE,2013Q2,PERSONNEL COMPENSATION,"","JONES, DEBORAH D",04/01/13,06/30/13,FINANCIAL COUNSELOR,"21,069.99",FISCAL YEAR 2013,"","","","JONES, DEBORAH D"
,CHIEF ADMIN OFCR OF THE HOUSE,2013Q2,PERSONNEL COMPENSATION,"","JONES, MITCHAEL",04/01/13,06/30/13,TECHNICAL TRAINER,"19,894.74",FISCAL YEAR 2013,"","","","JONES, MITCHAEL"
,CHIEF ADMIN OFCR OF THE HOUSE,2013Q2,PERSONNEL COMPENSATION,"","JONES, STEPHEN E",04/01/13,06/30/13,SENIOR SYSTEMS ENGINEER,"29,853.99",FISCAL YEAR 2013,"","","","JONES, STEPHEN E"
,CHIEF ADMIN OFCR OF THE HOUSE,2013Q2,PERSONNEL COMPENSATION,"","JONES, WESLEY D",04/01/13,06/30/13,LOGISTICS & DIST SPEC (A),"11,176.00",FISCAL YEAR 2013,"","","","JONES, WESLEY D"
,CHIEF ADMIN OFCR OF THE HOUSE,2013Q2,PERSONNEL COMPENSATION,"","JONES,RODNEY B",04/01/13,06/30/13,SR TECHNICAL SUPPORT REP,"21,214.74",FISCAL YEAR 2013,"","","","JONES,RODNEY B"
,CHIEF ADMIN OFCR OF THE HOUSE,2013Q2,PERSONNEL COMPENSATION,"","JONES,YOLANDA S",04/01/13,06/30/13,PAYROLL & BENEFITS GENERALIST,"15,789.00",FISCAL YEAR 2013,"","","","JONES,YOLANDA S"
,CHIEF ADMIN OFCR OF THE HOUSE,2013Q2,PERSONNEL COMPENSATION,"","JORDAN, YONG O",04/01/13,06/30/13,SR TECH SOLUTIONS ENGINEER,"24,150.51",FISCAL YEAR 2013,"","","","JORDAN, YONG O"
,CHIEF ADMIN OFCR OF THE HOUSE,2013Q2,PERSONNEL COMPENSATION,"","JORDAN,CHRISTOPHER",04/01/13,06/30/13,DIRECTOR BUSINESS CONTINUITY,"37,384.26",FISCAL YEAR 2013,"","","","JORDAN,CHRISTOPHER"
,CHIEF ADMIN OFCR OF THE HOUSE,2013Q2,PERSONNEL COMPENSATION,"","JOYCE, ERIC",04/01/13,06/30/13,SUPERVISOR,"27,946.26",FISCAL YEAR 2013,"","","","JOYCE, ERIC"
,CHIEF ADMIN OFCR OF THE HOUSE,2013Q2,PERSONNEL COMPENSATION,"","JUDGE, NANCY",04/01/13,06/30/13,CUSTOMER SOLUTIONS REP,"15,155.76",FISCAL YEAR 2013,"","","","JUDGE, NANCY"
,CHIEF ADMIN OFCR OF THE HOUSE,2013Q2,PERSONNEL COMPENSATION,"","KAESER, STEVEN W",04/01/13,06/30/13,SENIOR SYSTEMS ENGINEER,"28,454.01",FISCAL YEAR 2013,"","","","KAESER, STEVEN W"
,CHIEF ADMIN OFCR OF THE HOUSE,2013Q2,PERSONNEL COMPENSATION,"","KAHLER, KENT",04/01/13,06/30/13,SYSTEMS ENGINEER,"25,044.51",FISCAL YEAR 2013,"","","","KAHLER, KENT"
,CHIEF ADMIN OFCR OF THE HOUSE,2013Q2,PERSONNEL COMPENSATION,"","KAPLAN,LEAH",04/01/13,06/30/13,MEDIA LOGISTICS ASSISTANT,"12,115.50",FISCAL YEAR 2013,"","","","KAPLAN,LEAH"
,CHIEF ADMIN OFCR OF THE HOUSE,2013Q2,PERSONNEL COMPENSATION,"","KEANE, MICHAEL T",04/01/13,06/30/13,"MANAGER, WORKFLOW MANAGEMENT","22,360.50",FISCAL YEAR 2013,"","","","KEANE, MICHAEL T"
,CHIEF ADMIN OFCR OF THE HOUSE,2013Q2,PERSONNEL COMPENSATION,"","KELLAHER,ANTHONY",04/01/13,06/30/13,MEDIA LOGISTICS COORDINATOR,"17,937.75",FISCAL YEAR 2013,"","","","KELLAHER,ANTHONY"
,CHIEF ADMIN OFCR OF THE HOUSE,2013Q2,PERSONNEL COMPENSATION,"","KELLEY, KEVIN S",04/01/13,06/30/13,CUSTOMER SOLUTIONS REP,"16,167.00",FISCAL YEAR 2013,"","","","KELLEY, KEVIN S"
,CHIEF ADMIN OFCR OF THE HOUSE,2013Q2,PERSONNEL COMPENSATION,"","KELLEY, MARY M",04/01/13,06/30/13,RESOURCE MANAGER,"28,962.75",FISCAL YEAR 2013,"","","","KELLEY, MARY M"
,CHIEF ADMIN OFCR OF THE HOUSE,2013Q2,PERSONNEL COMPENSATION,"","KELLEY, TARA A",04/01/13,06/30/13,COMMUNICATIONS SPEC (A),"20,676.99",FISCAL YEAR 2013,"","","","KELLEY, TARA A"
,CHIEF ADMIN OFCR OF THE HOUSE,2013Q2,PERSONNEL COMPENSATION,"","KEMP, DAVID S",04/01/13,06/30/13,SENIOR SYSTEMS ENGINEER,"33,173.76",FISCAL YEAR 2013,"","","","KEMP, DAVID S"
,CHIEF ADMIN OFCR OF THE HOUSE,2013Q2,PERSONNEL COMPENSATION,"","KENEALY, PATRICK T",04/01/13,06/30/13,FINANCIAL ANALYST,"33,729.51",FISCAL YEAR 2013,"","","","KENEALY, PATRICK T"
,CHIEF ADMIN OFCR OF THE HOUSE,2013Q2,PERSONNEL COMPENSATION,"","KILSON,FRANKLIN P",04/01/13,06/30/13,NETWORK TECHNICIAN,"21,214.74",FISCAL YEAR 2013,"","","","KILSON,FRANKLIN P"
,CHIEF ADMIN OFCR OF THE HOUSE,2013Q2,PERSONNEL COMPENSATION,"","KIMBALL, MARK E",04/01/13,06/30/13,SR TECHNICAL SUPPORT REP (A),"21,663.00",FISCAL YEAR 2013,"","","","KIMBALL, MARK E"
,CHIEF ADMIN OFCR OF THE HOUSE,2013Q2,PERSONNEL COMPENSATION,"","KING, ERIC C",04/01/13,06/30/13,JOURNEYMAN FURNITURE SPEC,"19,633.24",FISCAL YEAR 2013,"","","","KING, ERIC C"
,CHIEF ADMIN OFCR OF THE HOUSE,2013Q2,PERSONNEL COMPENSATION,"","KING, JOHN A",04/01/13,06/30/13,"SUPERVISOR,LOGISTICS & DIST (A","17,735.76",FISCAL YEAR 2013,"","","","KING, JOHN A"
,CHIEF ADMIN OFCR OF THE HOUSE,2013Q2,PERSONNEL COMPENSATION,"","KLEMP, CAROLINE",04/01/13,06/30/13,DIRECTOR MEMBERS' SERVICES,"34,836.75",FISCAL YEAR 2013,"","","","KLEMP, CAROLINE"
,CHIEF ADMIN OFCR OF THE HOUSE,2013Q2,PERSONNEL COMPENSATION,"","KLUSSENDORF, KATHLEEN M",04/01/13,06/30/13,SPECIAL ASSISTANT,"27,280.50",FISCAL YEAR 2013,"","","","KLUSSENDORF, KATHLEEN M"
,CHIEF ADMIN OFCR OF THE HOUSE,2013Q2,PERSONNEL COMPENSATION,"","KNELL, KATHERINE A",04/01/13,06/30/13,HRIS APPLICATIONS MANAGER,"38,589.75",FISCAL YEAR 2013,"","","","KNELL, KATHERINE A"
,CHIEF ADMIN OFCR OF THE HOUSE,2013Q2,PERSONNEL COMPENSATION,"","KNOERL, THOMAS K",04/01/13,06/30/13,NETWORK COMMUNICATIONS SPEC,"25,939.74",FISCAL YEAR 2013,"","","","KNOERL, THOMAS K"
,CHIEF ADMIN OFCR OF THE HOUSE,2013Q2,PERSONNEL COMPENSATION,"","KONOPATSKI,FRANK",04/01/13,06/30/13,SR COMM SECURITY ANALYST,"24,150.51",FISCAL YEAR 2013,"","","","KONOPATSKI,FRANK"
,CHIEF ADMIN OFCR OF THE HOUSE,2013Q2,PERSONNEL COMPENSATION,"","KORNACKI, OLGA R",04/01/13,06/30/13,DIRECTOR,"32,621.25",FISCAL YEAR 2013,"","","","KORNACKI, OLGA R"
,CHIEF ADMIN OFCR OF THE HOUSE,2013Q2,PERSONNEL COMPENSATION,"","KOSH, EMORY A",04/01/13,06/30/13,PAYROLL & BENEFITS GENERALIST,"16,179.24",FISCAL YEAR 2013,"","","","KOSH, EMORY A"
,CHIEF ADMIN OFCR OF THE HOUSE,2013Q2,PERSONNEL COMPENSATION,"","KOZTOSKI, DOUGLAS W",04/01/13,06/30/13,BROADCAST PRODUCTION TECHNICIA,"19,110.75",FISCAL YEAR 2013,"","","","KOZTOSKI, DOUGLAS W"
,CHIEF ADMIN OFCR OF THE HOUSE,2013Q2,PERSONNEL COMPENSATION,"","KOZTOSKI, DOUGLAS W",03/01/13,05/31/13,BROADCAST PRODUCTION TECHNICIA (OVERTIME),863.65,FISCAL YEAR 2013,"","","","KOZTOSKI, DOUGLAS W"
,CHIEF ADMIN OFCR OF THE HOUSE,2013Q2,PERSONNEL COMPENSATION,"","KRAFT,NORMAN R",04/01/13,06/30/13,INTERNET SYSTEMS SPECIALIST,"22,360.50",FISCAL YEAR 2013,"","","","KRAFT,NORMAN R"
,CHIEF ADMIN OFCR OF THE HOUSE,2013Q2,PERSONNEL COMPENSATION,"","KRALY,ELIZABETH A",04/01/13,06/30/13,"MANAGER, CAO HUMAN RESOURCES","26,422.74",FISCAL YEAR 2013,"","","","KRALY,ELIZABETH A"
,CHIEF ADMIN OFCR OF THE HOUSE,2013Q2,PERSONNEL COMPENSATION,"","KRAMER, STEPHEN",04/01/13,06/30/13,NETWORK COMMUNICATIONS SPEC,"25,044.51",FISCAL YEAR 2013,"","","","KRAMER, STEPHEN"
